{"text_format":"3","workbook":"xlsx","n_sheets":1,"sheets":["DPW-WH-2021"],"not_rendered":{"defined_names":1},"read":"whole","date_system":"1900"}

{"sheet":"DPW-WH-2021","index":0,"n_rows":1521,"n_cols":9,"rows_kept":1521,"merged":[[0,0,0,8]]}
["DPW-WENTWORTH HOSPITAL-TENDER BOQ"]
["SECTION NO.","BILL NO.","PAGE NO.","ITEM NO.","DESCRIPTION","UNIT","QUANTITY","RATE","AMOUNT"]
[1,1,1,null,"SECTION NO. 1","H1"]
[1,1,1,null,"BILL NO. 1","H1"]
[1,1,1,null,"PRELIMINARIES","H1"]
[1,1,1,null,"PRELIMINARY AND GENERAL","H1"]
[1,1,1,null,"NOTES","H1"]
[1,1,1,null,"i) The agreement is to be the General Conditions of Contract for Works of Civil Engineering Construction (2010) (Second Edition), published by the S.A. Institution Of Civil Engineering."]
[1,1,1,null,"ii) The Preliminaries are to be the Construction and management requirements for works contracts - Part 1: General engineering and construction works (SANS 1921-1: 2004 Edition 1) prepared by Standards South Africa and shall be deemed  to be incorporated herein."]
[1,1,1,null,"iii) Tenderers are referred to the abovementioned documents for the full intent and meaning of each clause thereof (hereinafter referred to by heading and clause number only) for which such allowance must be made as may be considered necessary."]
[1,1,1,null,"iv) Where standard clauses or alternatives are not entirely applicable to this contract such modifications, corrections or supplements as will apply are given under each relevant clause heading."]
[1,1,1,null,"v) Where any item is not relevant to this specific contract such item is marked N/A (signifying \"not applicable\")."]
[1,1,1,null,"vi) Adjustment of the preliminaries:  each item priced, is to be allocated to one or more of  the three categories, where \"F\" denotes a fixed amount  (amount not to be varied), \"V\" denotes an amount  variable in proportion to value and \"T\" denotes an  amount in proportion to time."]
[1,1,1,null,"vii) Time (T) related Preliminaries will only be adjusted for ommissions or additions, issued by the Employer, or delays caused by the Employer, for which variation and extension of time has been granted."]
[1,1,1,null,"The Tenderer is referred to the relevant Preambles in the KwaZulu-Natal Department of Health Standard Preambles to all Trades Rev. 3 January 2009, Supplementary Preambles, Supplementary Specifications, etc. incorporated within the Tender Documents."]
[1,1,2,null,"Supplementary preambles are incorporated in these bills of quantities to satisfy the requirements of this project such supplementary preambles shall take precedence over the provisions of the said Model Preambles."]
[1,1,2,null,"The contractor's prices for all items throughout these bills of quantities must take account of and include for all of the obligations, requirements and specifications given in the said Model Preambles and in any supplementary preambles."]
[1,1,2,null,"SECTION A:  GENERAL CONDITIONS OF CONTRACT","H2"]
[1,1,2,1,"(clause 1)  F:____________ V:____________ T:____________","Item",1,null,{"$f":"G19*H19","v":0}]
[1,1,2,2,"Basis of contract (clause 2)  F:____________ V:____________ T:____________","Item",1,null,{"$f":"G20*H20","v":0}]
[1,1,2,3,"Engineer (clause 3)  F:____________ V:____________ T:____________","Item",1,null,0]
[1,1,2,4,"Contrators general obligations (clause 4) F:____________ V:____________ T:____________","Item",1,null,0]
[1,1,2,5,"A5 Time and related matters (clause 5).  F:____________ V:____________ T:____________","Item",1,null,0]
[1,1,2,6,"Payment and related matters (clause 6)  F:____________ V:____________ T:____________","Item",1,null,0]
[1,1,2,7,"Quality and related matters (clause 7) F:____________ V:____________ T:____________","Item",1,null,0]
[1,1,2,8,"Risks and related matters (clause 8) F:____________ V:____________ T:____________","Item",1,null,0]
[1,1,2,9,"Terminations of contract (clause 9) F:____________ V:____________ T:____________","Item",1,null,0]
[1,1,3,10,"Claims and disputes (clause 10)  F:____________ V:____________ T:____________","Item",1,null,0]
[1,1,3,null,"SECTION B: SANS 1921-1:2004 (Edition 1): CONSTRUCTION AND MANAGEMENT REQUIREMENTS FOR WORKS CONTRACTS: PART 1","H2"]
[1,1,3,null,"Refer to the SCOPE OF WORK for detail requirements:"]
[1,1,3,11,"Scope (clause 1)  F:____________ V:____________ T:____________","Item",1,null,{"$f":"G31*H31","v":0}]
[1,1,3,12,"Normative references (clause 2)  F:____________ V:____________ T:____________","Item",1,null,0]
[1,1,3,13,"Definitions (clause 3)  F:____________ V:____________ T:____________","Item",1,null,0]
[1,1,3,14,"Requirements for construction & management (clause 4)  F:____________ V:____________ T:____________","Item",1,null,0]
[1,1,3,15,"General (Clause 4.1)  F:____________ V:____________ T:____________","Item",1,null,0]
[1,1,3,16,"Responsibilities for design and construction (clause 4.2)  F:____________ V:____________ T:____________","Item",1,null,0]
[1,1,3,17,"Planning, programme and method statements (clause 4.3)  F:____________ V:____________ T:____________","Item",1,null,0]
[1,1,3,18,"Quality assurance (clause 4.4)  F:____________ V:____________ T:____________","Item",1,null,0]
[1,1,3,19,"Setting out (clause 4.5)  F:____________ V:____________ T:____________","Item",1,null,0]
[1,1,4,20,"Management and disposal of water (clause 4.6)  F:____________ V:____________ T:____________","Item",1,null,0]
[1,1,4,21,"Blasting (Clause 4.7)  F:____________ V:____________ T:____________","Item",1,null,0]
[1,1,4,22,"Works adjacent to services and structures (clause 4.8)  F:____________ V:____________ T:____________","Item",1,null,0]
[1,1,4,23,"Management of the Works and site (clause 4.9)  F:____________ V:____________ T:____________","Item",1,null,0]
[1,1,4,24,"Earthworks (clause 4.10)  F:____________ V:____________ T:____________","Item",1,null,0]
[1,1,4,25,"Testing (clause 4.11)  F:____________ V:____________ T:____________","Item",1,null,0]
[1,1,4,26,"Materials, samples and fabrication drawings (clause 4.12)  F:____________ V:____________ T:____________","Item",1,null,0]
[1,1,4,27,"Equipment (clause 4.13)  F:____________ V:____________ T:____________","Item",1,null,0]
[1,1,4,28,"Site establishment (clause 4.14)  F:____________ V:____________ T:____________","Item",1,null,0]
[1,1,4,29,"Survey control (clause 4.15)  F:____________ V:____________ T:____________  As built survey information prepared by an engineering surveyor to be submitted upon request to the engineer.","Item",1,null,0]
[1,1,4,30,"Temporary works (clause 4.16)  F:____________ V:____________ T:____________","Item",1,null,0]
[1,1,5,31,"Existing services (clause 4.17)  F:____________ V:____________ T:____________  The Contractor to ensure that temporary supplies for water and electricity (Externally sourced and not via the Hospital's connection) are available on site to meet the project demands and to achieve continuity of the works on site.","Item",1,null,0]
[1,1,5,32,"Health and safety (clause 4.18)  F:____________ V:____________ T:____________  The Contractor shall provide all PPE requirements for all employees and visitors to the site, during the execution of the works.  The Contractor to ensure that all costs relating to the Covid 19 regulations and guidelines are included in the tender price)","Item",1,null,0]
[1,1,5,33,"Environmental requirements (clause 4.19)  F:____________ V:____________ T:____________","Item",1,null,0]
[1,1,5,34,"Alterations, additions, extensions and modifications to existing works (clause 4.20)  F:____________ V:____________ T:____________","Item",1,null,0]
[1,1,5,35,"Inspection of adjoining structures, services, buildings and property (clause 4.21)  F:____________ V:____________ T:____________","Item",1,null,0]
[1,1,5,36,"Attendance on nominated and selected subcontractors (clause 22)  F:____________ V:____________ T:____________","Item",1,null,0]
[1,1,5,null,"SECTION C: SCOPE OF WORK IN ACCORDANCE WITH SANS 10403","H1"]
[1,1,5,null,"(The reference to Clauses refer to Table B.1 of SANS 1921-1:2004)"]
[1,1,6,37,"Certification by recognised bodies (clause 4.4)  F:____________ V:____________ T:____________  The contractor shall provide all original certification of compliance in respect of all specialist installations and compliance testing as deemed necessary or as stipulated by the engineer.Payment will be withheld in the abscence of the provision of original compliance certificates.","Item",1,null,{"$f":"G59*H59","v":0}]
[1,1,6,38,"Agrément certificates (clause 4.5)  F:____________ V:____________ T:____________","Item",1,null,0]
[1,1,6,39,"Other services and facilities (clause 4.8)  F:____________ V:____________ T:____________","Item",1,null,0]
[1,1,6,40,"Recording of weather (clause 5.2)  F:____________ V:____________ T:____________  A rain gauge shall be provided on site for the duration of the contract. A diary shall be maintained with all rainfall records and thereafter submitted to the engineer at every site meeting.","Item",1,null,0]
[1,1,6,41,"Management meetings (clause 5.3)  F:____________ V:____________ T:____________","Item",1,null,0]
[1,1,6,42,"Daily records (clause 5.6)  F:____________ V:____________ T:____________","Item",1,null,0]
[1,1,6,43,"Bond and guarantees (clause 5.7)  F:____________ V:____________ T:____________","Item",1,null,0]
[1,1,6,44,"Permits (clause 5.9)  F:____________ V:____________ T:____________","Item",1,null,0]
[1,1,6,45,"Proof of compliance with the law (clause 5.10)  F:____________ V:____________ T:____________","Item",1,null,0]
[1,1,7,null,"SECTION D: SPECIFICATION DATA ASSOCIATED WITH SANS 1921-1:2004 (Table A.1)","H1"]
[1,1,7,46,"Requirements for drawings, information and calculations for which the contractor is responsible (clause 4.1.7)  F:____________ V:____________ T:____________","Item",1,null,{"$f":"G69*H69","v":0}]
[1,1,7,47,"The responsibility strategy assigned to the contractor for the works (clause 4.2.1)  F:____________ V:____________ T:____________","Item",1,null,0]
[1,1,7,48,"The planning, programme and method statements (clause 4.3)  F:____________ V:____________ T:____________","Item",1,null,0]
[1,1,7,49,"Samples of materials, workmanship and finishes (clause 4.12.1)  F:____________ V:____________ T:____________","Item",1,null,0]
[1,1,7,50,"Fabrication drawings that the contractor is to provide and deliver to the employer (clause 4.12.2)  F:____________ V:____________ T:____________","Item",1,null,0]
[1,1,7,51,"  F:____________ V:____________ T:____________","Item",1,null,0]
[1,1,7,52,"Telephone (clause 4.14.3)  F:____________ V:____________ T:____________","Item",1,null,0]
[1,1,7,53,"Office for inspector of works (clause 4.14.3)  F:____________ V:____________ T:____________","Item",1,null,0]
[1,1,7,54,"Telephone in office for inspector of works (clause 4.14.3)  F:____________ V:____________ T:____________","Item",1,null,0]
[1,1,7,55,"Sheds (clause 4.14.3)  F:____________ V:____________ T:____________","Item",1,null,0]
[1,1,8,56,"Provision and erection of signboards (clause 4.14.6)  F:____________ V:____________ T:____________","Item",1,null,0]
[1,1,8,57,"Termination, diversion or maintenance of existing services (clause 4.17.1)  F:____________ V:____________ T:____________","Item",1,null,0]
[1,1,8,58,"Services which are known to exist (clause 4.17.3)  F:____________ V:____________ T:____________","Item",1,null,0]
[1,1,8,59,"Detection apparatus (clause 4.17.4)  F:____________ V:____________ T:____________","Item",1,null,0]
[1,1,8,60,"Additional health and safety requirements (clause 4.18)  F:____________ V:____________ T:____________","Item",1,null,0]
[1,1,8,null,"SECTION  E: SPECIFIC PRELIMINARIES","H1"]
[1,1,8,null,"Section E contains Specific Preliminary items which apply to this contract except where \"N/A\" ( Not Applicable) appears against the item."]
[1,1,8,61,"PROPRIETARY BRANDED PRODUCTS The tenderer shall take delivery of, handle, store, use apply and/or fix all proprietary branded products in strict accordance with the manufacturers' instruction after consultation with the manufacturer's authorised representative.F:____________ V:____________ T:____________","Item",1,null,{"$f":"G86*H86","v":0}]
[1,1,8,62,"OVERTIME Should overtime be required to be worked for any reason whatsoever, the costs of such overtime are to be borne by the Contractor unless the Engineer has specifically authorised in writing, prior to the execution thereof, that costs for such overtime are to be borne by the Employer.F:____________ V:____________ T:____________","Item",1,null,0]
[1,1,9,63,"AS BUILT DRAWINGS The position of construction breaks and the extent of individual concrete pours are to be recorded by the contractor on the Structural Engineer's drawings and are to be submitted to the Engineer for their records. F:____________ V:____________ T:____________","Item",1,null,0]
[1,1,9,64,"SITE INSTRUCTIONS  Site instructions issued on site are to be recorded in triplicate in a site instruction book which is to be maintained on site by the contractor.  F:____________ V:____________ T:____________","Item",1,null,0]
[1,1,9,65,"LABOUR RECORD At the end of each week for the full duration of the contract, the contractor shall provide the Engineer with a written record, in schedule form, reflecting the number and description of tradesmen and labourers employed by him and all sub-contractors on the works each day. The contractor shall provide the completed local labour forms , records and schedules together with all supporting documentation ( certified ID copies , employee details, wage rates, proof of payment , period of employment, employment contracts, etc). The client reserves the right to conduct random inspections on site to verify the local labour employed on the project.F:____________ V:____________ T:____________","Item",1,null,0]
[1,1,9,66,"PLANT RECORD At the end of each week the Contractor shall provide the Engineer with a written record, in schedule form, reflecting the number, type and capacity of all plant, excluding hand tools,  currently used on the works.F:____________ V:____________ T:____________","Item",1,null,0]
[1,1,9,67,"NON CESSION OF MONIES The Contractor shall not cede nor assign his rights or claims to any monies due or to become due under this contract.F:____________ V:____________ T:____________","Item",1,null,0]
[1,1,10,68,"SECTIONAL COMPLETION  It is required that the contract be executed in sections or portions, the Tenderer shall allow for all costs in this regard as no claim for additional costs will be entertained The tenderer to refer to the attached phasing and decanting plan in this regard.F:____________ V:____________ T:____________","Item",1,null,0]
[1,1,10,69,"IMPORT PERMITS AND DUTIES  The responsibility for obtaining the necessary import permits shall rest with the successful Tenderer.  No foreign exchange will be arranged or provided by the Administration.  Tenderers are to allow in their tenders and pay the ordinary levy imposed on imported items in terms of item 196.10 of Part 8 of Schedule No. 1 of the Customs and Excise Act, 1964 with effect from 1 October 1989.  F:____________ V:____________ T:____________","Item",1,null,0]
[1,1,10,70,"CONTRACT PRICE ADJUSTMENT PROVISIONS (CPAP) - This Contract will be subject to contract price adjustment.  F:____________ V:____________ T:____________","Item",1,null,0]
[1,1,10,null,"EXPANDED PUBLIC WORKS PROGRAMME (EPWP) CONDITIONS AND SPECIFICATIONS"]
[1,1,10,null,"11.1 EMPLOYMENT TARGETS"]
[1,1,10,null,"E11.1 a. Employment Targets"]
[1,1,11,71,"The Contractor needs to provide a realistic estimate on the number of jobs that the project has the potential to create throughout the project duration, as the project will be implemented using Labour Intensive Construction methods on elements where it is economical and feasible. No. of jobs estimated to be created equals to a minimum of 140 unskilled labour for the duration of the project, either by being employed by the main or subcontrator.  It is a general requirement of this contract that persons normally resident in the ward of the works (local labour) be given preference for employment on the contract. Provided, however, that should adequate and appropriate labour not be available within the ward, others may be employed subject to satisfactory proof being provided that every reasonable endeavour has been made to employ local labour (Local Sub-contractor(s); Skilled; Semi-Skilled and Unskilled). The Contractor shall in consultation with the local community leaders (Project Steering Committee) with the purpose of negotiating with them regarding the utilization of local resources in the construction process. In this regard, the Contractor shall furthermore give preference, wherever possible to the employment of single heads of households, women and youth as well as families declared as most indigent by War on Poverty/ Sukuma Sakhe programme profiling process. The Contractor should aim, in general, to maximise the involvement of the local community, however workers from other communities should not exceed 20% of all persons working on the project, where local Employees possess skills at a level of competency that meets Contractor's requirements.  F:_____________ V:_____________ T:_____________","Item",1,null,{"$f":"G99*H99","v":0}]
[1,1,11,null,"E11.1 b. Employment Requirements"]
[1,1,11,72,"Tenderers are advised that this contract will be subject to the Expanded Public Works Program (EPWP) aimed at alleviating and reducing unemployment.  Tenderers must allow for any costs for the following employment requirements of the EPWP;  1. 60% of unskilled labour to be women 2. 55% of the unskilled labour to be youth aged between 18 and 35 years 3. 2% of the unskilled labour to be people with disabilities  100% Unskilled labour utilised must reside within the boundaries of the Municipality ward where this contract is executed, with preference to the local community closest or at a walking distance to the contract site. Wherever possible, local skilled tradesmen are to be employed on this contract with the view to maximize utilization of local resources.  F:_____________ V:_____________ T:_____________","Item",1,null,{"$f":"G101*H101","v":0}]
[1,1,12,73,"E11.1 c. Labour Rate and Payment Intervals  The Contractor should ensure that labour rate paid to unskilled local labour is commensurate to the daily task. When determining the rate, consideration should be given to that EPWP beneficiaries are mostly bread winners in their families, as the program intends alleviating poverty. There should also be consideration that the labour rate promotes creation of expanded number of jobs created and person days of work.  Contractors should make endeavours to ensure that labourers, particularly unskilled are remunerated on a fortnight basis and prior notification be made should there be a shortfall on their wages.  The labour rate for local unskilled shall also be determined in consideration of the location of the project, i.e. projects implemented in urbanized municipalities will not be the same as that for rural municipalities.  F:_____________ V:_____________ T:_____________","Item",1,null,0]
[1,1,12,null,"11.2 LABOUR INTENSIVE CONSTRUCTION METHOD"]
[1,1,12,null,"E11.2 a Labour Intensive Construction Method"]
[1,1,13,74,"Those parts of the contract to be constructed using Labour Intensive methods will be marked in the Bill of Quantity with letter LI (indicating Labour Intensive) against every item so designated. Such works will only be constructed using the method so indicated.  Reference to be made to Guidelines for the implementation of Labour Intensive Infrastructure projects under EPWP. \"Scope of Work in Respect of Work Relating to the Expanded Public Works Programme (EPWP)\"Labour Intensive ComponentDue to the nature of the work involved, this type of project lends itself to be feasible as a labour Intensive project i.e. the construction activities will indeed require skilled/unskilled labour. The aim of the projects is to provide some form of economic benefit whilst generating and increasing the acquired skills shortage to improve sustainability in the local area. The following are potential focus areas where employment creation can be optimized per project:(i) "]
[1,1,13,null,"E11.3 RECORD KEEPING"]
[1,1,13,75,"11.3.1 Every Employer must keep in the project site office the following; minutes of site progress meetings; Contractors’ monthly site progress reports; accurately recorded attendance register; proof of payment as means to verify authenticity of data in the EPWP beneficiary form submitted with payment certificates. Copies of submitted EPWP beneficiary data forms should also be kept in the site office.  F:_____________ V:_____________ T:_____________","Item",1,null,{"$f":"G107*H107","v":0}]
[1,1,14,76,"11.3.2 The Employer must keep this record for a period of at least three (3) years after the completion of the project in his/her office as the project site office would have been relocated.This should be safely kept for job creation data verifications and periodical audits on projects conducted by National and Provincial  Department of Public Works  after one (1) or two (2) quarters of submitting captured EPWP data to the National EPWP co-ordinating Department. F:_____________ V:_____________ T:_____________","Item",1,null,0]
[1,1,14,null,"E11.4 EPWP MONTHLY REPORTING DOCUMENTS"]
[1,1,14,77,"At the end of each month the Contractor must submit:EPWP monthly data collection formWorker monthly payment upload Worker monthly acknowledgement of receipt of payment Worker monthly Payment register Worker monthly training formMonthly attendance RegisterWorker Monthly pay slips Unskilled labour certified ID copies (once off)Beneficiary ID-size photosProof of UIF Proof of COIDAF:_____________ V:_____________ T:_____________","Item",1,null,{"$f":"G110*H110","v":0}]
[1,1,14,null,"E11.5 EPWP PROMOTION"]
[1,1,14,null,"11.5.1. EPWP signage board"]
[1,1,14,78,"EPWP Program at the project level shall always be promoted through the provision of projects signage board that embraces EPWP logo at the bottom, correct measurement for this sign board will be provided by the project leader during the site handing over meeting.  F:_____________ V:_____________ T:_____________","Item",1,null,{"$f":"G113*H113","v":0}]
[1,1,14,null,"11.5.2 Branding of labour apparel"]
[1,1,15,79,"Contractor & Sub-contractors’ labourers shall be provided with EPWP branded Personal Protective Equipment (PPE), reflector vest with EPWP acronym at the back as an ideal and cost effective means of promoting the program on site.  The Contractor is advised to price for both items 11.5.1 and 11,5.2  F:_____________ V:_____________ T:_____________","Item",1,null,{"$f":"G115*H115","v":0}]
[1,1,15,null,"E11.6 COMMUNITY LIAISON OFFICER (CLO)"]
[1,1,15,null,"UTILISATION OF A COMMUNITY LIAISON OFFICER "]
[1,1,15,null,"The Contractor shall allow for and pay any and all costs necessary for the engagement of the services of a Community Liaison Officer (CLO) for the full duration of this contract. A CLO will be identified by the local structures (Project Steering Committee) of the ward areas and appointed, following fair and transparent interviewing process, to be conducted in the presence of local structures and the Contractor representative, in order to assist the Contractor in the procurement of any local labour, etc. required for this project. The Contractor is to liaise with the CLO and afford him any assistance needed in ensuring sound working relations with the local community."]
[1,1,16,null,"Key responsibilities of the CLO are envisaged to include and not necessarily be limited to:  1. Assisting local leadership in conducting skills and resources audit which facilitates sourcing labour from within the ward or targeted areas for employment, as required by Contractor.  2. Assisting in sourcing labour-only domestic Sub-contractors and the procurement of materials from local resources, as required by the Contractor.  3. Assisting the Contractor by identifying areas of potential conflict and or threats to the project or to stakeholders in the project and recommend appropriate action to the Contractor.  4. Assisting Contractor and stakeholders in the project in the resolution of any conflicts which may arise.  5. Establishing and ensuring that sufficient and open communication channels between the Contractor and the work force are maintained.  6. Establish and ensuring that efficient and open communication channels between the Contractor and the community are maintained.  7. Identifying and reporting to the Contractor regarding issues where communication between stakeholder is necessary, recommend courses of action and facilitate such communications.  8. Assisting the Contractor and the workforce in the establishment of grievance procedures and necessary recommendations to the Contractor regarding the grievances and solution thereto.  9. Attending to site meetings and project implementation meetings as required by the Contractor and preparing periodic reports as may be required by the Contractor, from time to time.  10. Attending to such other duties which are consistent with the functions of a CLO, as may be required by the Contractor, from time to time. "]
[1,1,16,80,"Tenderers are to price twice the rate of unskilled local labour rate for the Community Liason Officer (CLO) against this item for any and all costs arising out of compliance with the foregoing and in the event of a Tenderer failing to price against this item or making inadequate financial provision against this item for compliance as aforesaid, then no claim for costs or additional cost incurred will be entertained by the Head: Public Works.  F:_____________ V:_____________ T:_____________","Item",1,null,{"$f":"G120*H120","v":0}]
[1,1,17,null,"E11.7 SKILLS DEVELOPMENT ON SITE"]
[1,1,17,81,"The Contractor is conforming to the objectives of EPWP if his beneficiaries are capacitated with skills that will render them employable in the future. It is then the responsibility of the Contractor that mandatory life skills are provided to 100% of workforce on site and on the job training to labourers from whom the potential for further development has been identified. The latter is not mandatory to all as it covers technical skills.  The Contractor should also make provision for the possibility that there might be local youth that will need to be placed on the project with an intention to be provided support towards improving their level of competency and productivity.  The Contractor shall also provide all necessary on-the-job training to targeted labour to enable such labour to master and advance on techniques required to undertake the work in accordance with requirements of the contract in a manner that does not compromise workers health and safety.  F:_____________ V:_____________ T:_____________","Item",1,null,{"$f":"G122*H122","v":0}]
[1,1,17,null,"E11.8 SUB-CONTRACTING FOR LOCAL EMERGING ENTERPRISES"]
[1,1,18,null,"The project can support the notion of one main contractor to be appointed whilst several subcontractors, possibly from the local Small, Medium and Micro Enterprises (SMME) group, are employed to undertake various smaller activities. Subcontracting must be concentrated on businesses in the local community and subcontractors must be CIDB registered.Two alternatives can be applied for setting out work for sub-contractors, i.e. full responsibility (provide their own plant, materials and labour) or secondly the main contractor remains responsible for the supply of plant and materials, while the sub-contractor is responsible for implementation, thus providing the skills and labour content only for the various construction activities.The contractor will be required to appoint a reasonable number of local (within a 50km radius of the construction site) emerging sub-contractors to undertake work to the minimum of 30% of the contract value on the various service areas but not limited to the following services:General Building Works:Masonry Carpentry and Joinery Floor FinishesTiling Paintwork Joinery Fittings Plumbing (internal and external)PlasteringCivil Works:Paving Landscaping This percentage excludes the costs of employing local unskilled labour. A minimum of 5% of the total number of the appointed emerging subcontractors must be owned by females who have more than 50.1% ownership of their company/organization. SMME represent an important vehicle to address the challenges of job creation, economic growth and equity in our country. SMMEs are playing a critical role in absorbing labour, penetrating new markets and generally expanding economies in creative and innovative ways.F…………………………………..V…………………..T………………………………"]
[1,1,19,82,"11.8.1 Sub-contractor Procedure  The recommendation will be that the Contractor shall advertise and call for competitive tenders in respect of each portion of the works that are required to be subcontracted. The tenders received are then evaluated by both the Employer and the Contractor. The evaluation panel shall comprises equal representatives from the Employer and from the Contractor.  The Contractor shall without delay enter into contract with the successful tendering Subcontractor based on their accepted tender submission.  This will promote the cost effective participation and development of smaller registered Contractors in larger valued contracts without losing single point of accountability for projects. This will allow the emerging Contractors to tender for work in a fair, transparent and equitable manner rather than having to negotiate such contracts with the Main Contractor. Also guarantees the participation of Contractors registered in lower Contractor grading designation.  F:____________ V:____________ T:_____________","N/A"]
[1,1,19,83,"11.8.2 Sub-contractor MentoringOnce the Sub-contractors have been identified and engaged, the Contractor shall closely monitor their performance in the execution of their contracts. The Contractor will be responsible for drawing implementation plan that will assist in managing the development of Sub-contractors undertaking Labour Intensive work.The Contractor will be responsible for management of the Sub-contractors and to ensure that they comply with all EPWP requirements as set-out in this specification.The Contractor and Sub-contractors will be required to compile monthly progress reports to be submitted with payment certificates. The reports shall include planned targets with regards to the works and employment, employment of EPWP beneficiaries and project expenditure. Failure to produce monthly reports will render payment certificates incompleteThe Contractor will be required to assist, train, mentor and monitor its Sub-contractors and report through monitoring tool on progress of each Sub-contractor.F:____________ V:_____________ T:______________","N/A"]
[1,1,20,84,"11.8.3 Portfolio of EvidenceThe Contractor is to develop and /or maintain a portfolio of evidence for each Sub-contractor. The Portfolio of Evidence is a collection of proof of the training, coaching, guidance and monitoring inputs provided to the Sub-contractor. It is the document which records the development progress of the Sub-Contractor and will need to be updated continually throughout the duration of the contract. The Portfolio of Evidence should include but not limited to the following documentation:The development path designed for each Sub-Contractor,The Training course completed by the Sub-Contractor,The hours of guiding, coaching and mentoring received for each activity listed in the developmental plan,A list of outcomes achieved at each level for each activity.F:_____________ V:_____________ T:_____________","N/A"]
[1,1,20,null,"Performance and PenaltiesThe Contractor performance will be monitored throughout the contract. Should the Contractor fail to fulfil his obligation he will be liable for penalties. Payment of the penalty shall not absolve the Contractor of any claim, or relieve the Contractor of any of his duties, obligations or responsibilities under the contract.  Utilisation of the Sub-ContractorsThe Contractor’s achievement of the targets will be measured quarterly to determine the progress made to date."]
[1,1,20,85,"11.8.4 Local SuppliersLocal material suppliers within the vicinity of the site to be utilise as long as their materials meets the required specification. However, quality and suitability would have to be checked by the Employer, if the local suppliers are unable to meet the demand the nearest suitable suppliers are to be used. Production of materials should be done on site, where economies of scale allow e.g. concrete paving blocks should be encouraged which will enable employment creation and also allow for enterprise development.F:_____________ V:_____________ T:_____________","N/A"]
[1,1,22,86,"11.8.5 TENDERER’S TO NOTE CONDITIONSa) The contract to be entered into between the Contractor and the PPG’s will be a LABOUR ONLY sub-contract.b) The Contractor will be responsible for ensuring that all materials for use by the PPG’s in the works are to be on site timeously. The Contractor shall liaise with the Mentor and PPG to determine the nature and extent of materials required and the lead time necessary.c) The Contractor shall be responsible for the overall programming of the Works and he is to allow for monitoring the PPG’s programme and progress.d) In conjunction with the Mentor, he is to allow for the supervision and mentoring (where necessary) of the PPG to ensure quality and adherence to standard building practice.e) The Contractor is to allow for extra storage facilities on site for the PPG’s tools and equipment.f) Basic tools shall be provided by the PPG’s and where these are not available, the Contractor will supply him with the necessary tools and equipment and deduct the costs thereof from the interim claims made by the PPG.g) Work requiring specialized tools will be provided free of charge by the Contractor with the provision that these be returned upon completion of the Work. CO-ORDINATIONThe Contractor is to co-ordinate the work of all the PPG’s, Sub-Contractors and Nominated Sub- Contractors appointed direct by the Employer in such a manner and at all times as will suit the building programme and he is to allow adequate access, for the PPG’s, where required, to carry out their work in an efficient manner as no claims for extras in this connection will be entertained.ATTENDANCEThe Contractor may allow for attendance upon the PPG’s concerned to execute the work. The Contractor is to allow the PPG’s the use of any scaffolding belonging to him while it remains so erected on the site.Where scaffolding is necessary for the use by any PPG and the Contractor has not erected any for his own use or has removed same after his own use, the Contractor shall supply sufficient scaffolding to the PPG to be erected and dismantled by the PPG and returned to the Contractor.This attendance upon PPG’s to execute the work is to include for the scaffolding provisions as aforesaid and, in addition, is to include for co-operating to the fullest extent with all the parties, attending on off-loading materials, providing suitable storage for tools and materials used by the PPG’s, use of general facilities such as latrines, etc., supply and cost of power, lighting, water and the like.F:_____________ V:_____________ T:_____________","N/A"]
[1,1,22,null,"E11.9 EPWP CONTRACT FOR LABOUR"]
[1,1,22,87,"It is compulsory that shortly after the Contractor and or Sub-contractor has appointed local labour, the employment contract should be signed by both parties, prior to commencement with works on site. The employment contract forms part of the Ministerial Determination or from the regional EPWP officials.  F:_____________ V:_____________ T:_____________","Item",1,null,{"$f":"G132*H132","v":0}]
[1,1,22,null,"E11.10 EPWP SCOPE OF WORKS FOR THIS PROJECT"]
[1,1,22,88,"Contractors are to price any item on the Bill of Quantities highlighted below, bearing in mind that they are regarded as main sources of job creation, whether Sub-contracted or undertaken by the Main Contractor.Elements on the scope of work where the application of Labour Intensive Construction methods are indicated with letters (LI) are as follows:i) Excavating trenches for foundations and any other civil works with the  depth not more than 1.5 m ii) All masonry works which include concrete mixing on site; brickwork; plastering; screed works; jointing; etc.iii) Painting, Plumbing, Ironmongery; roof cladding; glazing; tilling; carpentry; flooring; waterproofing; etc.iv) External works such as landscaping; cleaning; paving; fencing; tarmac; etc.F:_____________ V:_____________ T:_____________","Item",1,null,{"$f":"G134*H134","v":0}]
[1,1,22,89,"Provide and maintain a condom dispenser in terms of Clause 5.1a  F:____________ V:____________ T:____________","Item",1,null,0]
[1,1,23,90,"  F:____________ V:____________ T:____________","Item",1,null,0]
[1,1,23,91,"HIV /Aids Awareness Programme on Site for not less than 90% of workers inclusive of all direct and indirect costs; Engage a qualified service provider as described in the scope of works to conduct an HIV Awareness Programme  in terms of Clause 5.2.1aF:____________ V:____________ T:____________","Item",1,null,0]
[1,1,23,92,"Arrange for workers to attend the HIV Awareness Programme in terms of Clause 5.2.1b  F:____________ V:____________ T:____________","Item",1,null,0]
[1,1,23,93,"REPORTING  Prepare and attach to claims for payment a brief report in terms of Clause 5.3 (see also HIV/STI Compliance Report (included with this document).  F:____________ V:____________ T:____________","Item",1,null,0]
[1,1,23,94,"OCCUPATIONAL HEALTH AND SAFETY ACT NO. 85 OF 1993  Tenderers are to allow for all costs in providing a project specific ' Construction Phase Safety, Health and Environmental Plan' in accordance with Annexure 6, the project specific Health and Safety specification. F:____________ V:____________ T:____________","Item",1,null,0]
[1,1,23,95,"NOTICE BOARD, SITE OFFICE, ETC  Bidders are to allow for the provision and removal of a project notice board and a site office in accordance with the Engineers requirements.  F:____________ V:____________ T:____________","Item",1,null,0]
[1,1,23,96,"IMPORTED MATERIALS AND EQUIPMENT  Where imported items are listed in the tender documents, the tenderer shall provide all information called for, failing which the price of any such item, material or equipment shall be excluded from currency fluctuations.  F:____________ V:____________ T:____________","Item",1,null,0]
[1,1,24,97,"CONTRACT DOCUMENTSThe drawings issued with these Bid documents do not comprise the complete set but serves as a guide only for Bidding purposes and for indicating the scope of works to enable the Tenderer to acquaint him with the nature and extent of the works and the manner in which they are to be executed.Should any part of the drawings not be clearly legible to the Tenderer he shall, before submitting his Bid, obtain clarification in writing from the Engineer. F:____________ V:____________ T:____________","Item",1,null,0]
[1,1,24,98,"GENERAL PREAMBLES  The Document Preambles will be the “ASAQS General Preambles for Trades (2017 edition)” and shall be read in conjunction with the Bills of Quantities and be referred to for the full descriptions of work to be done and materials to be used.  F:____________ V:____________ T:____________  ","Item",1,null,0]
[1,1,24,99,"TRADE NAMES  Wherever a Trade Name for any product has been described in the Bills of Quantities the Tenderer's attention is drawn to the fact that any other product of equal quality may be used subject to the written approval of the Engineer being obtained prior to the closing date for submission of Bids.  F:____________ V:____________ T:____________","Item",1,null,0]
[1,1,24,100,"E19"]
[1,1,25,101,"INACCURATE AND DEFECTIVE WORK EXECUTED UNDER PREVIOUS CONTRACT  The contractor shall, after taking possession of the site and before commencing the work, check all levels, liners, profiles and the like and satisfy himself as to the dimensional accuracy of all work executed under the previous contract which may affect his work.  Should any inaccurate or defective work be found, the contractor shall immediately notify the Engineer in writing requesting his instructions with regard thereto and afford every facility to those rectifying such inaccurate or defective work.  F:____________ V:____________ T:____________","Item",1,null,{"$f":"G147*H147","v":0}]
[1,1,25,102,"VIEWING THE SITE IN SECURITY AREAS  If the site is situated in a security area, the Tenderer must arrange with the Authorities to obtain permission to enter the site for Bidding purposes.  F:____________ V:____________ T:____________","Item",1,null,0]
[1,1,25,103,"COMMENCEMENT OF WORKS IN SECURITY AREAS  If the works falls within a security area, the contractor must arrange with the Authorities and give the necessary notices before commencement of the works. Should the contractor fail to make such arrangements, admission to the site may be refused and any additional costs will be for the contractor's account.  F:____________ V:____________ T:____________","Item",1,null,0]
[1,1,25,104,"ENTRANCE PERMITS TO SECURITY AREAS  If the works fall within a security area, the contractor shall obtain entrance permits for his personnel and workmen entering the area and shall comply with all regulations and instructions which may be issued from time to time regarding the protection of persons and property under control of the Authority.  F:____________ V:____________ T:____________","Item",1,null,0]
[1,1,26,105,"SECURITY CHECK OF PERSONNEL  The Engineer may require the contractor to have his personnel and workmen, or a certain number of them, security classified.  In the event of the Engineer requesting the removal of a person or persons from the works for security reasons, the contractor shall do so forthwith and shall thereafter ensure that such person or persons are denied access to the works and the site and/or to any document or information relating to the works.  F:____________ V:____________ T:____________","Item",1,null,0]
[1,1,26,106,"PROHIBITION ON TAKING PHOTOGRAPHS  In terms of article 119 of the Defence Act, 44 of 1957, it is prohibited to sketch or to take photographs of any military site or installation or any building or civil works thereon or to be in possession of a camera or other apparatus used for taking photographs, except when authorised thereto by or on behalf of the Minister.\"  The same prohibition is also applicable to all Correctional Institutions in terms of article 44.1(e) of the Correctional Services Act 8 of 1959.  F:____________ V:____________ T:____________","Item",1,null,0]
[1,1,26,108,"PROTECTION OF EXISTING  Every care shall be taken to protect all parts of the building and ground against disfigurement of any kind. The contractor shall be responsible for any damage caused to vehicles, persons or property by his operations, and he will be required to supply and maintain such temporary measures as are required, to prevent such damage.  F:____________ V:____________ T:____________","Item",1,null,0]
[1,1,27,109,"ACCESS  The contractor is to allow for all costs associated with sites having restricted access due to location, road conditions, etc. The contractor to note the site has extremely restricted access and in some instances , restricted access may affect the delivery of materials etc. The contractor to accordingly ensure the most suitable and effective access routes are investigated and implemented to achieve continuity of the works.  F:____________ V:____________ T:____________","Item",1,null,0]
[1,1,27,110,"SAFETY TO THE SITE  All scaffolding, protection, machinery and tools on the site shall be erected, used and/or maintained in accordance of the requirements of the Occupational Health and Safety Act (85/1993) as amended and any regulations thereto.  All relevant local authority bylaws shall also be complied with. The contractor to provide suitable hoarding to demarkate the area of the construction works from the other adjacent operational areas. All open excavations and incomplete construction work to be cordined off with danger tape.  F:____________ V:____________ T:____________","Item",1,null,0]
[1,1,27,111,"ASBESTOS CEMENT  All preparatory work, alterations, demolitions, etc. to existing asbestos cement roof sheeting, gutters, rainwater pipes, etc. are to be carried out strictly in accordance with statutory requirements (Occupational Health and Safety Act, 1993 - Asbestos Regulations, 2001) and all necessary precautions must be taken when working with and disposing of asbestos cement products and the disposing of waste resulting from cleaning operations, etc.  Allowance is to be made for costs associated with compliance with these Regulations.  F:____________ V:____________ T:____________","Item",1,null,0]
[1,1,27,112,"EXISTING PREMISES OCCUPIED  The Contractor shall carry out the whole of the works with as little mess and noise as possible and with a minimum of disturbance to adjoining building and occupants. He shall provide proper protection and provide, erect and remove when directed, any temporary tarpaulins, temporary fences that may be necessary during the progress of the works, all to the satisfaction of the Engineer.  F:____________ V:____________ T:____________","Item",1,null,0]
[1,1,28,113,"COMMUNITY LIAISON OFFICER (CLO)  The Contractor shall allow for and pay any and all costs necessary for the engagement of the services of a Community Liaison Officer (CLO) for the full duration of this contract.  A CLO will be identified by the local structures (Project Steering Committee) of the ward areas and appointed, following fair and transparent interviewing process, to be conducted in the presence of local structures and the Contractor representative, in order to assist the Contractor in the procurement of any local labour, etc. required for this project. The Contractor is to liaise with the CLO and afford him any assistance needed in ensuring sound working relations with the local community.  F:____________ V:____________ T:____________","Item",1,null,0]
[1,1,28,114,"SITE SECURITY  The contractor shall allow for site security, which shall be responsible for removal of disruptive elements, that may interrupt the progress of the contract through acts such as, but not limited to, intimidation, threats of disruption, violent disruption, or criminal and illegal activity by the local community or independent organisations or entities that may result in slowing down or partial or total stoppage of the works.  F:____________ V:____________ T:____________","Item",1,null,0]
[1,1,28,null,"E34 PENALTY FOR POWER INTERRUPTIONIt is required that the Contractor take all necessary steps tomitigate power interruptions to the facility or any part of thefacility due to negligence. F: ___________ V: ____________ T:____________ ","Item",1,null,0]
[1,1,28,null,"E35 SITE REPRESENTATIVE  The names of the contractor's proposed management team shall be submitted to the Engineer prior to commencement on site and after the Engineer's agreement  on the composition and competence thereof has been obtained, no changes shall be made nor shall any member of the team be removed from the project while remaining in the employ of the contractor, without the Engineer's prior written approval  F: ___________ V: ____________ T:____________ ","Item",1,null,0]
[1,1,29,null,"E36 WORKS RISK  The use or occupation, after practical completion, of any part of the works by the employer, the employers servants or agents and those for whose acts or omissions they are responsible.  F: ___________ V: ____________ T:____________ ","Item",1,null,0]
[1,1,29,null,"E37 GENERAL INSURANCES  The contractor may, at his own cost, effect any insurances additional to that specified above which he deems necessary in his own interest to cover loss or damage not insured in terms of the insurances specified. Not withstanding anything contrary contained in this document, the contractor shall be liable for the deductible in all instances of a claim being made in terms of the insurance policies effected where the contractor is at risk for the damage  F: ___________ V: ____________ T:____________ ","Item",1,null,0]
[1,1,29,null,"E38 WORKS RISK  The use or occupation, after practical completion, of any part of the works by the employer, the employers servants or agents and those for whose acts or omissions they are responsible.  F: ___________ V: ____________ T:____________ ","Item",1,null,0]
[1,1,30,null,"E39 SECURITY  The contractor shall ensure that the construction guarantee is valid and enforceable until the certificate of practical completion is issued to the contractor and all payments reflected as due to the employer in the final payment certificate have been paid in full (herein after collectively \"the expiry events\"). If the terms of the construction guarantee specify its expiry date and the expiry events have not occurred 20(twenty) working days prior to the said expiry date, the contractor shall promptly extend the validity of the construction guarantee until the expiry events have occurred. If the contractor fails to extend the validity of the construction guarantee, the employer shall be entitled to payment from the contractor of the then guaranteed sum, which shall be retained by the employer as cash security. The Engineer shall accordingly and immediately issue a payment certificate certifying the guaranteed sum as a payment due to the employer. If the contractor fails to make payment of the amount certified upon presentation of the payment certificate, the employer may claim the amount under the construction guarantee.  Should the contractor be a joint venture, then each entity shall be jointly and severably liable to the employer for all obligations and liabilities in terms of this agreement. The amount so claimed against and paid under the construction guarantee shall be reimbursed by the contractor if and when the construction guarantee is reinstated, extended or substituted in compliance with the above (as case may be) and the Engineer shall forthwith issue a payment certificate certifying the amount so due to the contractor.  F: ___________ V: ____________ T:____________ ","Item",1,null,0]
[1,1,31,null,"E40 PREPARATION FOR AND EXECUTION OF THE WORKSImmediately on award of the contract and prior to the commencement on site, the contractor, in conjunction with the Engineer, shall agree the programme covering the first month of the construction period. During the first month of the construction period the contractor shall prepare and draw up  in conjunction with the Engineer the programme for the balance of the works.The Engineer shall have the right to modify such programme to accommodate changes necessary, in its opinion for coordinating the works as a whole.The contractor shall be responsible at all times for maintaining the accuracy, validity and reasonableness of the programme and implementation thereof. The programme shall be compiled based on the critical path method of programming and the critical activities are to be clearly highlighted. It shall be compiled in such a way that logic is not constrained by resource limitations unless specifically agreed otherwise by the Engineer. Quantities contained in the bill of quantities are provisional and shall be utilized as a guide only for the drawing up of the programme. Should the circumstances change to the extent where the contractor is of the opinion that changes to the programme are required, then the contractor shall submit a written request to the Engineer for such changes, clearly identifying the reasons for requiring such change. The contractor and Engineer shall thereafter agree such changes, if any. Should the Engineer be of the opinion that the programme requires revisions and not withstanding the fact that the request for such revision has not been received by the contractor, the Engineer shall be entitled to instruct the contractor to revise the programme accordingly, unless the contractor can submit reasonable justification for not doing so.The Contractor must provide a programme taking into consideration the decanting plan and all its associated activities. This programme is to be updated weekly and presented to the Engineer including the identification of all the activities that are delayed and the proposed plan for corrective action.F: ___________ V: ____________ T:____________ ","Item",1,null,0]
[1,1,31,null,"E41 TEMPORARY WORKS AND PLANTS  Office accommodation suitable for fifteen (15) persons for meetings held on the site is to be instated and shall be kept clean and fit for use by any employers agents at all times  F: ___________ V: ____________ T:____________ ","Item",1,null,0]
[1,1,32,null,"E42 COMPLETIONThe contractor shall not receive any mark-up for overheads and profit on any omission of tenant installation work by others. Claims of loss of profit shall not be entertained.In order to achieve practical completion of the various sections of works and without derogating from the generality of the term practical completion, the contractor shall, as a minimum, comply with the following basic criteria. These criteria should not be regarded as comprehensive but as an expansion of the term practical completion. ACCESSAt the date of practical completion, all building entry and exit points including all fire escape routes and staircases must be fully completed with unobstructed access in every respect.SECURITYAll buildings to be handed over must be secure, doors fitted and lockable and all security and access control systems to be operative. All keys to be marked and tagged for handover. After practical completion, no person shall be allowed to access the facilities without prior consent by the occupants or management.ELECTRICALElectrical installation is to be completed and fully commissioned permanent power and lighting inclusive of all telephone and data installations.PLUMBINGPlumbing installation to be complete, commissioned permanent water supply and drainage tested. Pipework to be pressure tested.SPRINKLERS AND FIRE FIGHTING EQUIPMENTCompleted, commissioned tested and operational.FLOORS, CEILINGS AND GENERAL FINISHESCompleted and finished in accordance with Architect's layouts, interior specifications and schedules. All equipment to be installed, connected, commissioned and tested.All defects noted on the quality control sheets issued by the Engineer of the employer during the currency of the contract are to have been completed and attended to in their entirety.F: ___________ V: ____________ T:____________ ","Item",1,null,0]
[1,1,33,null,"E43 DECANTING PLAN  Compliance with the preliminary decanting and phasing plan The Tenderer to price for all costs associated with the decanting and phasing plan inclusive of hoarding and barricades, alternate access, protection of the existing work, etc.   F: ___________ V: ____________ T:____________  ","Item",1,null,0]
[2,1,34,null,"SECTION NO.2","H1"]
[2,1,34,null,"BILL NO.1","H1"]
[2,1,34,null,"ALTERATIONS AND DEMOLITIONS","H1"]
[2,1,34,null,"(CPAP WORK GROUP NO.102 UNLESS OTHERWISE STATED)","H1"]
[2,1,34,null,"The Contractor is referred to the relevant applicable Preambles in the annexed KZN DOH Standard Preambles to all Trades Rev. 3 Jan. 2009, KZN DOH General Electrical Specifications Sept. 2003, Project Specifications, etc. and the General Preambles to all trades (2017)"]
[2,1,34,null,"Unless otherwise stated herein, all items in this Bill shall be deemed to fall into Work Group No.102 for CPAP purposes."]
[2,1,34,null,"SUPPLEMENTARY PREAMBLES","H2"]
[2,1,34,null,"Work and materials","H3"]
[2,1,34,null,"The work to be done and the materials to be used in the works on site are to be similar to those specified in the new work so as they apply."]
[2,1,34,null,"Old materials","H3"]
[2,1,34,null,"Old materials specified to be set aside for re-use are to be carefully removed, dismantled as necessary, cleaned, stored, protected from weather and injury, repaired, overhauled and made good before re fixing.Old materials specified to be handed over are to be carefully made good and stored on the site where directed."]
[2,1,35,null,"Demolitions","H3"]
[2,1,35,null,"All demolition work is to be carried out in accordance with the Local by-laws and to the requirements of the Local Health Authorities.  All demolition is to be carried out in strict accordance with the instructions and to the satisfaction of the Principal Agent."]
[2,1,35,null,"Temporary coverings, screens, etc.","H3"]
[2,1,35,null,"The Contractor will be held responsible for any damage to property or goods in the existing buildings due to his not having taken adequate precautions and all damage caused is to be made good at his own expense.  He must allow for providing all necessary plastic or wood framed screens, partitions, tarpaulins, barriers, etc. to protect the work and prevent any nuisance from dust as may be required or directed."]
[2,1,35,null,"Damage to persons or property","H3"]
[2,1,35,null,"The Contractor will be held responsible for any damage to persons and property and for the safety of the structures and is to allow for protecting and indemnifying persons using the existing buildings from injury by virtue of the building operations, including providing necessary barriers, signs, etc."]
[2,1,35,null,"Making good","H3"]
[2,1,35,null,"Prices of all works described throughout these Bills of Quantities are to include for making good, whether specifically mentioned or not in all trades except painting, unless otherwise described."]
[2,1,36,null,"The Contractor must make good to existing work damaged or disturbed through alterations and to existing work remaining after doors, windows, screens, fittings, walls, etc. are removed, by fitting in short lengths of skirting, architrave's, etc. and taking out and making good suspended ceilings and floors on necessary joists, etc. plaster finishing to walls and ceilings and rendering, floor tiles, etc. to floors and for facing up walls with brickwork cut, toothed and bonded to existing with facing bricks, quarry tiles or common brickwork to receive finishing, unless otherwise described."]
[2,1,36,null,"All new materials in making good are to match existing and the work is to be left complete and perfect in every respect."]
[2,1,36,null,"Breaking down","H3"]
[2,1,36,null,"Breaking down walls is to include for breaking down faced brick, tiled or plastered walls, concrete beams or lintels occurring in same, for removing skirting, quadrants, cornices, pipework in walls, etc. fixed to same, for hacking up flooring in openings and for making good as previously described to walls, floors, ceilings, etc. unless otherwise described."]
[2,1,36,null,"Cutting through, etc.","H3"]
[2,1,36,null,"Cutting away from, breaking or cutting through is to include for neatly cutting through brick or concrete walls, floors, skirting, etc. leaving ends fair or preparing ends for extension, for facing up jambs, reveals, etc. with brickwork cut, toothed and bonded to existing and for flushing up concrete jambs, reveals, etc. in cement mortar."]
[2,1,36,null,"Taking out","H3"]
[2,1,36,null,"Taking out doors, screens, windows, fittings, etc. are to include for their removal complete with frames, ironmongery, glass, etc. for removing architrave's, quadrants, skirting, blinds, burglar guards and all accessories to walls, reveals and around openings, for cutting out cills, etc. hacking up flooring in openings and for making good as previously described to walls, reveals, etc. unless otherwise described."]
[2,1,37,null,"Taking out chalkboards, pinning boards, etc. is to include for their removal complete with surrounds, bearers, brackets, etc."]
[2,1,37,null,"Taking out shelves is to include for their removal complete with bearers, brackets, etc."]
[2,1,37,null,"Taking out cupboards, desks, bench fittings, bookshelves, etc. is to include for dismantling as necessary and their removal complete with doors, shelving, framing, bearers, raised bases, etc."]
[2,1,37,null,"Building up openings","H3"]
[2,1,37,null,"Building up openings is to include for cutting, toothing and bonding new brickwork to existing, for wedging up to underside of lintels over openings, for finishing built up portions with skirting, quadrants, plaster, etc. where applicable and for making good as previously described to floors, adjoining work, etc. unless otherwise described."]
[2,1,37,null,"Building in","H3"]
[2,1,37,null,"Building in new or re-used doors, windows, etc. into formed openings in existing brick or concrete walls is to include for wedging up, cutting mortices, for running in lugs in 3:1 cement mortar or for plugging and screwing as necessary and bedding and pointing all around frame in cement mortar."]
[2,1,37,null,"Fix in position","H3"]
[2,1,37,null,"Fixing new and re-fixing existing materials is to include for cutting and fitting over existing skirting, cornices, quadrants, etc. or for cutting existing work and for finishing up to new and for making good as previously described."]
[2,1,37,null,"Re-fixing existing materials is to include for all necessary cutting to suit, forming mitres, fair ends, etc. for supplying short lengths of new materials to make up for any deficiencies and for supplying new screws, nails, etc. as is necessary."]
[2,1,38,null,"Re-fixing existing doors, windows, fittings, is to include for building in complete with frames, quadrants, window boards, water bars, glass, ironmongery, etc. unless otherwise described and for overhauling, adjusting, easing and oiling ironmongery."]
[2,1,38,null,"Junction of new and existing","H3"]
[2,1,38,null,"Making good at junctions of new and existing work is to include for piecing out, cutting through and removing short lengths of existing material, for supplying short lengths of new material and for jointing to match existing."]
[2,1,38,null,"Asbestos cement","H3"]
[2,1,38,null,"All preparatory work, alterations, demolitions, etc. to existing asbestos cement roof sheeting, gutters, rainwater pipes, etc. are to be carried out strictly in accordance with statutory requirements (Occupational Health and Safety Act, 1993 - Asbestos Regulations, 2020) and all necessary precautions must be taken when working with and disposing of asbestos cement products and the disposing of waste resulting from cleaning operations, etc."]
[2,1,38,null,"General","H3"]
[2,1,38,null,"The Contractor shall carry out the whole of the works with as little mess and noise as possible and with a minimum of disturbance to adjoining premises and their tenants.  He shall provide proper protection and provide, erect and remove when directed, any temporary tarpaulins that may be necessary during the progress of the works, all to the satisfaction of the principal agent."]
[2,1,38,null,"Water supply pipes and other piping that may be encountered and found necessary to disconnect or cut, shall be effectually stopped off or grubbed up and removed, and any new connections that may be necessary shall be made with proper fittings, to the satisfaction of the principal agent."]
[2,1,39,null,"The Contractor is to keep accurate records for the removal of all items measured under this section. Where buildings, walls, etc. are demolished, photographs must be taken and kept as records, should discrepancies later arise when claims are made."]
[2,1,39,null,"Definition of Labour Intensive (LI):  Labour Intensive (LI) entails utilising construction methods to provide employment opportunities to local unemployed people"]
[2,1,39,null,"DEMOLITIONS","H2"]
[2,1,39,null,"General","H3"]
[2,1,39,null,"The contractor shall carry out the whole of the works with as little mess and noise as possible and with a minimum of disturbance to adjoining premises and their occupants. He shall provide proper protection and provide, erect and remove when directed, any temporary supports, tarpaulins, etc. that may be necessary during the progress of the works, all to the satisfaction of the Principal Agent"]
[2,1,39,null,"Before commencing with the work described above the Contractor will be required to compile and present to the Principal Agent for approval a fully detailed method statement reflecting precisely the procedures to be adopted and the safety precautions to be implemented for the demolition work. The latter are to be strictly in accordance with any relevant existing Statutory requirements regarding this type of work."]
[2,1,39,null,"REMOVAL OF EXISTING WORK","H2"]
[2,1,39,null,"Breaking up and removing mass concrete, etc. including making good existing surfaces","H3"]
[2,1,39,1,"Steps. (LI)","m3",1,null,{"$f":"G223*H223","v":0}]
[2,1,39,null,"Breaking down and removing brickwork, etc. including making good existing surfaces","H3"]
[2,1,39,2,"Half brick wall. (LI)","m2",90,null,{"$f":"G225*H225","v":0}]
[2,1,40,3,"One brick wall. (LI)","m2",31,null,{"$f":"G226*H226","v":0}]
[2,1,40,4,"One and half brick wall. (LI)","m2",4,null,{"$f":"G227*H227","v":0}]
[2,1,40,null,"Breaking down and removing face brickwork, etc. including making good existing surfaces","H3"]
[2,1,40,5,"Half brick wall. (LI)","m2",8,null,{"$f":"G229*H229","v":0}]
[2,1,40,6,"One brick wall. (LI)","m2",44,null,{"$f":"G230*H230","v":0}]
[2,1,40,null,"Taking out and removing doors, windows, etc. from brickwork including making good existing surfaces","H3"]
[2,1,40,7,"Timber single sliding door and sliding track system, overall size, 813 x 2032mm from brick wall. (LI)","No",6,null,{"$f":"G232*H232","v":0}]
[2,1,40,8,"Timber single door and timber/steel frame, overall size, 813 x 2032mm from brick wall. (LI)","No",157,null,0]
[2,1,40,9,"Timber door and timber/steel frame, overall size, 1300 x 2080mm including glazed panels from brick wall.(LI)","No",2,null,0]
[2,1,40,10,"Timber door and timber/steel frame, overall size, 1060 x 2300mm from brick wall. (LI)","No",1,null,0]
[2,1,40,11,"Timber door and timber/steel frame, overall size, 1500 x 2300mm including glazed panels from brick wall. (LI)","No",1,null,0]
[2,1,40,12,"Timber door and timber/steel frame, overall size, 1524 x 2032mm from brick wall. (LI)","No",79,null,0]
[2,1,40,13,"Timber door and timber/steel frame, overall size, 2600 x 2400mm including glazed panels from brick wall. (LI)","No",2,null,0]
[2,1,40,14,"Timber door and timber/steel frame, overall size, 2300 x 2500mm from brick wall. (LI)","No",1,null,0]
[2,1,40,15,"Aluminium single door and frame overall size, 813 x 2032mm from brick wall. (LI)","No",3,null,0]
[2,1,40,16,"Aluminium door and frame, overall size, 1524 x 2032mm from brick wall. (LI)","No",5,null,0]
[2,1,41,17,"Aluminium door and frame, overall size, 2400 x 2400mm from brick wall. (LI)","No",1,null,0]
[2,1,41,18,"Aluminium door and frame, overall size, 2450 x 2600mm from brick wall. (LI)","No",4,null,0]
[2,1,41,19,"Aluminium door and frame, overall size, 2400 x 2900mm from brick wall. (LI)","No",1,null,0]
[2,1,41,20,"Aluminium sliding door and frame, overall size, 2400 x 2300mm from brick wall. (LI)","No",1,null,0]
[2,1,41,21,"Aluminium door and frame, overall size, 3500 x 2700mm from brick wall. (LI)","No",3,null,0]
[2,1,41,22,"Aluminium door and frame, overall size, 4500 x 2700mm from brick wall. (LI)","No",1,null,0]
[2,1,41,23,"Glazed timber window approximate size 500 x 600mm high from brick wall. (LI)","No",1,null,0]
[2,1,41,24,"Glazed timber window approximate size 1650 x 2400mm high from brick wall. (LI)","No",1,null,0]
[2,1,41,25,"Glazed aluminium window approximate size 1500 x 1500mm high from brick wall. (LI)","No",1,null,0]
[2,1,41,26,"Glazed aluminium window approximate size 1600 x 1600mm high from brick wall. (LI)","No",1,null,0]
[2,1,41,27,"Glazed steel window approximate size 450 x 600mm high from brick wall. (LI)","No",2,null,0]
[2,1,41,28,"Glazed steel window approximate size 500 x 950mm high from brick wall. (LI)","No",1,null,0]
[2,1,41,29,"Glazed steel window approximate size 600 x 1200mm high from brick wall. (LI)","No",1,null,0]
[2,1,41,30,"Glazed steel window approximate size 850 x 1500mm high from brick wall.(LI)","No",3,null,0]
[2,1,41,31,"Glazed steel window approximate size 900 x 900mm high from brick wall. (LI)","No",4,null,0]
[2,1,42,32,"Glazed steel window approximate size 1200 x 950mm high from brick wall. (LI)","No",1,null,0]
[2,1,42,33,"Glazed steel window approximate size 1400 x 1400mm high from brick wall. (LI)","No",1,null,0]
[2,1,42,34,"Glazed steel window approximate size 1500 x 1500mm high from brick wall. (LI)","No",3,null,0]
[2,1,42,null,"Taking out and removing doors, windows, etc. from partitions, etc. including making good existing surfaces","H3"]
[2,1,42,35,"Single door and frame not exceeding 2,5m².(LI)","No",7,null,{"$f":"G261*H261","v":0}]
[2,1,42,null,"Taking down and removing roofs, floors, panelling, ceilings, partitions, etc. including and making good existing grid system and surrounding surfaces ","H3"]
[2,1,42,36,"Gypsum plasterboard ceilings including cornices, timber brandering, etc. in patches. (LI)","m2",3244,null,{"$f":"G263*H263","v":0}]
[2,1,42,37,"Suspended ceiling tiles, including cornices, suspension grid, hangers, etc. in patches. (LI)","m2",11193,null,{"$f":"G264*H264","v":0}]
[2,1,42,38,"Drywall partitioning 3000mm high including doors, ironmongery, glazed borrowed lights, etc. (LI)","m",122,null,{"$f":"G265*H265","v":0}]
[2,1,42,null,"Taking  out and removing piping, sanitary fittings, etc, including cutting off as necessary, disconnecting  piping  from fittings  and  making good floor and wall finishes (making good tiling and paintwork elsewhere)","H3"]
[2,1,42,39,"Existing ceramic water closet pedestal and preparing existing pipework for installation of new water closet. (LI)","No",6,null,{"$f":"G267*H267","v":0}]
[2,1,42,40,"Existing ceramic wash hand basin and preparing existing pipework for installation of new wash hand basin. (LI)","No",7,null,{"$f":"G268*H268","v":0}]
[2,1,42,41,"Existing bath tub and preparing existing pipework for installation of new wash hand basin. (LI)","No",1,null,{"$f":"G269*H269","v":0}]
[2,1,43,null,"Taking out/off and removing sundry metalwork, etc. including making good existing surfaces","H3"]
[2,1,43,42,"Balustrades, approximately 1500mm high. (LI)","m",13,null,{"$f":"G271*H271","v":0}]
[2,1,43,43,"Burglar bars size 4800 x 2100mm high. (LI)","No",2,null,0]
[2,1,43,44,"Metal folding gate size 1600 x 2100mm high. (LI)","No",5,null,0]
[2,1,43,45,"Metal folding gate size 1800 x 2400mm high. (LI)","No",1,null,0]
[2,1,43,46,"Metal folding gate size 1800 x 3100mm high. (LI)","No",1,null,0]
[2,1,43,47,"Metal folding gate size 2300 x 3100mm high. (LI)","No",2,null,0]
[2,1,43,48,"Steel gate size 900 x 2100mm high. (LI)","No",5,null,0]
[2,1,43,49,"Steel gate size 2400 x 2700mm high. (LI)","No",1,null,0]
[2,1,43,50,"Roller shutter size 1500 x 2000mm high, complete. (LI)","No",1,null,0]
[2,1,43,null,"Breaking up and removing reinforced concrete including cutting off and removing reinforcement","H3"]
[2,1,43,51,"150mm Thick slabs. (LI)","m3",1,null,{"$f":"G281*H281","v":0}]
[2,1,43,null,"Hacking up/off and removing floor coverings from screeds to be hacked up (hacking up screeds elsewhere measured)","H3"]
[2,1,43,52,"Vinyl floor covering. (LI)","m2",7585,null,{"$f":"G283*H283","v":0}]
[2,1,43,53,"Carpet floor covering. (LI)","m2",249,null,{"$f":"G284*H284","v":0}]
[2,1,43,null,"Hacking up/off and removing granolithic, screeds, plaster, etc. from concrete or brickwork and preparing surfaces for new screeds, plaster, etc.","H3"]
[2,1,43,54,"35mm Granolithic from floors. (LI)","m2",152,null,{"$f":"G286*H286","v":0}]
[2,1,43,55,"35mm Screed from floors. (LI)","m2",1647,null,{"$f":"G287*H287","v":0}]
[2,1,44,null,"Hacking up/off and removing ceramic tile including removing mortar bed or adhesive from concrete or brickwork and preparing surfaces for new screed, plaster, tile finishes, etc. (elsewhere measured)","H3"]
[2,1,44,56,"Floor tiles. (LI)","m2",810,null,{"$f":"G289*H289","v":0}]
[2,1,44,null,"BUILDING UP OPENINGS","H2"]
[2,1,44,null,"Brickwork in NFP bricks in Class II mortar in building up openings including cement plaster on both sides","H3"]
[2,1,44,57,"Half brick walls. (LI)","m2",6,null,{"$f":"G292*H292","v":0}]
[2,1,44,58,"One brick walls. (LI)","m2",34,null,{"$f":"G293*H293","v":0}]
[2,1,44,null,"Brickwork in NFP bricks in Class II mortar in building up openings including cement plaster on one side","H3"]
[2,1,44,59,"One brick walls. (LI)","m2",74,null,{"$f":"G295*H295","v":0}]
[2,1,44,null,"Face brickwork in Class II mortar in building up openings (Allow prime cost amount of R4,500.00/1000 bricks) including all pointing to match existing","H3"]
[2,1,44,60,"Extra over one brick walls faced on one side only. (LI)","m2",74,null,{"$f":"G297*H297","v":0}]
[2,1,44,null,"Face brickwork in Class II mortar in building up openings (Allow prime cost amount of R4,500.00/1000 bricks) including all pointing to match existing","H3"]
[2,1,44,61,"One brick walls faced on both sides to build up openings in existing face brick walls. (LI)","m2",38,null,{"$f":"G299*H299","v":0}]
[2,1,44,null,"Sundries","H2"]
[2,1,44,null,"Cutting, toothing and bonding","H3"]
[2,1,44,62,"Cutting toothings and bonding new brickwork to existing. (LI)","m2",34,null,{"$f":"G302*H302","v":0}]
[2,1,45,null,"Face bricks pointed with flush/recessed horizontal and vertical joints to match existing","H2"]
[2,1,45,null,"Cutting, toothing and bonding","H3"]
[2,1,45,63,"Cutting toothings and bonding new face brickwork to existing.(LI)","m",73,null,{"$f":"G305*H305","v":0}]
[2,1,45,null,"CUTTING THROUGH FLOORS","H2"]
[2,1,45,64,"Saw cutting through and digging out approximately 350mm deep existing concrete floor slab and layer works, overall 1600mm wide including remedial builders works on both sides for new concrete slab (elsewhere measured) including keeping saw cutting exposed for sealants (sealants elsewhere measured). (LI)","m",1306,null,{"$f":"G307*H307","v":0}]
[2,1,45,null,"CUTTING THROUGH EXISTING CEILINGS","H2"]
[2,1,45,null,"Cutting through gypsum plasterboard ceilings, brandering, etc.","H3"]
[2,1,45,65,"Gypsum plasterboard ceilings including cornices, timber brandering, etc. in patches. (LI)","m",1434,null,{"$f":"G310*H310","v":0}]
[2,1,45,null,"Alterations/removal of existing ceiling grid system","H3"]
[2,1,45,66,"Alteration/removal of existing grid system in patches to accommodate new partition/smoke baffle (elsewhere measured) including setting aside all ceiling tiles which are in a good condition for re-use (re-use elsewhere measured), ensuring that temporary supports are installed to maintain rigidity/stability of the existing grid system at all times. (LI)","m2",3346,null,{"$f":"G312*H312","v":0}]
[2,1,45,null,"Modification of existing ceiling grid system","H3"]
[2,1,45,67,"Modification/alteration of existing suspended grid system where grid has been stripped to accommodate smoke baffle/other installations. Rate to include for new ceiling grids to be seamlessly joined to existing ceiling grid including all additional supports, hangers, tees, cross tees, etc. to achieve a structurally stable grid installation. (LI)","m2",3346,null,{"$f":"G314*H314","v":0}]
[2,1,45,null,"NEW BUILDERS WORK (ALL TRADES)","H2"]
[2,1,46,null,"Earth filling to be supplied by the Contractor (where concrete slabs were saw cut)","H3"]
[2,1,46,68,"Backfilling to trenches where concrete slab has been removed, etc. (LI)","m3",366,null,{"$f":"G317*H317","v":0}]
[2,1,46,null,"Extra over all excavations for loading, carting and dumping surplus excavated material","H3"]
[2,1,46,69,"Off site to be located by the contractor. (LI)","m3",157,null,{"$f":"G319*H319","v":0}]
[2,1,46,null,"Compaction of surfaces","H3"]
[2,1,46,70,"Compaction of ground surface under floors, etc. including scarifying for a depth of 150mm, breaking down oversize material, adding suitable material where necessary and compacting to 98% Mod. AASHTO density.","m2",784,null,{"$f":"G321*H321","v":0}]
[2,1,46,null,"Soil Insecticide","H3"]
[2,1,46,71,"Under floors, etc. including forming and poisoning shallow furrows against foundation walls, etc., filling in furrows and ramming","m2",784,null,{"$f":"G323*H323","v":0}]
[2,1,46,null,"15MPa Concrete","H3"]
[2,1,46,72,"Surface blinding under foundation beams, etc. (LI)","m3",39,null,{"$f":"G325*H325","v":0}]
[2,1,46,null,"25MPa/19mm Concrete","H3"]
[2,1,46,73,"Surface beds, etc.(LI)","m3",209,null,{"$f":"G327*H327","v":0}]
[2,1,46,74,"Foundation beams. (LI)","m3",118,null,{"$f":"G328*H328","v":0}]
[2,1,46,null,"Test Blocks","H3"]
[2,1,46,75,"Making and testing concrete strength test cubes size 150 x 150 x 150mm (set of 3), made, stored, cured and tested including use of approved cube moulds, transporting to approved testing laboratory for testing, paying all charges and submitting reports to the Principal Agent.","No",12,null,{"$f":"G330*H330","v":0}]
[2,1,47,null,"Rough formwork to sides","H3"]
[2,1,47,76,"Foundation beams etc. (LI)","m2",392,null,{"$f":"G332*H332","v":0}]
[2,1,47,null,"Fabric reinforcement","H3"]
[2,1,47,77,"Type 193 fabric reinforcement in concrete surface bed, slabs, etc. (LI)","m2",2090,null,{"$f":"G334*H334","v":0}]
[2,1,47,null,"Expansion joints with bitumen impregnated fibreboard between vertical concrete surfaces","H3"]
[2,1,47,78,"10mm Joints not exceeding 300mm high. (LI)","m",2612,null,{"$f":"G336*H336","v":0}]
[2,1,47,null,"High tensile steel reinforcement to structural concrete work","H3"]
[2,1,47,79,"Bars of varying diameters. (LI)","t",5,null,{"$f":"G338*H338","v":0}]
[2,1,47,null,"Brickwork of NFX (14 MPa nominal compressive strength) clay imperial bricks in cement mortar","H3"]
[2,1,47,80,"One brick wall. (LI)","m2",131,null,{"$f":"G340*H340","v":0}]
[2,1,47,null,"Brickwork reinforcement","H3"]
[2,1,47,81,"150mm Wide reinforcement built in horizontally. (LI)","m",514,null,{"$f":"G342*H342","v":0}]
[2,1,48,null,"Two-part grey polysulphide sealing compound including backing cord, bond breaker, primer, etc","H3"]
[2,1,48,82,"10 x 10mm In expansion joints in vertical concrete surfaces including raking out expansion joint filler as necessary and reaming saw cut joint. (LI)","m",2612,null,{"$f":"G344*H344","v":0}]
[2,1,48,null,"One layer of 250 micron \"Consol Plastic Gunplas USB Green\" or equal and approved waterproof sheeting Type C, sealed at laps with \"Gunplas Pressure Sensitive Tape\"","H3"]
[2,1,48,83,"Under surface beds, slabs, etc. (LI)","m2",2090,null,{"$f":"G346*H346","v":0}]
[2,1,48,null,"One layer of 375 micron \"Consol Plastics Brikgrip DPC\" embossed damp proof course","H3"]
[2,1,48,84,"In walls. (LI)","m2",287,null,{"$f":"G348*H348","v":0}]
[2,1,49,null,"CAREFULLY TAKE OUT / OFF AND SET ASIDE FOR RE-USE","H2"]
[2,1,49,null,"Taking out and setting aside doors, windows, etc. from brickwork to remain for later re-fixing to existing position","H3"]
[2,1,49,85,"Timber single door 813 x 2032mm high overall from half brick wall. (LI) ","No",3,null,{"$f":"G351*H351","v":0}]
[2,1,49,86,"Timber double door 1614 x 2032mm high overall from one brick wall. (LI) ","No",1,null,{"$f":"G352*H352","v":0}]
[2,1,49,null,"Taking out/off and set aside sundry metalwork including later refixing to existing position","H3"]
[2,1,49,87,"Metal folding gate size 1200 x 3100mm high. (LI)","No",1,null,{"$f":"G354*H354","v":0}]
[2,1,49,null,"Re-fixing of items previously set-aside","H3"]
[2,1,49,null,"Note to Tenderers:  Ceilings are to be installed in patches and the Tenderer to allow for all cutting, repairs and tie-into adjoining grid systems, brandering, etc. when installing the new ceiling boards"]
[2,1,49,88,"Relaying of existing suspended ceiling tiles previously set-aside. (LI)","m2",3346,null,{"$f":"G357*H357","v":0}]
[2,1,49,89,"Timber single door 813 x 2032mm high overall to half brick wall. (LI) ","No",3,null,{"$f":"G358*H358","v":0}]
[2,1,49,90,"Timber double door 1614 x 2032mm high overall from one brick wall. (LI)","No",1,null,{"$f":"G359*H359","v":0}]
[2,1,49,91,"Metal folding gate size 1200 x 3100mm high. (LI)","No",1,null,{"$f":"G360*H360","v":0}]
[2,1,50,null,"OPENINGS THROUGH EXISTING WALLS, ETC.","H2"]
[2,1,50,null,"Breaking out for and forming plain openings through brick walls, including prestressed concrete lintels, making good cement plaster on both sides and into reveals including installation of 20mm timber plank lining to reveals and caulking, cement or aerosol sealant to openings around pipes, ducts, trunking, cable trays, etc.","H3"]
[2,1,50,92,"Plain opening size 600 x 600mm high through one brick wall. (LI)","No",1,null,{"$f":"G363*H363","v":0}]
[2,1,50,93,"Plain opening size 900 x 2100mm high through one brick wall. (LI)","No",4,null,{"$f":"G364*H364","v":0}]
[2,2,51,null,"SECTION NO.2","H1"]
[2,2,51,null,"BILL NO.4","H1"]
[2,2,51,null,"MASONRY","H1"]
[2,2,51,null,"(CPAP WORK GROUP NO.118 UNLESS OTHERWISE STATED)","H1"]
[2,2,51,null,"The Contractor is referred to the relevant applicable Preambles in the annexed KZN DOH Standard Preambles to all Trades Rev. 3 Jan. 2009, KZN DOH General Electrical Specifications Sept. 2003, Project Specifications, etc. and the General Preambles to all trades (2017)"]
[2,2,51,null,"Unless otherwise stated herein, all items in this Bill shall be deemed to fall into Work Group No.118 for CPAP purposes."]
[2,2,51,null,"BRICKWORK IN SUPERSTRUCTURE","H2"]
[2,2,51,null,"Brickwork of NFP bricks (7MPa) in class II mortar","H3"]
[2,2,51,1,"Piers. (LI)","m3",27,null,{"$f":"G373*H373","v":0}]
[2,2,51,2,"Half-brick wall linings etc.(LI)","m2",2683,null,{"$f":"G374*H374","v":0}]
[2,2,51,3,"Half-brick walls. (LI)","m2",1455,null,{"$f":"G375*H375","v":0}]
[2,2,51,4,"One-brick walls. (LI)","m2",1944,null,{"$f":"G376*H376","v":0}]
[2,2,51,5,"One brick kerb 140mm high.(LI)","m",12,null,{"$f":"G377*H377","v":0}]
[2,2,52,null,"BRICKWORK SUNDRIES","H2"]
[2,2,52,null,"Prestressed fabricated concrete lintels including necessary temporary supports","H3"]
[2,2,52,6,"110 x 75mm Lintels in lengths not exceeding 3m long.(LI)","m",12,null,{"$f":"G380*H380","v":0}]
[2,2,52,7,"110 x 75mm Lintels in lengths exceeding 3m and not exceeding 4,5m long. (LI)","m",1,null,{"$f":"G381*H381","v":0}]
[2,2,52,null,"Galvanised brickwork reinforcement","H3"]
[2,2,52,8,"75mm Wide reinforcement built in horizontally. (LI)","m",15998,null,{"$f":"G383*H383","v":0}]
[2,2,52,9,"150mm Wide reinforcement built in horizontally. (LI)","m",7703,null,{"$f":"G384*H384","v":0}]
[2,2,52,null,"Turning pieces to lintels, etc.","H3"]
[2,2,52,10,"220mm Wide turning pieces. (LI)","m",7,null,{"$f":"G386*H386","v":0}]
[2,2,52,null,"Concertina ties built into brickwork and shot pinned into existing brick walls","H3"]
[2,2,52,11,"30 x 1,2mm Galvanised crimp wire wall ties. (LI)","No",1342,null,{"$f":"G388*H388","v":0}]
[2,2,52,null,"FACE BRICKWORK","H2"]
[2,2,52,null,"Imperial FBX clay face brick, bedded and jointed in Class II mortar and pointed with flush vertical and horizontal joints (Allow prime cost amount of R4,500.00/1000 bricks)","H3"]
[2,2,52,12,"140mm steps of half brick walls. (LI)","m",12,null,{"$f":"G391*H391","v":0}]
[2,2,52,13,"Extra over brickwork for face brickwork. (LI)","m2",169,null,{"$f":"G392*H392","v":0}]
[2,2,52,14,"Extra over brickwork for face brick piers. (LI)","m3",1,null,{"$f":"G393*H393","v":0}]
[2,3,53,null,"SECTION NO. 2","H1"]
[2,3,53,null,"BILL NO. 5","H1"]
[2,3,53,null,"WATERPROOFING","H1"]
[2,3,53,null,"(CPAP WORK GROUP NO.120 UNLESS OTHERWISE STATED)","H1"]
[2,3,53,null,"SHOWER WALLS AND FLOORS","H2"]
[2,3,53,null,"Prepare and apply TAL Superflex or other approved acrylic based liquid waterproofing and membrane system installed in accordance with manufactures instructions","H3"]
[2,3,53,1,"On floors to falls and currents to receive mosaic tiles. (LI)","m2",11,null,{"$f":"G400*H400","v":0}]
[2,4,54,null,"SECTION NO.2","H1"]
[2,4,54,null,"BILL NO.6","H1"]
[2,4,54,null,"CARPENTRY AND JOINERY","H1"]
[2,4,54,null,"(CPAP WORK GROUP NO.126 UNLESS OTHERWISE STATED)","H1"]
[2,4,54,null,"The Contractor is referred to the relevant applicable Preambles in the annexed KZN DOH Standard Preambles to all Trades Rev. 3 Jan. 2009, KZN DOH General Electrical Specifications Sept. 2003, Project Specifications, etc. and the General Preambles to all trades (2017)"]
[2,4,54,null,"Unless otherwise stated herein, all items in this Bill shall be deemed to fall into Work Group No.126 for CPAP purposes."]
[2,4,54,null,"DOORS, ETC.","H2"]
[2,4,54,null,"Solid Core Doors","H3"]
[2,4,54,null,"Heavy duty solid core flush doors with hardwood edging manufactured with tempered hardboard and commercial veneer suitable for painting hung to steel frames ","H3"]
[2,4,54,1,"40mm Single door size 813 x 2032mm high to half brick wall. (LI)","No",2,null,{"$f":"G410*H410","v":0}]
[2,4,54,2,"40mm Single door size 813 x 2032mm high to one brick wall. (LI)","No",1,null,{"$f":"G411*H411","v":0}]
[2,4,54,null,"Heavy duty solid core flush doors with hardwood edging manufactured with tempered hardboard and commercial veneer suitable for painting hung to meranti timber frames ","H3"]
[2,4,54,3,"40mm Single door size 813 x 2032mm high to one brick wall. (LI)","No",18,null,{"$f":"G413*H413","v":0}]
[2,4,55,4,"40mm double door size 1813 x 2032mm high to half brick wall. (LI)","No",5,null,{"$f":"G414*H414","v":0}]
[2,4,55,5,"40mm double door size 1813 x 2032mm high to one brick wall. (LI)","No",63,null,{"$f":"G415*H415","v":0}]
[2,4,55,null,"FIRE DOORS, ETC.","H2"]
[2,4,55,null,"Bitcon or other equal approved fire door Class A installed in strict accordance with the manufacturers instructions with a 60 minute fire rating, with 3,6mm treated commercial ply suitable for painting on both sides, including intumescent strip to top of door, hardwood edges and 1,6mm thick hot dipped galvanised steel frame (Door ironmongery elsewhere measured)","H3"]
[2,4,55,6,"48mm Single door size 813 x 2032mm high to half brick walls. (LI)","No",8,null,{"$f":"G418*H418","v":0}]
[2,4,55,7,"48mm Single door size 813 x 2032mm high to one brick walls. (LI)","No",14,null,0]
[2,4,55,8,"48mm Double door size 1614 x 2032mm high to half brick walls. (LI)","No",2,null,0]
[2,4,55,9,"48mm Double door size 1614 x 2032mm high to one brick walls. (LI)","No",12,null,0]
[2,4,55,10,"48mm Fire escape double door size 1813 x 2032mm high to one brick walls. (LI)","No",1,null,0]
[2,4,55,11,"48mm Fire escape double door size 1813 x 2032mm high to one and a half brick walls. (LI)","No",1,null,0]
[2,4,55,null,"Bitcon or other equal approved fire door Class B installed in strict accordance with the manufacturers instructions with a 120 minute fire rating, with 3,6mm treated commercial ply suitable for painting on both sides, including intumescent strip to top of door, hardwood edges and 1,6mm thick hot dipped galvanised steel frame (Door ironmongery elsewhere measured)","H3"]
[2,4,55,12,"48mm Single door size 813 x 2032mm high to half brick walls. (LI)","No",3,null,{"$f":"G425*H425","v":0}]
[2,4,56,13,"48mm Single door size 813 x 2032mm high to one brick walls. (LI)","No",40,null,0]
[2,4,56,14,"48mm Double door size 1500 x 2032mm high to one brick wall. (LI)","No",1,null,0]
[2,4,56,15,"48mm Double door size 1614 x 2032mm high to one brick wall. (LI)","No",38,null,0]
[2,4,56,16,"48mm Fire escape single door size 813 x 2032mm high to one brick walls. (LI)","No",1,null,0]
[2,4,56,17,"48mm Fire escape double door size 1813 x 2032mm high to one brick walls. (LI)","No",2,null,0]
[2,4,56,18,"48mm Fire escape double door size 1813 x 2032mm high to one and a half brick walls. (LI)","No",6,null,0]
[2,4,56,null,"Bitcon or other equal approved fire door Class C installed in strict accordance with the manufacturers instructions with a 120 minute fire rating, with 3,6mm treated commercial ply suitable for painting on both sides, including intumescent strip to top of door, hardwood edges and 1,6mm thick hot dipped galvanised steel frame (Door ironmongery elsewhere measured)","H3"]
[2,4,56,19,"48mm Single door size 813 x 2032mm high to one brick walls. (LI)","No",1,null,{"$f":"G433*H433","v":0}]
[2,4,56,20,"48mm Double door size 1614 x 2032mm high to one brick wall. (LI)","No",3,null,{"$f":"G434*H434","v":0}]
[2,4,56,null,"Bitcon or other equal approved fire door Class E installed in strict accordance with the manufacturers instructions with a 60 minute fire rating, with 3,6mm treated commercial ply suitable for painting on both sides, including intumescent strip to top of door, hardwood edges and 1,6mm thick hot dipped galvanised steel frame (Door ironmongery elsewhere measured)","H3"]
[2,4,56,21,"48mm Single door size 813 x 2032mm high to half brick walls.(LI)","No",58,null,{"$f":"G436*H436","v":0}]
[2,4,57,22,"48mm Single door size 813 x 2032mm high to one brick walls. (LI)","No",26,null,{"$f":"G437*H437","v":0}]
[2,4,57,23,"48mm Double door size 1813 x 2032mm high to half brick wall. (LI) ","No",1,null,{"$f":"G438*H438","v":0}]
[2,4,57,24,"48mm Double door size 1813 x 2032mm high to one brick wall. (LI) ","No",2,null,{"$f":"G439*H439","v":0}]
[2,4,57,25,"48mm Single door size 813 x 2032mm high to partition walls. (LI)","No",3,null,{"$f":"G440*H440","v":0}]
[2,4,57,null,"FRAMED FRAMES, ETC.","H2"]
[2,4,57,null,"Wrought meranti","H3"]
[2,4,57,26,"44 x 108mm Rebated frames, plugged. (LI)","m",490,null,{"$f":"G443*H443","v":0}]
[2,5,58,null,"SECTION NO.2","H1"]
[2,5,58,null,"BILL NO.7","H1"]
[2,5,58,null,"CEILINGS, PARTITIONS AND ACCESS FLOORING","H1"]
[2,5,58,null,"(CPAP WORK GROUP NO.129 UNLESS OTHERWISE STATED)","H1"]
[2,5,58,null,"The Contractor is referred to the relevant applicable Preambles in the annexed KZN DOH Standard Preambles to all Trades Rev. 3 Jan. 2009, KZN DOH General Electrical Specifications Sept. 2003, Project Specifications, etc. and the General Preambles to all trades (2017)"]
[2,5,58,null,"Unless otherwise stated herein, all items in this Bill shall be deemed to fall into Work Group No.129 for CPAP purposes."]
[2,5,58,null,"Note to Tenderers:  Ceilings are to be installed in patches at junctions and the Tenderer to allow for all cutting, skimming, repairs to adjoining additional timbers/grids/hangers/tees, etc. when installing the new ceiling boards"]
[2,5,58,null,"NAILED UP CEILINGS","H2"]
[2,5,58,null,"Allow a PC sum of R150/m2 for 9.5mm Gypsum plasterboard ceilings fixed print side up to brandering with 32mm galvanised clout nails or 32mm grabber screws at 150mm centres with  plastic cover strips over joints with all nail or screw heads stopped and sanded level, all installed in strict accordance with the manufacturer's instructions","H3"]
[2,5,58,1,"Gypsum plasterboard ceilings including timber brandering, etc. in patches. (LI)","m2",4678,null,{"$f":"G453*H453","v":0}]
[2,5,59,2,"Extra over ceiling for 600 x 600mm trap door including rebated framing cross branders covered with ceiling board and fitted flush in opening. (LI)","No",53,null,{"$f":"G454*H454","v":0}]
[2,5,59,null,"Gypsum plasterboard cornice","H3"]
[2,5,59,3,"75mm Coved cornice. (LI)","m",1679,null,{"$f":"G456*H456","v":0}]
[2,5,59,null,"Allow for a PC sum of R150/m2 for a 9mm thick suspended vinyl clad ceiling system including exposed grid system consisting of main tees at 1200mm centres, cross tees at 600mm centres including suspension system, additional supports, hangers, grids, joiners, etc. all installed in accordance with manufacturer's instructions","H3"]
[2,5,59,4,"Ceilings suspended not exceeding 1m below concrete soffits, in patches. (LI)","m2",3500,null,{"$f":"G458*H458","v":0}]
[2,5,59,5,"Ceilings suspended not exceeding 1m below timber trusses/steel trusses, in patches. (LI)","m2",7693,null,{"$f":"G459*H459","v":0}]
[2,5,59,null,"Cornices to suspended ceilings","H3"]
[2,5,59,6,"BPB GYPSUM or equal and approved, LSM25 47 x 35mm recessed shadow line wall angle plugged and screwed to wall. (LI)","m",6093,null,{"$f":"G461*H461","v":0}]
[2,5,59,null,"PARTITIONS ETC","H2"]
[2,5,59,null,"Note to Tenderers:  Rates to include for all cutting and trimming of gypsum at junction of brickwork/trusses including sealing of all junctions to achieve air tightness."]
[2,5,60,null,"FIXED PARTITIONS","H2"]
[2,5,60,null,"CAPCO or equal and approved 90mm thick Fire Rated Drywall Partition System comprising of a 30 minute fire rated partition, natural anodised aluminium ceiling channel, 65mm Ultra steel floor track fixed to existing stuctures at roof level including all proprietary supports/framework fixed to wall/existing trusses and 64mm Ultra steel studs at 600mm centres, friction fitted with additional vertical studs where required, etc. and covered both sides with 12,5mm Gypsum Tapered Edge Wallboard screwed to studding with 25mm drywall screws at maximum 230mm centres. Boards butt joined and tapered edges fitted with 50mm wide self adhesive Fibatape and finished with Rhinoglide jointing compound, including the necessary cutting to suit the existing profile of the roof, all in accordance with the manufacturer's specifications","H3"]
[2,5,60,7,"Partitioning 300mm high plugged on top of ceiling and to underside of roof as a smoke baffle. (LI) ","m",716,null,{"$f":"G466*H466","v":0}]
[2,5,60,8,"Partitioning 600mm high plugged on top of ceiling and to underside of roof as a smoke baffle. (LI) ","m",716,null,{"$f":"G467*H467","v":0}]
[2,5,60,9,"Partitioning 1500mm high plugged on top of ceiling and to underside of roof as a smoke baffle. (LI) ","m",954,null,{"$f":"G468*H468","v":0}]
[2,5,60,10,"Partitioning 3100mm high plugged on top of ceiling and to underside of roof. (LI)","m",4,null,{"$f":"G469*H469","v":0}]
[2,5,60,11,"Extra over partition 3100mm high for vertical abutment. (LI)","No",2,null,{"$f":"G470*H470","v":0}]
[2,6,61,null,"SECTION NO.2","H1"]
[2,6,61,null,"BILL NO.8","H1"]
[2,6,61,null,"FLOOR COVERINGS, WALL LININGS, ETC.","H1"]
[2,6,61,null,"(CPAP WORK GROUP NO.130 UNLESS OTHERWISE STATED)","H1"]
[2,6,61,null,"The Contractor is referred to the relevant applicable Preambles in the annexed KZN DOH Standard Preambles to all Trades Rev. 3 Jan. 2009, KZN DOH General Electrical Specifications Sept. 2003, Project Specifications, etc. and the General Preambles to all trades (2017)"]
[2,6,61,null,"Unless otherwise stated herein, all items in this Bill shall be deemed to fall into Work Group No.130 for CPAP purposes."]
[2,6,61,null,"Rates for shaped, circular inserts, etc. to include for circular cutting sheeting, borders, inserts and sealing of all joints etc."]
[2,6,61,null,"FLOOR COVERINGS","H2"]
[2,6,61,null,"Vinyl Sheeting","H3"]
[2,6,61,null,"Allow for a PC sum of R250.00/m2 for 2.5mm thick vinyl sheeting, including adhesive and installed in accordance with manufacturer's instructions","H3"]
[2,6,61,1,"On floors. (LI)","m2",7378,null,{"$f":"G481*H481","v":0}]
[2,6,61,null,"Carpets","H3"]
[2,6,61,null,"Allow for a PC sum of R150.00/m2 for 4.5mm thick carpet tiles, including adhesive and installed in accordance with manufacturer's instructions","H3"]
[2,6,61,2,"On floors and landings. (LI)","m2",249,null,{"$f":"G484*H484","v":0}]
[2,6,62,null,"SKIRTINGS, NOSINGS, ETC.","H2"]
[2,6,62,null,"Rates for skirting to included for internal and external corners,etc."]
[2,6,62,null,"Allow for a PC sum of R40.00/m for vinyl skirting, fixed with solvent based contact adhesive, in accordance with the manufacturers specifications","H3"]
[2,6,62,3,"Vinyl skirting. (LI)","m",3338,null,{"$f":"G488*H488","v":0}]
[2,6,62,null,"POLISH, SEALERS, ETC.","H2"]
[2,6,62,null,"Strip and seal with three coats approved Matt or Gloss sealer in accordance with the manufacturer's specifications ","H3"]
[2,6,62,4,"Vinyl floor sheeting, etc. (LI)","m2",7378,null,{"$f":"G491*H491","v":0}]
[2,7,63,null,"SECTION NO.2","H1"]
[2,7,63,null,"BILL NO.9","H1"]
[2,7,63,null,"IRONMONGERY","H1"]
[2,7,63,null,"(CPAP WORK GROUP NO.132 UNLESS OTHERWISE STATED)","H1"]
[2,7,63,null,"The Contractor is referred to the relevant applicable Preambles in the annexed KZN DOH Standard Preambles to all Trades Rev. 3 Jan. 2009, KZN DOH General Electrical Specifications Sept. 2003, Project Specifications, etc. and the General Preambles to all trades (2017)"]
[2,7,63,null,"The Technical specification for any product priced as 'or other equal approved' must be supplied with the tender offer failing which the tender offer will be rejected."]
[2,7,63,null,"Unless otherwise stated herein, all items in this Bill shall be deemed to fall into Work Group No.132 for CPAP purposes."]
[2,7,63,null,"SUPPLEMENTARY PREAMBLES","H2"]
[2,7,63,null,"Proprietary items","H3"]
[2,7,63,null,"Where applicable the manufacturer's names or product catalogue titles are given in sub-headings preceding the items  Prices are to be based on the specific products / articles specified or other equal and approved."]
[2,7,64,null,"Finishes to ironmongery","H3"]
[2,7,64,null,"Where applicable finishes to ironmongery are indicated by suffixes in accordance with the following list: BS Satin bronze lacqueredCH Chromium plated SC Satin chromium plated SE Silver enamelled GE Grey enamelledAN Anodised natural AS Anodised silver AB Anodised bronze AG Anodised gold ABL Anodised black PB Polished brass PL Polished and lacquered PT Epoxy coated SD SandedSS Stainless SteelNP Nickel plated"]
[2,7,64,null,"HINGES, BOLTS, ETC.","H2"]
[2,7,64,1,"Union or equal and approved, two ball bearing butt hinge (code: JH-BB-STD-2-SS) with Stainless Steel finish. (LI)","No",534,null,{"$f":"G505*H505","v":0}]
[2,7,64,2,"Rebate conversion set for 72 / 85mm locks (code: 2915SC). (LI)","No",59,null,{"$f":"G506*H506","v":0}]
[2,7,64,3,"Stainless steel turned knob and indicator (code:SS5004-73SS). (LI)","No",3,null,{"$f":"G507*H507","v":0}]
[2,7,64,null,"LOCKS","H2"]
[2,7,64,null,"Assa Abloy or equal and approved","H3"]
[2,7,64,4,"Standard 32mm Satin Chrome Euro Profile single cylinder (Code: 2x20SC). (LI)","No",97,null,{"$f":"G510*H510","v":0}]
[2,7,64,5,"Standard Satin Chrome Knob Profile single cylinder (Code: 2x19SC). (LI)","No",212,null,{"$f":"G511*H511","v":0}]
[2,7,64,6,"Euro Profile upright lock case with double throw deadbolt and roller latch with 60mm backset (code: L-2115-78SS) with Stainless Steel forend. (LI)","No",212,null,{"$f":"G512*H512","v":0}]
[2,7,65,7,"Union stainless steel bathroom upright lock (code: 22314-76SS). (LI)","No",3,null,{"$f":"G513*H513","v":0}]
[2,7,65,null,"HANDLES","H2"]
[2,7,65,null,"Assa Abloy or equal and approved","H3"]
[2,7,65,8,"Panic lever handle (code: MMPS2SCPL). (LI)","No",97,null,{"$f":"G516*H516","v":0}]
[2,7,65,9,"Stainless Steel sandpiper pull handle (code:5210BBSS). (LI)","No",424,null,{"$f":"G517*H517","v":0}]
[2,7,65,10,"300 x 25mm Stainless steel pull handle with flange fixing. (LI)","No",6,null,{"$f":"G518*H518","v":0}]
[2,7,65,null,"PLATES, ESCUTCHEONS, ETC.","H2"]
[2,7,65,null,"Assa Abloy or equal and approved","H3"]
[2,7,65,11,"Euro profile cylinder lock escutcheon (code: SS5305-05SS). (LI)","No",424,null,{"$f":"G521*H521","v":0}]
[2,7,65,null,"DOOR CLOSERS","H2"]
[2,7,65,null,"Assa Abloy or equal and approved","H3"]
[2,7,65,12,"Parallel arm bracket (code: DCA154-EV1). (LI)","No",212,null,{"$f":"G524*H524","v":0}]
[2,7,65,13,"EN1-4 SIL cam action closer (code: DC500) with straight mounting plate (code: DCA120-40) and necessary mounting brackets, etc. (LI)","No",175,null,{"$f":"G525*H525","v":0}]
[2,7,65,14,"EN3-6 SIL rack and pinion door closer (code: DC300) with straight mounting plate (code: DCA120-40) and necessary mounting brackets, etc. (LI)","No",271,null,{"$f":"G526*H526","v":0}]
[2,7,65,15,"Door selector with mounting bracket (code: Y1601C), 457mm filler bar (code: YFB600) and 1321mm fire door coordinator (code:Y672). (LI)","No",137,null,{"$f":"G527*H527","v":0}]
[2,7,66,null,"ACCESS CONTROL","H2"]
[2,7,66,null,"Assa Abloy or equal and approved","H3"]
[2,7,66,16,"Single panic bolt push bar - (code: TESA J-882-SIL). (LI)","No",87,null,{"$f":"G530*H530","v":0}]
[2,7,66,null,"SUNDRIES","H2"]
[2,7,66,null,"Union or equal and approved","H3"]
[2,7,66,17,"Union Stainless steel door stop (code: 87001). (LI)","No",449,null,{"$f":"G533*H533","v":0}]
[2,7,66,null,"DOOR PROTECTION","H2"]
[2,7,66,null,"Door Protection","H3"]
[2,7,66,18,"Kick plate to 1000mm wide door 1100mm high. (LI)","No",3,null,{"$f":"G536*H536","v":0}]
[2,7,66,null,"SANITARY SUNDRIES","H2"]
[2,7,66,null,"Franke or equal and approved","H3"]
[2,7,66,19,"STRX672 grade 304 s/s double toilet roll holder wall mounted. (LI)","No",9,null,{"$f":"G539*H539","v":0}]
[2,7,66,20,"Supply and build in approved 150x150mm white glazed porcelain soap dish in shower cubicle where indicated by architect. (LI)","No",5,null,0]
[2,7,66,21,"STRX618 grade 304 stainless steel dispenser surface mounted. (LI)","No",9,null,0]
[2,7,66,22,"Cistern wall mounted Grade 304 stainless steel grab rail, 600mm long. (LI)","No",9,null,0]
[2,7,66,23,"90º angle Grade 304 stainless steel grab rail. (LI)","No",14,null,0]
[2,7,66,24,"Grade 304 stainless steel paper towel dispenser surface mounted. (LI)","No",9,null,0]
[2,7,66,25,"Grade 304 stainless steel surface mounted waste bin. (LI)","No",9,null,0]
[2,7,67,26,"Fold down seat grade 304 stainless steel seat mounted to bathroom wall. (LI)","No",5,null,0]
[2,8,68,null,"SECTION NO.2","H1"]
[2,8,68,null,"BILL NO.10","H1"]
[2,8,68,null,"METALWORK","H1"]
[2,8,68,null,"(CPAP WORK GROUP NO.136 UNLESS OTHERWISE STATED)","H1"]
[2,8,68,null,"The Contractor is referred to the relevant applicable Preambles in the annexed KZN DOH Standard Preambles to all Trades Rev. 3 Jan. 2009, KZN DOH General Electrical Specifications Sept. 2003, Project Specifications, etc. and the General Preambles to all trades (2017)"]
[2,8,68,null,"Unless otherwise stated herein, all items in this Bill shall be deemed to fall into Work Group No.136 for CPAP purposes."]
[2,8,68,null,"STAINLESS STEEL DOOR FRAMES","H2"]
[2,8,68,null,"All items under this heading shall be deemed to fall into Work Group No. 141 for CPAP purposes"]
[2,8,68,null,"1.6mm Grade 304 purpose made chamfered pressed stainless steel frames with mitred top corners, joints seam welded including corner and reveal stiffeners including preparation for screw on hinges (hinges elsewhere)","H3"]
[2,8,68,1,"Frame for single door size 813 x 2032mm high fixed to half brick wall. (LI) ","No",2,null,{"$f":"G556*H556","v":0}]
[2,8,68,2,"Frame for single door size 813 x 2032mm high fixed to one brick wall. (LI) ","No",1,null,{"$f":"G557*H557","v":0}]
[2,8,69,null,"WELDED GALVANISED STEEL SCREENS, GATES, ETC.","H2"]
[2,8,69,null,"''Sliding Single Sash Trelliwindow'' or equal and approved security units fabricated from hot dip galvanised mild steel, comprising uprights at 115mm centres, trellises, top track, anchor jamb and type 55 strike jamb, all with powder coat finish and structural grade natural anodised aluminium sill, the perimeter framing plugged and screwed at 300mm (maximum) centres to concrete or brickwork using ''Trellidor'' tamper proof coach screws and plastic wall plugs","H3"]
[2,8,69,3,"''Sliding Single Sash Trelliwindow'' security unit to suit opening approximate size 2520mm wide x 3100mm high with three flights of trelliswork, finished in standard colour powder coating and fitted with ''Trellidor Slam-lock'' with 5 pin full cylinder keyed alike.","No",3,null,{"$f":"G560*H560","v":0}]
[2,8,69,4,"''Sliding Single Sash Trelliwindow'' security unit to suit opening approximate size 3840mm wide x 3100mm high with three flights of trelliswork, finished in standard colour powder coating and fitted with ''Trellidor Slam-lock'' with 5 pin full cylinder keyed alike.","No",1,null,{"$f":"G561*H561","v":0}]
[2,8,69,5,"''Sliding Single Sash Trelliwindow'' security unit to suit opening approximate size 5890mm wide x 3100mm high with three flights of trelliswork, finished in standard colour powder coating and fitted with ''Trellidor Slam-lock'' with 5 pin full cylinder keyed alike.","No",1,null,{"$f":"G562*H562","v":0}]
[2,8,69,null,"STEEL ROLLER SHUTTERS, ETC.","H2"]
[2,8,69,null,"Seranda or equal and approved galvanised steel powder coated two hour fire rated roller shutters with 1.0mm slats, fixed to brickwork or concrete","H3"]
[2,8,69,6,"Roller shutter size 1400 x 1800mm high","No",3,null,{"$f":"G565*H565","v":0}]
[2,8,69,null,"POWDER COATED ALUMINIUM WINDOWS, DOORS, SHOPFRONTS, SCREENS, ETC.","H2"]
[2,8,69,null,"All items under this heading shall be deemed to fall into Work Group No. 149 for CPAP purposes"]
[2,8,70,null,"Items shall be manufactured by an approved specialist who shall provide a sample upon request, for the Representative / Principal Agent's approval."]
[2,8,70,null,"Tenderers are to refer to the Architect's Door Schedule, Window Schedules, Ironmongery Schedules, Drawings,etc. annexed to these Bills of Quantities for details, specifications, etc. before pricing these items."]
[2,8,70,null,"Tenderers are to note that should there be any doubt or obscurity as to the meaning and intent of any descriptions, the Contractor must have the same rectified and allow for accordingly in his tender.  The Contractor is to include in his rates for all that he considers necessary for the proper construction of the windows and doors.  No claims whatsoever will be afterwards admitted due to the Contractor having failed to comply with these conditions."]
[2,8,70,null,"Rates shall include for the following:"]
[2,8,70,null,"1. All opening and fixed lights, coupling mullions and transoms, vertical sliders, support steelwork, fittings, window ironmongery, etc., as required and specified."]
[2,8,70,null,"2. Complete glazing, vinyl film, etc. as described with and including matching aluminium glazing beads and gaskets and glazed in accordance with the manufacturer's written instructions"]
[2,8,70,null,"3. Building in and fixing into preformed openings.  Window opening sizes to be verified on site before windows are manufactured."]
[2,8,70,null,"4. Silicone / structural silicone pointing with an approved silicone sealant recommended by AAAMSA on / between windows / doors /  shopfronts and adjoining structures."]
[2,8,70,null,"5. Any and all additional structural supports, brackets, etc. required other than that shown on the drawings that is deemed necessary for the proper manufacture and installation of the windows, doors and shopfronts."]
[2,8,71,null,"6. Method statements, shop drawings, calculations, materials suppliers statements, etc. for approval prior to manufacture."]
[2,8,71,null,"7. Testing for watertightness."]
[2,8,71,null,"8. AAAMSA Certificates, Guarantees, warranties, assurances, maintenance manuals, etc."]
[2,8,71,null,"Powder coated aluminium windows complete with mullions, transoms, gasket seals and beading all installed in accordance with the manufacturers instructions, colour to Architects approval","H3"]
[2,8,71,7,"Window size 600 x 600mm high comprising 1 No. top hung opening section with 6mm laminated obscure / frosted safety glass.","No",1,null,{"$f":"G581*H581","v":0}]
[2,8,71,null,"STAINLESS STEEL BALUSTRADING","H2"]
[2,8,71,null,"Stainless steel balustrade including hand rails, intermediate rails, posts, complete, with an overall height of 1200mm including all fixings, bolts, welding, etc.","H3"]
[2,8,71,8,"On concrete floors","m",13,null,{"$f":"G584*H584","v":0}]
[2,8,71,9,"Extra over for flat closed end.","No",2,null,{"$f":"G585*H585","v":0}]
[2,9,72,null,"SECTION NO.2","H1"]
[2,9,72,null,"BILL NO.11","H1"]
[2,9,72,null,"PLASTERING","H1"]
[2,9,72,null,"(CPAP WORK GROUP NO.142 UNLESS OTHERWISE STATED)","H1"]
[2,9,72,null,"The Contractor is referred to the relevant applicable Preambles in the annexed KZN DOH Standard Preambles to all Trades Rev. 3 Jan. 2009, KZN DOH General Electrical Specifications Sept. 2003, Project Specifications, etc. and the General Preambles to all trades (2017)"]
[2,9,72,null,"Unless otherwise stated herein, all items in this Bill shall be deemed to fall into Work Group No. 142 for CPAP purposes."]
[2,9,72,null,"SUPPLEMENTARY PREAMBLES","H2"]
[2,9,72,null,"Screed testing","H3"]
[2,9,72,null,"Testing to be done by an accredited independent testing specialist, or by the the provision of independently certified test data to demonstrate compliance with the Specification as set out below."]
[2,9,72,null,"Testing to included both light tap and heavy weight impact using a 4kg mass in compliance with the BRE screed tester requirements. Maximum indentation not to exceed 3mm."]
[2,9,73,null,"Alternative substrate testing methods may be put forward for consideration and acceptance by the Principal Agent. All test results to be provided in Microsoft Excel format with unique numbers and the positions of test referenced and indicated on a floor plan (floor plan to be provided by Principal Agent). In all instances of results failing to comply as determined by the Principal Agent, additional tests to prove final compliance will be  for the account of the Contractor."]
[2,9,73,null,"SCREEDS","H2"]
[2,9,73,null,"1:3 Cement screeds steel trowelled on concrete","H3"]
[2,9,73,1,"30mm Thick on floors and landings. (LI)","m2",2510,null,{"$f":"G599*H599","v":0}]
[2,9,74,null,"INTERNAL PLASTER","H2"]
[2,9,74,null,"Cement plaster on brickwork","H3"]
[2,9,74,2,"On walls. (LI)","m2",9493,null,{"$f":"G602*H602","v":0}]
[2,9,74,3,"On narrow widths. (LI)","m2",54,null,{"$f":"G603*H603","v":0}]
[2,10,75,null,"SECTION NO.2","H1"]
[2,10,75,null,"BILL NO.12","H1"]
[2,10,75,null,"TILING","H1"]
[2,10,75,null,"(CPAP WORK GROUP NO. 144 UNLESS OTHERWISE STATED)","H1"]
[2,10,75,null,"The Contractor is referred to the relevant applicable Preambles in the annexed KZN DOH Standard Preambles to all Trades Rev. 3 Jan. 2009, KZN DOH General Electrical Specifications Sept. 2003, Project Specifications, etc. and the General Preambles to all trades (2017)"]
[2,10,75,null,"Unless otherwise stated herein, all items in this Bill shall be deemed to fall into Work Group No. 144 for CPAP purposes."]
[2,10,75,null,"Prime Cost amounts for tiles are NET  Rates for tiling, in addition to the PC amount, must include for fixing, adhesive, grout, wastage, profit, etc"]
[2,10,75,null,"NOTES  Prior to the laying of the floor tiles, the screeded substrate shall be thoroughly checked for levelness, imperfections, etc., as no claim will be entertained should the floor be deemed to be uneven in appearance by the Architect or Client"]
[2,10,75,null,"Rates for wall tiling are to include for pointing at 2m centres in both directions with an approved tinted silicone and expansion joints to the tiled surface, colour to Architects approval."]
[2,10,75,null,"WALL TILING","H2"]
[2,10,76,null,"Allow a PC sum of R250/m2 for 600 x 600mm ceramic tiles including adhesives and preparation to manufacturer recommendations with a white grout finish. Colour to later specification","H3"]
[2,10,76,1,"On walls. (LI)","m2",331,null,{"$f":"G615*H615","v":0}]
[2,10,76,null,"FLOOR TILING","H2"]
[2,10,76,null,"Allow a PC sum of R400/m2 for 48 x 48mm mosaic tiles including adhesives and preparation to manufacturer recommendations with a white grout finish. Colour to later specification Rates to include for expansion joints","H3"]
[2,10,76,2,"On waterproofed shower floors. (LI)","m2",10,null,{"$f":"G618*H618","v":0}]
[2,10,76,3,"On waterproofed shower kerbs. (LI)","m2",1,null,{"$f":"G619*H619","v":0}]
[2,10,76,null,"Allow a PC sum of R250/m2 for 600 x 600mm ceramic tiles including adhesives and preparation to manufacturer recommendations with a white grout finish. Colour to later specification Rates to include for expansion joints","H3"]
[2,10,76,4,"On floors and landings to patterns. (LI)","m2",1016,null,{"$f":"G621*H621","v":0}]
[2,10,76,5,"Skirting 100mm high cut from full bodied tiles. (LI)","m",895,null,{"$f":"G622*H622","v":0}]
[2,10,76,null,"SKIRTINGS, NOSINGS, ETC.","H2"]
[2,10,76,null,"Edge trim fixed in accordance with manufacturers recommendations, colour to Architects approval","H3"]
[2,10,76,6,"8mm High edge trim to walls, bedded in tile adhesive while tiles are laid. (LI)","m",29,null,{"$f":"G625*H625","v":0}]
[2,11,77,null,"SECTION NO.2","H1"]
[2,11,77,null,"BILL NO.13","H1"]
[2,11,77,null,"PLUMBING AND DRAINAGE","H1"]
[2,11,77,null,"(CPAP WORK GROUP NO.148 UNLESS OTHERWISE STATED)","H1"]
[2,11,77,null,"The Contractor is referred to the relevant applicable Preambles in the annexed KZN DOH Standard Preambles to all Trades Rev. 3 Jan. 2009, KZN DOH General Electrical Specifications Sept. 2003, Project Specifications, etc. and the General Preambles to all trades (2017)"]
[2,11,77,null,"Wherever Trade Names appear in this section the Tenders attention if drawn to the fact that any other product of equal quality may be used subject to written approval of the Principal Agent being obtained prior to the closing date for Tender submissions."]
[2,11,77,null,"Unless otherwise stated herein, all items in this Bill shall be deemed to fall into Work Group No. 146 and 148 for CPAP purposes."]
[2,11,77,null,"SUPPLEMENTARY PREAMBLES","H2"]
[2,11,77,null,"Descriptions of cast iron roof outlets shall be deemed to include joints to pipes and casting into concrete (adaptors for joints to PVC pipes, etc. are given separately).  Descriptions of overflow pipes where measured in number, shall be deemed to include joints to cisterns and splay cut ends."]
[2,11,77,null,"Descriptions of pipes laid in and including trenches and of inspection chambers, catch pits, etc. shall be deemed to include excavation, bedding, backfilling, compaction to a minimum of 93% Mod AASHTO density and disposal of surplus material on site."]
[2,11,78,null,"Descriptions of service pipes and flexible connecting pipes shall be deemed to include connections to taps, cisterns, etc. and to steel pipes (adaptors for connections to copper pipes, etc are given separately)."]
[2,11,78,null,"Prices for sanitary fittings fixed to walls or abutting walls shall include for sealing against walls with silicone sealing compound.  This shall apply to wash hand basins, sinks and drainers, urinals, WC cisterns, wash troughs, shower trays and the like."]
[2,11,78,null,"SANITARY FITTINGS","H2"]
[2,11,78,null,"Vaal or equal and approved","H3"]
[2,11,78,null,"Wash Hand Basins","H3"]
[2,11,78,1,"Ceramic fireclay 550 x 400mm rectangular “Springbok” or similar and approved basin with two tap holes, integrated overflow and chainstay hole. (LI)","No",9,null,{"$f":"G641*H641","v":0}]
[2,11,78,null,"Water Closets","H3"]
[2,11,78,2,"Vitreous china \"Protea Paraplegic\" 90° outlet pan (code 750200) and matching 9 litre cistern (code 7116LP) or similar and approved wc complete with lid, fitments, and purpose-made C.P. side-flush lever (left or right) or a back inlet exposed flushvalve. Bottom inlet water supply must be on same side as flush lever. (LI)","No",7,null,{"$f":"G643*H643","v":0}]
[2,11,78,null,"Bath Tub","H3"]
[2,11,78,3,"1700 x 700mm  Built-in bath tub installation complete, including all pipework and connections to existing plumbing and drainage network and making good of existing finishes. (LI)","No",1,null,{"$f":"G645*H645","v":0}]
[2,11,78,null,"WASTE UNIONS, ETC.","H2"]
[2,11,78,null,"Cobra or equal and approved","H3"]
[2,11,78,4,"32mm chrome plated basin waste (code: 308) with 62mm diameter flange, 80mm long shank and plug. (LI)","No",9,null,{"$f":"G648*H648","v":0}]
[2,11,78,5,"40mm chrome plated waste (Code: 309-40) with anti-theft plug and spindle. (LI)","No",3,null,{"$f":"G649*H649","v":0}]
[2,11,79,6,"32mm chrome plated slotted basin waste (Code: 303) with 62mm diameter flange, 80mm long shank and plug. (LI)","No",1,null,{"$f":"G650*H650","v":0}]
[2,11,79,null,"TRAPS, ETC.","H2"]
[2,11,79,7,"GEBERIT 50X50mm 152.039.16.1  or equal and approved HDPE P trap. (LI)","No",9,null,{"$f":"G652*H652","v":0}]
[2,11,79,8,"WIRQUIN or equal and approved twista square shower trap, all chrome plated or equal approved. (LI)","No",4,null,{"$f":"G653*H653","v":0}]
[2,11,79,null,"TAPS, VALVES, ETC.","H2"]
[2,11,79,null,"Cobra or equal and approved","H3"]
[2,11,79,9,"Shower mixer concealed\" or similar and approved. (LI)","No",4,null,{"$f":"G656*H656","v":0}]
[2,11,79,10,"Shower head with ball-jointed connector including one pair undertile stop tap code: XE- 228-15. (LI)","No",4,null,{"$f":"G657*H657","v":0}]
[2,11,79,11,"Medical pillar tap. Cold tap indicator: Blue indice. (LI)","No",9,null,{"$f":"G658*H658","v":0}]
[2,11,79,12,"Medical pillar tap. Cold tap indicator: Red indice. (LI)","No",9,null,{"$f":"G659*H659","v":0}]
[2,11,79,null,"WATER SUPPLIES","H2"]
[2,11,79,null,"Class 460/2 copper pipes","H3"]
[2,11,79,13,"15mm Pipe chased into brickwork including brown paper lagging. (LI)","m",30,null,{"$f":"G662*H662","v":0}]
[2,11,79,14,"22mm Pipe chased into brickwork including brown paper lagging. (LI) ","m",22,null,{"$f":"G663*H663","v":0}]
[2,11,79,null,"Extra over Class 460/2 copper pipes for the following capillary fittings","H3"]
[2,11,79,15,"15mm Fitting. (LI)","No",17,null,{"$f":"G665*H665","v":0}]
[2,11,79,16,"22mm Fitting. (LI)","No",8,null,{"$f":"G666*H666","v":0}]
[2,11,79,17,"35mm Reducer. (LI)","No",2,null,{"$f":"G667*H667","v":0}]
[2,11,80,18,"35mm Bend. (LI)","No",2,null,{"$f":"G668*H668","v":0}]
[2,11,80,19,"35mm Tee. (LI)","No",2,null,{"$f":"G669*H669","v":0}]
[2,11,80,null,"SANITARY PLUMBING","H2"]
[2,11,80,null,"uPVC soil and vent pipes","H3"]
[2,11,80,20,"50mm Pipe. (LI)","m",15,null,{"$f":"G672*H672","v":0}]
[2,11,80,21,"50mm Pipe chased in walls or concrete. (LI)","m",37,null,{"$f":"G673*H673","v":0}]
[2,11,80,22,"110mm Pipe. (LI)","m",20,null,{"$f":"G674*H674","v":0}]
[2,11,80,null,"Extra over uPVC soil and vent pipes for fittings","H3"]
[2,11,80,23,"50mm Bend. (LI)","No",3,null,{"$f":"G676*H676","v":0}]
[2,11,80,24,"110mm Bend. (LI)","No",2,null,0]
[2,11,80,25,"110mm Access bend. (LI)","No",2,null,0]
[2,11,80,26,"50mm Junction. (LI)","No",1,null,0]
[2,11,80,27,"110mm Access junction. (LI)","No",1,null,0]
[2,11,80,28,"110mm Straight pan connector. (LI)","No",1,null,0]
[2,11,80,null,"HOLES, ETC.","H2"]
[2,11,80,null,"Core drilling hole exceeding 100mm and not exceeding 150mm diameter","H3"]
[2,11,80,29,"220mm Thick brick walls, etc. (LI)","No",1,null,{"$f":"G684*H684","v":0}]
[2,12,81,null,"SECTION NO.2","H1"]
[2,12,81,null,"BILL NO.14","H1"]
[2,12,81,null,"GLAZING","H1"]
[2,12,81,null,"(CPAP WORK GROUP NO,150 UNLESS OTHERWISE STATED)","H1"]
[2,12,81,null,"The Contractor is referred to the relevant applicable Preambles in the annexed KZN DOH Standard Preambles to all Trades Rev. 3 Jan. 2009, KZN DOH General Electrical Specifications Sept. 2003, Project Specifications, etc. and the General Preambles to all trades (2017)"]
[2,12,81,null,"Unless otherwise stated herein, all items in this Bill shall be deemed to fall into Work Group No.150 for CPAP purposes."]
[2,12,81,null,"TOPS, SHELVES, DOORS, MIRRORS, ETC.","H2"]
[2,12,81,null,"6mm GG quality polished glass mirror with 10mm bevelled and polished edges and pre-drilled fixing holes, to comply with SANS 1236 - Class A, fixed with chromium plated dome capped mirror screws with rubber buffers to plugs in tiled brickwork or concrete","H3"]
[2,12,81,1,"450 x 600mm high quality mirror complete with bevelled edges plugged and screwed to tiled wall with 4no round nose chromium plated mirror screw with dome caps. (LI)","No",9,null,{"$f":"G693*H693","v":0}]
[2,13,82,null,"SECTION NO.2","H1"]
[2,13,82,null,"BILL NO.15","H1"]
[2,13,82,null,"PAINTWORK","H1"]
[2,13,82,null,"(CPAP WORK GROUP NO.152 UNLESS OTHERWISE STATED)","H1"]
[2,13,82,null,"The Contractor is referred to the relevant applicable Preambles in the annexed KZN DOH Standard Preambles to all Trades Rev. 3 Jan. 2009, KZN DOH General Electrical Specifications Sept. 2003, Project Specifications, etc. and the General Preambles to all trades (2017)"]
[2,13,82,null,"Unless otherwise stated herein, all items in this Bill shall be deemed to fall into Work Group No.152 for CPAP purposes."]
[2,13,82,null,"Wherever Trade Names appear in this section the Tenders attention if drawn to the fact that any other product of equal quality may be used subject to written approval of the Principal Agent being obtained prior to the closing date for Tender submissions."]
[2,13,82,null,"PAINTWORK, ETC. TO NEW WORK","H2"]
[2,13,82,null,"ON FLOATED PLASTER","H2"]
[2,13,82,null,"Prepare surface as per manufacturer's specification and apply one coat primer, one under coat and two finishing coats 'Plascon Velvaglo' or equal and approved","H3"]
[2,13,82,1,"On internal walls. (LI)","m2",9548,null,{"$f":"G704*H704","v":0}]
[2,13,83,null,"ON PLASTER BOARD","H2"]
[2,13,83,null,"Prepare surface as per manufacturer's specification and apply one under coat and two finishing coats 'Plascon/Dulux' or equal and approved","H3"]
[2,13,83,2,"On flush plastered ceilings and bulkheads in patches. (LI)","m2",4678,null,{"$f":"G707*H707","v":0}]
[2,13,83,null,"ON WOOD","H2"]
[2,13,83,null,"Prepare surface as per manufacturer's specification and apply one coat 'Plascon' wood primer and two finishing coats water based 'Plascon Velvaglo Satin' or equal and approved","H3"]
[2,13,83,3,"On doors. (LI)","m2",1712,null,{"$f":"G710*H710","v":0}]
[2,13,83,4,"On frames. (LI)","m2",98,null,{"$f":"G711*H711","v":0}]
[2,13,83,null,"ON METAL","H2"]
[2,13,83,null,"Prepare surface as per manufacturer's specification and apply one coat primer, and two finishing coats water based 'Plascon Velvaglo Satin' or equal and approved","H3"]
[2,13,83,5,"On door frames. (LI)","m2",4,null,{"$f":"G714*H714","v":0}]
[2,13,83,null,"REDECORATION","H1"]
[2,13,83,null,"PREPARATORY WORK TO EXISTING WORK","H2"]
[2,13,83,null,"Previously painted plastered surfaces","H3"]
[2,13,83,null,"Surfaces shall be thoroughly washed down and allowed to dry completely before any paint is applied.  Blistered or peeling paint shall be completely removed and cracks shall be opened, filled with a suitable filler and finished smooth."]
[2,13,84,null,"Previously painted metal surfaces","H3"]
[2,13,84,null,"Surfaces shall be thoroughly rubbed and cleaned down,  blistered or peeling paint shall be completely removed down to bare metal."]
[2,13,84,null,"Previously painted wood surfaces","H3"]
[2,13,84,null,"Surfaces shall be thoroughly cleaned down,  blistered or peeling paint shall be completely removed and cracks and crevices shall be primed, filled with suitable filler and finished smooth."]
[2,13,84,null,"ON FLOATED PLASTER","H2"]
[2,13,84,null,"Rub down / strip to bare surface and prepare surface as per manufacturer's specification and apply one coat primer, one under coat and two finishing coats 'Plascon Velvaglo' or equal and approved","H3"]
[2,13,84,6,"On internal walls in patches. (LI)","m2",4105,null,{"$f":"G725*H725","v":0}]
[2,13,84,null,"ON PLASTER BOARD","H2"]
[2,13,84,null,"Prepare surface as per manufacturer's specification and 'Plascon/Dulux' or equal and approved","H3"]
[2,13,84,7,"On partitions. (LI)","m2",9,null,{"$f":"G728*H728","v":0}]
[2,14,85,1,"Alterations","Page",50,null,{"$f":"SUM(I222:I364)","v":0}]
[2,14,85,2,"Masonry","Page",52,null,{"$f":"SUM(I372:I393)","v":0}]
[2,14,85,3,"Waterproofing","Page",53,null,{"$f":"SUM(I399:I400)","v":0}]
[2,14,85,4,"Carpentry and Joinery","Page",57,null,{"$f":"SUM(I409:I443)","v":0}]
[2,14,85,5,"Ceilings, Partitioning and Access Flooring","Page",60,null,{"$f":"SUM(I452:I470)","v":0}]
[2,14,85,6,"Floor Coverings, Wall Linings, etc.","Page",62,null,{"$f":"SUM(I480:I491)","v":0}]
[2,14,85,7,"Ironmongery","Page",67,null,{"$f":"SUM(I504:I546)","v":0}]
[2,14,85,8,"Metalwork","Page",71,null,{"$f":"SUM(I555:I585)","v":0}]
[2,14,85,9,"Plastering","Page",74,null,{"$f":"SUM(I597:I603)","v":0}]
[2,14,85,10,"Tiling","Page",76,null,{"$f":"SUM(I614:I625)","v":0}]
[2,14,85,11,"Plumbing and Drainage","Page",80,null,{"$f":"SUM(I640:I684)","v":0}]
[2,14,85,12,"Glazing","Page",81,null,{"$f":"SUM(I692:I693)","v":0}]
[2,14,85,13,"Paintwork","Page",84,null,{"$f":"SUM(I703:I728)","v":0}]
[3,1,86,null,"SECTION NO.3","H1"]
[3,1,86,null,"BILL NO.1","H1"]
[3,1,86,null,"EXTERNAL WORKS (ALL TRADES)","H1"]
[3,1,86,null,"The Contractor is referred to the relevant applicable Preambles in the annexed KZN DOH Standard Preambles to all Trades Rev. 3 Jan. 2009, KZN DOH General Electrical Specifications Sept. 2003, Project Specifications, etc. and the General Preambles to all trades (2017)"]
[3,1,86,null,"Unless otherwise stated herein, all items in this Bill shall be deemed to fall into Work Group No.154 for CPAP purposes."]
[3,1,86,null,"ELECTRICAL SLEEVES","H1"]
[3,1,86,null,"ALTERATIONS (PROVISIONAL)","H1"]
[3,1,86,null,"(CPAP WORK GROUP NO.102 UNLESS OTHERWISE STATED)","H1"]
[3,1,86,null,"CUTTING THROUGH FLOORS FOR ELECTRICAL SLEEVES","H2"]
[3,1,86,1,"Saw cutting through and digging out approximately 250mm deep existing concrete floor slab and layer works, overall 1000mm wide including remedial builders works on both sides for new concrete slab (elsewhere measured) and stock piling all material on site. (LI)","m",757,null,{"$f":"G751*H751","v":0}]
[3,1,86,2,"Saw cutting through and digging out approximately 150mm deep existing tarmac and layer works, overall 1000mm wide including remedial builders works on both sides for new tarmac (elsewhere measured) and stock piling all material on site. (LI)","m",878,null,{"$f":"G752*H752","v":0}]
[3,1,87,null,"EARTHWORKS (PROVISIONAL)","H1"]
[3,1,87,null,"(CPAP WORK GROUP NO.104 UNLESS OTHERWISE STATED)","H1"]
[3,1,87,null,"EARTH FILLING, ETC.","H2"]
[3,1,87,null,"Earth filling from stock piles on site (where concrete slabs were saw cut)","H3"]
[3,1,87,3,"Backfilling to trenches where concrete slab has been removed, etc. (LI)","m3",76,null,{"$f":"G757*H757","v":0}]
[3,1,87,null,"CARTING AWAY","H2"]
[3,1,87,null,"Extra over all excavations for loading, carting and dumping surplus excavated material","H3"]
[3,1,87,4,"Off site to be located by the contractor. (LI)","m3",88,null,{"$f":"G760*H760","v":0}]
[3,1,87,null,"CONCRETE, FORMWORK AND REINFORCEMENT, ETC.(PROVISIONAL)","H1"]
[3,1,87,null,"CONCRETE","H2"]
[3,1,87,null,"(CPAP WORK GROUP NO.110 UNLESS OTHERWISE STATED)","H2"]
[3,1,87,null,"REINFORCED CONCRETE CAST AGAINST EXISTING CONCRETE SURFACE BEDS","H2"]
[3,1,87,null,"25MPa/19mm Concrete","H3"]
[3,1,87,5,"Surface beds, etc. (LI)","m3",114,null,{"$f":"G766*H766","v":0}]
[3,1,87,null,"CONCRETE SUNDRIES","H2"]
[3,1,87,null,"Finishing top surfaces of concrete to an evenly ribbed non-slip surface","H3"]
[3,1,87,6,"Surface beds, slabs, etc. (LI)","m2",757,null,{"$f":"G769*H769","v":0}]
[3,1,87,null,"REINFORCEMENT","H2"]
[3,1,88,null,"(CPAP WORK GROUP NO.114 UNLESS OTHERWISE STATED)","H2"]
[3,1,88,null,"Fabric reinforcement","H3"]
[3,1,88,7,"Type 193 fabric reinforcement in concrete surface bed, slabs, etc. (LI)","m2",757,null,{"$f":"G773*H773","v":0}]
[3,1,88,null,"MOVEMENT JOINTS, ETC.","H2"]
[3,1,88,null,"Expansion joints with bitumen impregnated fibreboard between vertical concrete surfaces","H3"]
[3,1,88,8,"10mm Joints not exceeding 300mm high. (LI)","m",1514,null,{"$f":"G776*H776","v":0}]
[3,1,88,null,"WATERPROOFING (PROVISIONAL)","H1"]
[3,1,88,null,"(CPAP WORK GROUP NO.120 UNLESS OTHERWISE STATED)","H1"]
[3,1,88,null,"JOINT SEALANTS, ETC.","H2"]
[3,1,88,null,"Two-part grey polysulphide sealing compound including backing cord, bond breaker, primer, etc","H3"]
[3,1,88,9,"10 x 10mm In expansion joints in vertical concrete surfaces including raking out expansion joint filler as necessary (LI)","m",1514,null,{"$f":"G781*H781","v":0}]
[3,1,88,null,"ROADWORK, PARKING AREAS AND PAVING (PROVISIONAL)","H1"]
[3,1,88,null,"(CPAP WORK GROUP NO.154 UNLESS OTHERWISE STATED)","H1"]
[3,1,88,null,"Bituminous premix road surfacing","H3"]
[3,1,88,10,"20mm Thick (finished thickness) paving to parking areas, roadways, including 150mm crusher run, tack coat etc. (LI)","m2",878,null,{"$f":"G785*H785","v":0}]
[3,1,88,null,"SLEEVES","H2"]
[3,1,89,null,"uPVC pipe laid on bedding recommended by Engineer, including excavations in pickable material, backfilling and compacting to 95% Modified AASHTHO density and all necessary risk of collapse and dewatering of trenches  ","H3"]
[3,1,89,11,"110mm uPVC pipe (sleeve). (LI)  ","m",1635,null,{"$f":"G788*H788","v":0}]
[4,1,90,null,"SECTION NO.4","H1"]
[4,1,90,null,"BILL NO.1","H1"]
[4,1,90,null,"EQUIPMENT","H1"]
[4,1,90,null,"(CPAP WORK GROUP NO.170 UNLESS OTHERWISE STATED)","H1"]
[4,1,90,null,"The Tenderer is referred to the relevant Clauses in the separate document General Preambles for Trades (2017 Edition)"]
[4,1,90,null,"PUMPS","H2"]
[4,1,90,null,"Supply and installation of pumps as referred to in Part C3.1 Scope of Work, C3.2 Standard Specification (Section 01.1 Booster Pump and Jockey Set) and C3.3 Detailed specifications.  Refer to section 2.3 of the Preambles when pricing."]
[4,1,90,null,"Horizontal single stage pumps","H3"]
[4,1,90,1,"Electrical jockey pump, 90ℓ/min, 41m head, 1.5kW ","No",1,null,{"$f":"G797*H797","v":0}]
[4,1,90,null,"Sump pumps","H3"]
[4,1,90,2,"Sump pump, 5ℓ/s, 25m head, 4kW","No",1,null,{"$f":"G799*H799","v":0}]
[4,1,90,null,"Horizontal single stage pumps","H3"]
[4,1,90,3,"Electrical fire water pump, 2400ℓ/min, 41m head, 22kW (1 duty, 1 standby)","No",1,null,{"$f":"G801*H801","v":0}]
[4,1,90,4,"Electrical water pump (2 duty, 1 standby), 416ℓ/s, 31m head, 4kW, including diaphragm tank","No",1,null,{"$f":"G802*H802","v":0}]
[4,1,91,null,"Control panels","H2"]
[4,1,91,null,"Fire Hydrant and Domestic Water Supply Control Panel","H3"]
[4,1,91,null,"Supply and installation of Control Panels as referred to in Part C3.1 Scope of Work, and C3.3 Detailed specifications.  "]
[4,1,91,5,"Control Panel for Fire Hydrant, Jockey Pump, Domestic Water Supply and Sump Pump Installation","No",1,null,{"$f":"G806*H806","v":0}]
[4,2,92,null,"SECTION NO.4","H1"]
[4,2,92,null,"BILL NO. 2","H1"]
[4,2,92,null,"SYSTEM ACCESSORIES","H1"]
[4,2,92,null,"(CPAP WORK GROUP NO.170 UNLESS OTHERWISE STATED)","H1"]
[4,2,92,null,"The Tenderer is referred to the relevant Clauses in the separate document General Preambles for Trades (2017 Edition)"]
[4,2,92,null,"SUPPRESSION FITTINGS AND ASSEMBLIES","H2"]
[4,2,92,null,"Supply and installation of suppression accessories as per C3.2 Standard Specifications, refer to 2.1.3 of the Preambles when pricing. "]
[4,2,92,null,"Fire water accessories","H3"]
[4,2,92,1,"External fire hydrant Complete with Concrete Block","No",61,null,{"$f":"G815*H815","v":0}]
[4,2,92,2,"Fire hydrant","No",4,null,{"$f":"G816*H816","v":0}]
[4,2,92,3,"Fire hose reel","No",128,null,{"$f":"G817*H817","v":0}]
[4,2,92,4,"4.5kg DCP Portable extinguisher","No",459,null,{"$f":"G818*H818","v":0}]
[4,2,92,5,"Booster connection arrangement (refer to Arrangement A on site fire plan), including fire hydrant, pressure gauge, 110mm non-return valve and valve box. Valve box to be 220mm thick brick chamber with 15MPa concrete base and heavy 600x600 heavy duty cover.","No",2,null,{"$f":"G819*H819","v":0}]
[4,2,92,null,"PLANT ROOM ANCILLARIES","H2"]
[4,2,92,null,"Tank accessories","H3"]
[4,2,92,6,"Tank-infill water level control valve, 100mm","No",1,null,{"$f":"G822*H822","v":0}]
[4,2,92,7,"Mechanically water level indicators c/w floats, cables, pulleys and level signage","No",1,null,{"$f":"G823*H823","v":0}]
[4,3,93,null,"SECTION NO.4","H1"]
[4,3,93,null,"BILL NO.3","H1"]
[4,3,93,null,"SIGNAGE","H1"]
[4,3,93,null,"(CPAP WORK GROUP NO.170 UNLESS OTHERWISE STATED)","H1"]
[4,3,93,null,"The Tenderer is referred to the relevant Clauses in the separate document General Preambles for Trades (2017 Edition)"]
[4,3,93,null,"PHOTOLUMINESCENT SIGNAGE, CHROMADEK","H2"]
[4,3,93,null,"Single sided, with aluminium frame","H3"]
[4,3,93,1,"Photoluminescent fire signage, 150mm x 300mm wall mount. (LI)","No",null,null,"Rate Only"]
[4,3,93,2,"Photoluminescent fire signage, 190mm x 380mm wall mount. (LI)","No",null,null,"Rate Only"]
[4,3,93,3,"Photoluminescent fire signage, 290mm x 580mm wall mount. (LI)","No",null,null,"Rate Only"]
[4,3,93,4,"Photoluminescent fire signage, 440mm x 880mm wall mount. (LI)","No",null,null,"Rate Only"]
[4,3,93,5,"Photoluminescent fire signage, 600mm x 1200mm wall mount. (LI)","No",null,null,"Rate Only"]
[4,3,93,null,"Double sided, with aluminium frame","H3"]
[4,3,93,6,"Photoluminescent fire signage, 150mm x 300mm suspended from ceiling. (LI)","No",null,null,"Rate Only"]
[4,3,93,7,"Photoluminescent fire signage, 190mm x 380mm suspended from ceiling. (LI)","No",null,null,"Rate Only"]
[4,3,93,8,"Photoluminescent fire signage, 290mm x 580mm suspended from ceiling. (LI)","No",null,null,"Rate Only"]
[4,3,94,9,"Photoluminescent fire signage, 440mm x 880mm suspended from ceiling. (LI)","No",null,null,"Rate Only"]
[4,3,94,10,"Photoluminescent fire signage, 600mm x 1200mm suspended from ceiling. (LI)","No",null,null,"Rate Only"]
[4,3,94,null,"Instructional signage","H3"]
[4,3,94,11,"In case of fire do not use the lift, 190mm x190mm. (LI)","No",null,null,"Rate Only"]
[4,3,94,12,"Fire alarm indication sign, 190mm x190mm. (LI)","No",null,null,"Rate Only"]
[4,3,94,13,"Assembly point, 190mm x190mm. (LI)","No",null,null,"Rate Only"]
[4,3,94,14,"Booster connection, 190mm x190mm. (LI)","No",null,null,"Rate Only"]
[4,3,94,15,"Flammable liquid storage, 190mm x190mm. (LI)","No",null,null,"Rate Only"]
[4,3,94,16,"Refuge area, 190mm x190mm. (LI)","No",null,null,"Rate Only"]
[4,3,94,17,"Floor level (stair signgage), 190mm x190mm. (LI)","No",null,null,"Rate Only"]
[4,3,94,18,"Fire escape door keep clear, 190mm x190mm. (LI)","No",null,null,"Rate Only"]
[4,4,95,null,"SECTION NO.4","H1"]
[4,4,95,null,"BILL NO.4","H1"]
[4,4,95,null,"PIPING (SANS 62 GALVANISED MILD STEEL)","H1"]
[4,4,95,null,"(CPAP WORK GROUP NO.170 UNLESS OTHERWISE STATED)","H1"]
[4,4,95,null,"The Tenderer is referred to the relevant Clauses in the separate document General Preambles for Trades (2017 Edition)"]
[4,4,95,null,"GMS PIPING AND ANCILLARIES INCLUDING SUPPORTS AND FIXINGS","H2"]
[4,4,95,null,"GMS piping, supported in single volume space","H3"]
[4,4,95,1,"Ø25mm Threaded GMS pipe","m",2550,null,{"$f":"G858*H858","v":0}]
[4,4,95,2,"Ø32mm Threaded GMS pipe","m",null,null,"Rate Only"]
[4,4,95,3,"Ø40mm Threaded GMS pipe","m",null,null,"Rate Only"]
[4,4,95,4,"Ø50mm Threaded GMS pipe","m",3100,null,{"$f":"G861*H861","v":0}]
[4,4,95,5,"Ø65mm Threaded GMS pipe","m",null,null,"Rate Only"]
[4,4,95,6,"Ø80mm Threaded GMS pipe","m",240,null,{"$f":"G863*H863","v":0}]
[4,4,95,7,"Ø90mm Threaded GMS pipe","m",300,null,{"$f":"G864*H864","v":0}]
[4,4,95,null,"Extra over for GMS piping, pipe fittings","H2"]
[4,4,95,null,"GMS pipe, threaded fittings = 30mm","H3"]
[4,4,95,8,"Ø25mm Threaded fitting ","No",1000,null,{"$f":"G867*H867","v":0}]
[4,4,95,null,"GMS pipe, threaded fittings","H3"]
[4,4,95,9,"Ø32mm Threaded bend ","No",null,null,"Rate Only"]
[4,4,96,10,"Ø40mm Threaded bend ","No",null,null,"Rate Only"]
[4,4,96,11,"Ø50mm Threaded bend ","No",300,null,{"$f":"G871*H871","v":0}]
[4,4,96,12,"Ø65mm Threaded bend ","No",null,null,"Rate Only"]
[4,4,96,13,"Ø80mm Threaded bend ","No",20,null,{"$f":"G873*H873","v":0}]
[4,4,96,14,"Ø90mm Threaded bend ","No",20,null,{"$f":"G874*H874","v":0}]
[4,4,96,15,"Ø32mm Threaded reducer ","No",null,null,"Rate Only"]
[4,4,96,16,"Ø40mm Threaded reducer ","No",null,null,"Rate Only"]
[4,4,96,17,"Ø50mm Threaded reducer ","No",125,null,{"$f":"G877*H877","v":0}]
[4,4,96,18,"Ø65mm Threaded reducer ","No",null,null,"Rate Only"]
[4,4,96,19,"Ø80mm Threaded reducer ","No",10,null,{"$f":"G879*H879","v":0}]
[4,4,96,20,"Ø90mm Threaded reducer ","No",10,null,{"$f":"G880*H880","v":0}]
[4,4,96,21,"Ø32mm Threaded tee piece ","No",null,null,"Rate Only"]
[4,4,96,22,"Ø40mm Threaded tee piece ","No",null,null,"Rate Only"]
[4,4,96,23,"Ø50mm Threaded tee piece ","No",125,null,{"$f":"G883*H883","v":0}]
[4,4,96,24,"Ø65mm Threaded tee piece ","No",null,null,"Rate Only"]
[4,4,96,25,"Ø80mm Threaded tee piece ","No",10,null,{"$f":"G885*H885","v":0}]
[4,4,96,26,"Ø90mm Threaded tee piece ","No",10,null,{"$f":"G886*H886","v":0}]
[4,5,97,null,"SECTION NO.4","H1"]
[4,5,97,null,"BILL NO. 5","H1"]
[4,5,97,null,"PIPING – COPPER","H1"]
[4,5,97,null,"(CPAP WORK GROUP NO.170 UNLESS OTHERWISE STATED)","H1"]
[4,5,97,null,"The Tenderer is referred to the relevant Clauses in the separate document General Preambles for Trades (2017 Edition)"]
[4,5,97,null,"SANS 460 Hard drawn capillary type copper tubing to be used. Straight couplers (equal), whether copper to copper; copper to iron; copper to multi layer are deemed to be running joints and therefore shall be included in the rates for piping.  Lead free soldering or brazing to be used.  All work to be performed in accordance with manufacturer's specifications."]
[4,5,97,null,"Rates shall include all adaptors, couplers, brackets, elbow wall plates, elbows, male and female connectors and reducers not explicitly measured separately"]
[4,5,97,null,"Refer to Part C3.2 Section 16"]
[4,5,97,null,"Copper piping and ancillaries including supports and fixings","H2"]
[4,5,97,null,"Copper piping fixed to walls, chased into walls, ceilings and against soffits","H3"]
[4,5,97,1,"Ø15mm Brazed copper pipe, class 2","m",null,null,"Rate Only"]
[4,5,97,2,"Ø22mm Brazed copper pipe, class 2","m",null,null,"Rate Only"]
[4,5,97,3,"Ø28mm Brazed copper pipe, class 2","m",null,null,"Rate Only"]
[4,5,97,4,"Ø35mm Brazed copper pipe, class 2","m",null,null,"Rate Only"]
[4,5,97,5,"Ø42mm Brazed copper pipe, class 2","m",null,null,"Rate Only"]
[4,5,97,6,"Ø54mm Brazed copper pipe, class 2","m",600,null,{"$f":"G902*H902","v":0}]
[4,5,98,7,"Ø76mm Brazed copper pipe, class 2","m",null,null,"Rate Only"]
[4,5,98,8,"Ø108mm Brazed copper pipe, class 2","m",null,null,"Rate Only"]
[4,5,98,null,"Extra over for Copper, pipe fittings","H2"]
[4,5,98,null,"Extra over on SANS 460 copper piping, supply, install, test commission and handover the following pipe fittings complete with adaptors, flanges, bushes, unions, fixing brackets etc. in the running length. "]
[4,5,98,null,"Copper fittings = 30mm","H3"]
[4,5,98,9,"Ø15mm Soldered copper fitting","No",null,null,"Rate Only"]
[4,5,98,10,"Ø22mm Soldered copper fitting","No",null,null,"Rate Only"]
[4,5,98,11,"Ø28mm Soldered copper fitting","No",null,null,"Rate Only"]
[4,5,98,null,"Copper bends","H3"]
[4,5,98,null,"No distinction is made between elbows and bends of varying degrees for water supply piping"]
[4,5,98,12,"Ø35mm Soldered copper bend","No",null,null,"Rate Only"]
[4,5,98,13,"Ø42mm Soldered copper bend","No",null,null,"Rate Only"]
[4,5,98,14,"Ø54mm Soldered copper bend","No",240,null,{"$f":"G915*H915","v":0}]
[4,5,98,15,"Ø76mm Soldered copper bend","No",null,null,"Rate Only"]
[4,5,98,16,"Ø108mm Soldered copper bend","No",null,null,"Rate Only"]
[4,5,98,null,"Copper Tee's","H3"]
[4,5,98,17,"Ø35mm - Ø35mm Soldered copper Tee","No",null,null,"Rate Only"]
[4,5,98,18,"Ø42mm - Ø42mm Soldered copper Tee","No",null,null,"Rate Only"]
[4,5,98,19,"Ø54mm - Ø54mm Soldered copper Tee","No",40,null,{"$f":"G921*H921","v":0}]
[4,5,98,20,"Ø76mm - Ø76mm Soldered copper Tee","No",null,null,"Rate Only"]
[4,5,99,21,"Ø108mm - Ø108mm Soldered copper Tee","No",null,null,"Rate Only"]
[4,5,99,null,"Copper reducers (largest size)","H3"]
[4,5,99,22,"Ø35mm Soldered copper reducer","No",null,null,"Rate Only"]
[4,5,99,23,"Ø42mm Soldered copper reducer","No",null,null,"Rate Only"]
[4,5,99,24,"Ø54mm Soldered copper reducer","No",40,null,{"$f":"G927*H927","v":0}]
[4,5,99,25,"Ø76mm Soldered copper reducer","No",null,null,"Rate Only"]
[4,6,100,null,"SECTION NO.4","H1"]
[4,6,100,null,"BILL NO. 6","H1"]
[4,6,100,null,"PIPING – HDPE (DOMESTIC WATER SUPPLY PIPES)","H1"]
[4,6,100,null,"(CPAP WORK GROUP NO.170 UNLESS OTHERWISE STATED)","H1"]
[4,6,100,null,"The Tenderer is referred to the relevant Clauses in the separate document General Preambles for Trades (2017 Edition)"]
[4,6,100,null,"High Density Polyethylene PE 100 PN12, SABS 533 Part 1, 2 and 3 compliant and SABS ISO 4427. Blue stripe identification made with virgin polyethylene material."]
[4,6,100,null,"Rates shall include all adaptors, couplers, brackets, elbow wall plates, elbows, male and female connectors and reducers not explicitly measured separately"]
[4,6,100,null,"General note: Typically only use class 16 or 12 for the water supply piping"]
[4,6,100,null,"HDPE PIPING AND ANCILLARIES INCLUDING SUPPORTS AND FIXINGS","H2"]
[4,6,100,null,"HDPE piping, trenched 1m deep including all excavations, SANS approved backfilling, pipe bedding, fill blankets, compacting and carting away excess material off site as recommended by the Engineer","H3"]
[4,6,100,1,"Ø32mm Butt welded HDPE pipe, PN12 ","m",100,null,{"$f":"G939*H939","v":0}]
[4,6,100,2,"Ø40mm Butt welded HDPE pipe, PN12 ","m",100,null,0]
[4,6,100,3,"Ø50mm Butt welded HDPE pipe, PN12 ","m",100,null,0]
[4,6,100,4,"Ø63mm Butt welded HDPE pipe, PN12 ","m",50,null,0]
[4,6,100,5,"Ø75mm Butt welded HDPE pipe, PN12 ","m",50,null,0]
[4,6,101,6,"Ø90mm Butt welded HDPE pipe, PN12 ","m",50,null,0]
[4,6,101,7,"Ø110mm Butt welded HDPE pipe, PN12 ","m",3000,null,0]
[4,6,101,null,"EXTRA OVER FOR HDPE, PIPE FITTINGS","H2"]
[4,6,101,null,"Extra over on HDPE water piping, supply, install, test commission and handover the following pipe fittings complete with adaptors, flanges, bushes, unions, fixing brackets etc. in the running length. "]
[4,6,101,null,"HDPE bends","H3"]
[4,6,101,null,"No distinction is made between elbows and bends of varying degrees for water supply piping"]
[4,6,101,8,"Ø32mm Butt welded HDPE bend","No",10,null,{"$f":"G950*H950","v":0}]
[4,6,101,9,"Ø40mm Butt welded HDPE bend","No",10,null,0]
[4,6,101,10,"Ø50mm Butt welded HDPE bend","No",10,null,0]
[4,6,101,11,"Ø63mm Butt welded HDPE bend","No",10,null,0]
[4,6,101,12,"Ø75mm Butt welded HDPE bend","No",10,null,0]
[4,6,101,13,"Ø90mm Butt welded HDPE bend","No",10,null,0]
[4,6,101,14,"Ø110mm Butt welded HDPE bend","No",40,null,0]
[4,6,101,null,"HDPE Tee's","H3"]
[4,6,101,15,"Ø110mm Butt welded HDPE Tee","No",75,null,{"$f":"G958*H958","v":0}]
[4,6,101,null,"HDPE reducers (largest size)","H3"]
[4,6,101,16,"Ø40mm Butt welded HDPE reducer","No",null,null,"Rate Only"]
[4,6,101,17,"Ø50mm Butt welded HDPE reducer","No",null,null,"Rate Only"]
[4,6,101,18,"Ø63mm Butt welded HDPE reducer","No",null,null,"Rate Only"]
[4,6,101,19,"Ø75mm Butt welded HDPE reducer","No",null,null,"Rate Only"]
[4,6,101,20,"Ø90mm Butt welded HDPE reducer","No",null,null,"Rate Only"]
[4,6,102,21,"Ø110mm Butt welded HDPE reducer","No",50,null,{"$f":"G965*H965","v":0}]
[4,6,102,null,"Joints","H3"]
[4,6,102,22,"Joint of Ø90mm HDPE pipe to 54mm copper pipe including adaptor","No",40,null,{"$f":"G967*H967","v":0}]
[4,7,103,null,"SECTION NO.4","H1"]
[4,7,103,null,"BILL NO.7","H1"]
[4,7,103,null,"PIPING – HDPE (FIRE WATER SUPPLY PIPES)","H1"]
[4,7,103,null,"(CPAP WORK GROUP NO.170 UNLESS OTHERWISE STATED)","H1"]
[4,7,103,null,"The Tenderer is referred to the relevant Clauses in the separate document General Preambles for Trades (2017 Edition)"]
[4,7,103,null,"High Density Polyethylene PE 100 PN16, SABS 533 Part 1, 2 and 3 compliant and SABS ISO 4427. Blue stripe identification made with virgin polyethylene material."]
[4,7,103,null,"Rates shall include all adaptors, couplers, brackets, elbow wall plates, elbows, male and female connectors and reducers not explicitly measured separately"]
[4,7,103,null,"General note: Typically only use class 16 or 12 for the water supply piping"]
[4,7,103,null,"HDPE PIPING AND ANCILLARIES INCLUDING SUPPORTS AND FIXINGS","H2"]
[4,7,103,null,"HDPE piping, trenched 1m deep including excavations, backfilling, pipe bedding, fill blankets and carting away as recommended by the Engineer","H3"]
[4,7,103,1,"Ø75mm Butt welded HDPE pipe, PN16 ","m",null,null,"Rate Only"]
[4,7,103,2,"Ø90mm Butt welded HDPE pipe, PN16 ","m",350,null,{"$f":"G979*H979","v":0}]
[4,7,103,3,"Ø125mm Butt welded HDPE pipe, PN16 ","m",3000,null,{"$f":"G980*H980","v":0}]
[4,7,104,null,"EXTRA OVER FOR HDPE, PIPE FITTINGS","H2"]
[4,7,104,null,"Extra over on HDPE water piping, supply, install, test commission and handover the following pipe fittings complete with adaptors, flanges, bushes, unions, fixing brackets etc. in the running length. "]
[4,7,104,null,"HDPE bends","H3"]
[4,7,104,null,"No distinction is made between elbows and bends of varying degrees for water supply piping"]
[4,7,104,4,"Ø75mm Butt welded HDPE bend","No",null,null,"Rate Only"]
[4,7,104,5,"Ø90mm Butt welded HDPE bend","No",30,null,{"$f":"G986*H986","v":0}]
[4,7,104,6,"Ø125mm Butt welded HDPE bend","No",40,null,{"$f":"G987*H987","v":0}]
[4,7,104,null,"HDPE Tee's","H3"]
[4,7,104,7,"Ø75mm welded HDPE Tee","No",null,null,"Rate Only"]
[4,7,104,8,"Ø90mm Butt welded HDPE Tee","No",10,null,{"$f":"G990*H990","v":0}]
[4,7,104,9,"Ø125mm Butt welded HDPE Tee","No",65,null,{"$f":"G991*H991","v":0}]
[4,7,104,null,"HDPE reducers (largest size)","H3"]
[4,7,104,10,"Ø75mm Butt welded HDPE reducer","No",null,null,"Rate Only"]
[4,7,104,11,"Ø90mm Butt welded HDPE reducer","No",10,null,{"$f":"G994*H994","v":0}]
[4,7,104,12,"Ø125mm Butt welded HDPE reducer","No",40,null,{"$f":"G995*H995","v":0}]
[4,8,105,null,"SECTION NO.4","H1"]
[4,8,105,null,"BILL NO.8","H1"]
[4,8,105,null,"PIPE ACCESSORIES","H1"]
[4,8,105,null,"(CPAP WORK GROUP NO.170 UNLESS OTHERWISE STATED)","H1"]
[4,8,105,null,"The Tenderer is referred to the relevant Clauses in the separate document General Preambles for Trades (2017 Edition)"]
[4,8,105,null,"PIPING ACCESSORIES C/W FLANGES OR THREADED CONNECTION","H2"]
[4,8,105,null,"Shut off and control valves","H3"]
[4,8,105,1,"Ø100mm Water level control valve","No",2,null,{"$f":"G1003*H1003","v":0}]
[4,8,105,2,"Ø15mm Ball valve","No",null,null,"Rate Only"]
[4,8,105,3,"Ø22mm Ball valve","No",null,null,"Rate Only"]
[4,8,105,4,"Ø28mm Ball valve","No",null,null,"Rate Only"]
[4,8,105,5,"Ø35mm Ball valve","No",null,null,"Rate Only"]
[4,8,105,6,"Ø42mm Ball valve","No",null,null,"Rate Only"]
[4,8,105,7,"Ø50mm Ball valve","No",40,null,{"$f":"G1009*H1009","v":0}]
[4,8,105,8,"Ø80mm Ball valve","No",null,null,"Rate Only"]
[4,8,105,9,"Ø100mm Ball valve","No",15,null,{"$f":"G1011*H1011","v":0}]
[4,8,105,10,"Ø100mm Y-strainer","No",4,null,0]
[4,8,105,11,"Ø100mm Pressure Reducing Valve","No",2,null,0]
[4,8,105,12,"Ø100mm Water Meter","No",2,null,0]
[4,8,105,13,"Ø125mm Water level control valve","No",1,null,0]
[4,8,106,14,"Ø100mm Non-return valves","No",4,null,0]
[4,8,106,15,"Ø125mm Ball valve","No",7,null,0]
[4,8,106,16,"Ø125mm Non Return Valve","No",3,null,0]
[4,8,106,17,"Pressure switch installed on 100mm GMS pipe","No",2,null,0]
[4,8,106,18,"Flow switch installed on 100mm GMS pipe","No",2,null,0]
[4,8,106,19,"100mm Float Valve","No",1,null,0]
[4,8,106,null,"Flow and pressure meters","H3"]
[4,8,106,20,"Pressure gauge, 100mm SS, glycerine filled & gauge cock","No",5,null,{"$f":"G1023*H1023","v":0}]
[4,8,106,null,"Alarm","H3"]
[4,8,106,21,"Alarm siren","No",1,null,{"$f":"G1025*H1025","v":0}]
[4,8,106,null,"Tank accessories","H3"]
[4,8,106,22,"Vortex inhibitor Ø600mm, Ø100mm flanged fitting, galvanized","No",2,null,{"$f":"G1027*H1027","v":0}]
[4,8,106,23,"Vortex inhibitor Ø600mm, Ø125mm flanged fitting, galvanized","No",2,null,{"$f":"G1028*H1028","v":0}]
[4,8,106,24,"Water level controller","No",1,null,{"$f":"G1029*H1029","v":0}]
[4,8,106,25,"Water level transmitter","No",2,null,{"$f":"G1030*H1030","v":0}]
[4,9,107,null,"SECTION NO.4","H1"]
[4,9,107,null,"BILL NO.9","H1"]
[4,9,107,null,"BUILDERS WORK","H1"]
[4,9,107,null,"(CPAP WORK GROUP NO.170 UNLESS OTHERWISE STATED)","H1"]
[4,9,107,null,"The Tenderer is referred to the relevant Clauses in the separate document General Preambles for Trades (2017 Edition)"]
[4,9,107,null,"THRUST BLOCK'S AND VALVE CHAMBERS","H2"]
[4,9,107,null,"Refer to the drawings for the detailed builder's work","H3"]
[4,9,107,1,"10 MPa Concrete Thrust Block for 45° Bend, 110mm and 150mm nominal pipe diameter running parallel, including all necessary formwork and additional excavation","No",6,null,{"$f":"G1038*H1038","v":0}]
[4,9,107,2,"10 MPa Concrete Thrust Block for a Tee, 110mm and 150mm nominal pipe diameter running parallel, including all necessary formwork and additional excavation","No",62,null,{"$f":"G1039*H1039","v":0}]
[4,9,107,3,"10 MPa Concrete Thrust Block for 22.5° Bend, 110mm and 150mm nominal pipe diameter running parallel, including all necessary formwork and additional excavation","No",9,null,{"$f":"G1040*H1040","v":0}]
[4,9,107,4,"10 MPa Concrete Thrust Block for 90° Bend, 100mm nominal pipe diameter, including all necessary formwork and additional excavation","No",19,null,{"$f":"G1041*H1041","v":0}]
[4,9,107,5,"Access chamber 450x450x500 mm deep with 600x600x100 mm thick cast in situ conc slab to reduce cover size, including heavy duty cover","No",39,null,{"$f":"G1042*H1042","v":0}]
[4,10,108,null,"SECTION NO.4","H1"]
[4,10,108,null,"BILL NO.10","H1"]
[4,10,108,null,"TESTING, COMMISSIONING, ETC.","H1"]
[4,10,108,null,"(CPAP WORK GROUP NO.170 UNLESS OTHERWISE STATED)","H1"]
[4,10,108,null,"ENGINEERING REQUIREMENTS","H2"]
[4,10,108,null,"Project engineering, management and quality control","H3"]
[4,10,108,1,"Allow for the provision of project engineering, management and quality control in accordance with the conditions of the contract","Item",1,null,{"$f":"G1049*H1049","v":0}]
[4,10,108,null,"One year's free maintenance and guarantee","H3"]
[4,10,108,2,"Allow for one year's free maintenance and guarantee in accordance with specifications with 12 visits (once per month) to site","Item",1,null,{"$f":"G1051*H1051","v":0}]
[4,10,108,null,"Labour, testing, commissioning and handover","H3"]
[4,10,108,3,"Allow for all factors required for the testing, commissioning and handover of all systems, as specified","Item",1,null,{"$f":"G1053*H1053","v":0}]
[4,10,108,null,"Operations and maintenance manuals","H3"]
[4,10,108,4,"Refer to Part C3.3 O&M requirements Allow for all factors required for the operations and maintenance manuals of all systems, as specified","Item",1,null,{"$f":"G1055*H1055","v":0}]
[4,10,108,null,"STERILIZATION AND DISENFECTION","H2"]
[4,10,108,null,"Refer to Part C3.2 Section 27.11 Sterilization of water pipes and tanks","H3"]
[4,10,108,5,"Water sample analysis after disinfection","Item",2,null,{"$f":"G1058*H1058","v":0}]
[4,10,109,null,"Disinfection of water pipes and tanks","H3"]
[4,10,109,6,"Disinfection of Main Domestic Water Tanks in accordance with SANS 10252-1 paragraph 9.3.2 c/w pre-and post disinfection water analysis","Item",1,null,{"$f":"G1060*H1060","v":0}]
[4,10,109,7,"Disinfection of cold water supply piping of the new cold water supply installation in accordance with SANS 10252-1 paragraph 9.3.2.2 c/w pre-and post disinfection water analysis","Item",1,null,{"$f":"G1061*H1061","v":0}]
[4,10,109,null,"TESTING","H2"]
[4,10,109,null,"Testing of water pipes and tanks","H3"]
[4,10,109,8,"Allow for pressure testing of cold water piping in accordance with SANS 10252-1 paragraph 9.2.2","Item",2,null,{"$f":"G1064*H1064","v":0}]
[4,11,110,null,"SECTION NO.4","H1"]
[4,11,110,null,"BILL NO.11","H1"]
[4,11,110,null,"PRIME COST AMOUNTS","H1"]
[4,11,110,null,"The Tenderer is referred to the relevant Clauses in the separate document General Preambles for Trades (2017 Edition)"]
[4,11,110,null,"Prime Cost Amount means an amount included in the contract sum for the delivered cost of materials and goods obtained from a supplier as instructed by the principal agent."]
[4,11,110,null,"Prime Cost Amounts exclude the cost of Overheads, Preliminaries and Profit."]
[4,11,110,null,"Prime Cost Amounts shall include for delivery to site of all articles concerned."]
[4,11,110,1,"No prime cost allowance","Item",1,null,{"$f":"G1072*H1072","v":0}]
[4,11,110,2,"Contractor's/Subcontractor's percentage mark-up for attendance (includes for preliminaries, overheads and attendance) and profit.","%IT",1,{"v":0,"d":"0%"},{"$f":"G1073*H1073","v":0}]
[4,12,111,null,"SECTION NO.4","H1"]
[4,12,111,null,"BILL NO.12","H1"]
[4,12,111,null,"PROVISIONAL SUMS","H1"]
[4,12,111,null,"SUPPLEMENTARY PREAMBLES","H2"]
[4,12,111,null,"The Tenderer is referred to the relevant Clauses in the separate document General Preambles for Trades (2017 Edition)"]
[4,12,111,null,"Provisional Sum means an amount included in the contract sum for the supply and installation of work by a subcontractor/sub-subcontractor."]
[4,12,111,null,"Provisional sums exclude the cost of Overheads, Preliminaries and Profit."]
[4,12,111,null,"Provisional sums are for material and equipment supplied and installed complete by firms of specialists."]
[4,12,111,null,"PROVISIONAL SUMS ","H2"]
[4,12,111,null,"Fire Signage Installation","H3"]
[4,12,111,1,"Allow a provisional sum amount of R 850 000.00 for the installation of fire signage","Item",1,{"v":850000,"d":"R850,000.00"},{"$f":"G1084*H1084","v":{"v":850000,"d":"R850,000.00"}}]
[4,12,111,2,"Contractor's/Subcontractor's percentage mark-up for attendance (includes for preliminaries, overheads and attendance) and profit.","%IT",{"v":850000,"d":"R850,000.00"},{"v":0,"d":"0%"},{"$f":"G1085*H1085","v":0}]
[4,12,111,null,"Gas Suppression System","H3"]
[4,12,111,3,"Allow a provisional sum amount of R 940 800.00 for the installation of gas suppression system in the Archives","Item",1,{"v":940800,"d":"R940,800.00"},{"$f":"G1087*H1087","v":{"v":940800,"d":"R940,800.00"}}]
[4,12,111,4,"Contractor's/Subcontractor's percentage mark-up for attendance (includes for preliminaries, overheads and attendance) and profit.","%IT",{"$f":"H1087","v":{"v":940800,"d":"R940,800.00"}},{"v":0,"d":"0%"},{"$f":"G1088*H1088","v":0}]
[4,12,112,5,"Allow a provisional sum amount of R 105 000.00 for the installation of gas suppression system in the OPD server room","Item",1,{"v":105000,"d":"R105,000.00"},{"$f":"G1089*H1089","v":{"v":105000,"d":"R105,000.00"}}]
[4,12,112,6,"Contractor's/Subcontractor's percentage mark-up for attendance (includes for preliminaries, overheads and attendance) and profit.","%IT",{"$f":"H1089","v":{"v":105000,"d":"R105,000.00"}},{"v":0,"d":"0%"},{"$f":"G1090*H1090","v":0}]
[4,12,112,null,"Smoke Extraction System","H3"]
[4,12,112,7,"Allow a provisional sum amount of R 720 000.00 for the installation of smoke extraction system in the OPD","Item",1,{"v":720000,"d":"R720,000.00"},{"$f":"G1092*H1092","v":{"v":720000,"d":"R720,000.00"}}]
[4,12,112,8,"Contractor's/Subcontractor's percentage mark-up for attendance (includes for preliminaries, overheads and attendance) and profit","%IT",{"$f":"H1092","v":{"v":720000,"d":"R720,000.00"}},{"v":0,"d":"0%"},{"$f":"G1093*H1093","v":0}]
[4,13,113,null,"SECTION NO.4","H1"]
[4,13,113,null,"BILL NO.13","H1"]
[4,13,113,null,"BUDGETARY ALLOWANCES","H1"]
[4,13,113,null,"SUPPLEMENTARY PREAMBLES","H2"]
[4,13,113,null,"The Tenderer is referred to the relevant Clauses in the separate document General Preambles for Trades (2017 Edition)"]
[4,13,113,null,"Budgetary Allowance means an amount included in the contract sum for work intended for execution by the contractor, the extent of which is identified but not detailed"]
[4,13,113,null,"Budgetary allowances include the cost of Overheads, Preliminaries and Profit."]
[4,13,113,null,"Work for which budgetary allowances are provided will be measured and valued in accordance with the agreement and deducted in whole or in part if not required without any compensation for loss of profit on the said allowances."]
[4,13,113,null,"BUDGETARY ALLOWANCE","H2"]
[4,13,113,null,"Municipal Water Supply Connection","H3"]
[4,13,113,1,"Allow a budgetary allowance of R 150 000.00 for the upgrade of the municipal water supply connection","Item",1,{"v":150000,"d":"R150,000.00"},{"$f":"G1104*H1104","v":{"v":150000,"d":"R150,000.00"}}]
[4,13,113,2,"Contractor's/Subcontractor's percentage mark-up for attendance (includes for preliminaries, overheads and attendance) and profit.","%IT",{"v":150000,"d":"R150,000.00"},{"v":0,"d":"0%"},{"$f":"G1105*H1105","v":0}]
[4,13,113,null,"Remedial Work on Concrete Tank","H3"]
[4,13,113,3,"Allow a budgetary allowance of R 168 000.00 for remedial work on the concrete tank","Item",1,{"v":168000,"d":"R168,000.00"},{"$f":"G1107*H1107","v":{"v":168000,"d":"R168,000.00"}}]
[4,13,113,4,"Contractor's/Subcontractor's percentage mark-up for attendance (includes for preliminaries, overheads and attendance) and profit.","%IT",{"v":168000,"d":"R168,000.00"},{"v":0,"d":"0%"},{"$f":"G1108*H1108","v":0}]
[4,14,114,1,"Equipment","Page",91,null,{"$f":"SUM(I796:I806)","v":0}]
[4,14,114,2,"System Accessories","Page",92,null,{"$f":"SUM(I814:I823)","v":0}]
[4,14,114,3,"Signage","Page",94,null,0]
[4,14,114,4,"Piping (Galvanised Mild Steel)","Page",96,null,{"$f":"SUM(I857:I886)","v":0}]
[4,14,114,5,"Piping - Copper","Page",99,null,{"$f":"SUM(I896:I928)","v":0}]
[4,14,114,6,"Piping - HDPE (Domestic Water Supply Pipes)","Page",102,null,{"$f":"SUM(I938:I967)","v":0}]
[4,14,114,7,"Piping - HDPE (Fire Water Supply Pipes)","Page",104,null,{"$f":"SUM(I977:I995)","v":0}]
[4,14,114,8,"Pipe Accessories","Page",106,null,{"$f":"SUM(I1002:I1030)","v":0}]
[4,14,114,9,"Builder's Work Requirements","Page",107,null,{"$f":"SUM(I1037:I1042)","v":0}]
[4,14,114,10,"Testing, commissioning, etc.","Page",109,null,{"$f":"SUM(I1048:I1064)","v":0}]
[4,14,114,11,"Prime Cost Amounts","Page",110,null,{"$f":"SUM(I1071:I1073)","v":0}]
[4,14,114,12,"Provisional Sums","Page",112,null,{"$f":"SUM(I1083:I1093)","v":{"v":2615800,"d":"R2,615,800.00"}}]
[4,14,114,13,"Budgetary Allowances","Page",113,null,{"$f":"SUM(I1103:I1108)","v":{"v":318000,"d":"R318,000.00"}}]
[5,1,115,null,"SECTION NO. 5","H1"]
[5,1,115,null,"BILL NO.1","H1"]
[5,1,115,null,"FIRE DETECTION PANELS (PROVISIONAL)","H1"]
[5,1,115,null,"(CPAP WORK GROUP NO.160 UNLESS OTHERWISE STATED)","H1"]
[5,1,115,null,"The Tenderer is referred to the relevant Clauses in the separate document General Preambles for Trades (2017 Edition)"]
[5,1,115,null,"GLOBAL/MASTER FIRE PANEL","H2"]
[5,1,115,1,"Supply and install a flush mounted ZITON ZP3 4 loop Fire Alarm Panel (71501), network interface boards (48501), batteries,  including terminating all field devices, complete with suitable internal backing boards and doors. Supply and install in position, mounting and earthing of Ancillary Service db's. (Located in Security office in Gateway Clinic Building) MASTER FIRE PANEL","No",1,null,{"$f":"G1128*H1128","v":0}]
[5,1,115,null,"MAIN PANEL","H2"]
[5,1,115,2,"Supply and install a flush mounted ZITON ZP3 4 loop Fire Alarm Panel (71501), network interface boards (48501), batteries, including terminating all field devices, complete with suitable internal backing boards and doors. Supply and install in position, mounting and earthing of Ancillary Service db's. (Located in different zones as per the site plan drawing No. FD/7660-38)","No",13,null,{"$f":"G1130*H1130","v":0}]
[5,1,115,null,"REPEATER PANEL(REMOTE DISPLAY PANEL) ","H2"]
[5,1,115,3,"Supply and install a flush mounted Ziton ZP3 Fire Alarm Repeater Panel (71601), repeater driver board (48202),batteries, terminating all field devices, commissioning & testing to be installed in the Managers Central Control Room located in the new Inventory/Admin/CCTV Office including liaison and co-ordination with the Panel Manufacturer. (Located  in Admin Inventory)","No",2,null,{"$f":"G1132*H1132","v":0}]
[5,1,116,4,"Programming Fire Alarm Panel, Testing and Commissioning the complete installation in accordance with Clauses B21, B22 and C24 of the specification.","Item",1,null,0]
[5,1,116,5,"As Built drawings and three sets of Manuals in accordance with Clauses B23 & C25 of the specification.","Item",1,null,0]
[5,1,116,6,"Laminated diagrams framed and installed at the Main Fire Alarm Panel in accordance with Clause B20 of the specification.","Item",1,null,0]
[5,1,116,7,"Demonstration and handing over of Fire Alarm System to Client","Item",1,null,0]
[5,1,116,8,"Training on Systems Operation and Maintenance","Item",1,null,0]
[5,1,116,null,"AUTOMATIC LINK TO THE FIRE DEPARTMENT","H2"]
[5,1,116,null,"Supply, install, test and commission Automatic Link Equipment approved by Ethekwini Municipality Local Fire Department. ","H3"]
[5,1,116,9,"SYSMAN-TELEAID UNIT or equal and approved","Item",1,null,{"$f":"G1140*H1140","v":0}]
[5,2,117,null,"SECTION NO. 5","H1"]
[5,2,117,null,"BILL NO.2","H1"]
[5,2,117,null,"FIRE DETECTION JUNCTION DISTRIBUTION BOARDS (PROVISIONAL) ","H1"]
[5,2,117,null,"(CPAP WORK GROUP NO.160 UNLESS OTHERWISE STATED)","H1"]
[5,2,117,null,"The Tenderer is referred to the relevant Clauses in the separate document General Preambles for Trades (2017 Edition)"]
[5,2,117,null,"P-Clips Fire Resistant clips mounted into the underside of soffit using a nail-anchor at 500mm intervals.","H2"]
[5,2,117,1,"Supply and Install P - Clips (Apex Roof)","No",16601,null,{"$f":"G1147*H1147","v":0}]
[5,2,117,null,"Perforated heavy Duty Cable Tray supported by means of 2 open hanger triangular brackets, suitable for single point suspension rods.","H2"]
[5,2,117,null,"Supply, Deliver and install complete with all fixing brackets, hangers and accessories. Hot dip galvanize cable tray as per manufacturer's recommendation.","H3"]
[5,2,117,2,"50mm Perforated cable tray","m",1500,null,{"$f":"G1150*H1150","v":0}]
[5,3,118,null,"SECTION NO. 5","H1"]
[5,3,118,null,"BILL NO.3","H1"]
[5,3,118,null,"ADDRESSABLE SMOKE DETECTORS  (PROVISIONAL) ","H1"]
[5,3,118,null,"(CPAP WORK GROUP NO.160 UNLESS OTHERWISE STATED)","H1"]
[5,3,118,null,"The Tenderer is referred to the relevant Clauses in the separate document General Preambles for Trades (2017 Edition)"]
[5,3,118,null,"Supply and install addressable early warning smoke detectors complete including base, address, tag, connecting and terminating into position.","H2"]
[5,3,118,null," ZITON ZP730-2P Intelligent Addressable Optical Detector with Remote Indicator Output complete with base (ZP7-SB1-P) or equal in quality and performance.","H3"]
[5,3,118,1,"Supply","No",2058,null,{"$f":"G1158*H1158","v":0}]
[5,3,118,2,"Install","No",2058,null,{"$f":"G1159*H1159","v":0}]
[5,3,118,null,"ZITON ZP720-3P - Intelligent Addressable Rate of Rise Heat Detector with Remote Indicator Output complete with base (ZP7-SB1-P) or equal in quality and performance.","H3"]
[5,3,118,3,"Supply","No",132,null,{"$f":"G1161*H1161","v":0}]
[5,3,118,4,"Install","No",132,null,{"$f":"G1162*H1162","v":0}]
[5,3,119,null,"REMOTE INDICATORS AS PER SANS 10139","H2"]
[5,3,119,null,"Supply and install Remote LED indicator units (AI671) at ceiling level for void detection indication (as part above item)","H2"]
[5,3,119,5,"Supply","No",420,null,{"$f":"G1165*H1165","v":0}]
[5,3,119,6,"Install","No",420,null,{"$f":"G1166*H1166","v":0}]
[5,3,119,null,"ADDRESSABLE OMNI-DIRECTIONAL HORN SOUNDER/BEACONS","H2"]
[5,3,119,null,"Supply, Install, terminate and connect a suitable Addressable Audible Sounder / Beacon complete with base and addressable tag,  connecting and terminating in position.","H2"]
[5,3,119,null,"ZITON ZP755 HAV-2P Addressable Omni-Directional Sounder / Beacon complete with base (SPB-2P) or equal in quality and performance.","H3"]
[5,3,119,7,"Supply","No",140,null,{"$f":"G1170*H1170","v":0}]
[5,3,119,8,"Install","No",140,null,{"$f":"G1171*H1171","v":0}]
[5,3,119,null,"ISOLATORS SENSOR BASE","H2"]
[5,3,119,null,"Supply, Install, terminate and connect a suitable Addressable Isolator Bases for ZITON ZP700 Series Detectors.","H2"]
[5,3,119,null,"ZITON ZP7-1B-P Isolator Base for ZP700 Series Detectors","H3"]
[5,3,119,9,"Supply","No",126,null,{"$f":"G1175*H1175","v":0}]
[5,3,119,10,"Install","No",126,null,{"$f":"G1176*H1176","v":0}]
[5,3,120,null,"ADDRESSABLE BREAK GLASS UNITS","H2"]
[5,3,120,null,"Supply and install Addressable Breakglass units complete with boxes, address tag, connecting and terminating into position.","H2"]
[5,3,120,null,"DMN787  Addressable Resetable (Red) Break Glass Units Complete with Resettable element (DMN800) and Transparent Cover (DMN782) or equal in quality and performance.","H3"]
[5,3,120,11,"Supply","No",180,null,{"$f":"G1180*H1180","v":0}]
[5,3,120,12,"Install","No",180,null,{"$f":"G1181*H1181","v":0}]
[5,3,120,null,"ACCESS CONTROL DOOR RELEASES - RELAY UNITS.","H2"]
[5,3,120,null,"Supply and install Addressable Relay to interface with Access Control System supplied and installed by others to allow free exit on fire condition. (R1)","H2"]
[5,3,120,null,"ZITON (99102) A50E-2 Addressable Line Relay Unit complete with enclosure (SMB-DIN1) or equal in quality and performance.","H3"]
[5,3,120,13,"Supply","No",10,null,{"$f":"G1185*H1185","v":0}]
[5,3,120,14,"Install","No",10,null,{"$f":"G1186*H1186","v":0}]
[5,3,120,null,"ADDRESSABLE DOOR HOLD OPEN MAGNETS","H2"]
[5,3,120,null,"Supply and install Addressable Door Hold Open Magnets that will automatically be released to close Fire Doors on fire condition. Door closers will be supplied and installed by others.","H2"]
[5,3,120,null,"ZITON FE 130MS Magnet Door Release Units ( 40kg holding force ) 24 Volt DC, including Door Plate (FE130 ZL) or equal in quality and performance.","H3"]
[5,3,120,15,"Supply","No",12,null,{"$f":"G1190*H1190","v":0}]
[5,3,121,16,"Install","No",12,null,{"$f":"G1191*H1191","v":0}]
[5,3,121,null,"POWER SUPPLIES AND BATTERY BACK UP","H2"]
[5,3,121,null,"Supply and install a suitable 24 Volt Power Supply with battery back up for Door Release and Fire Door Magnet release","H2"]
[5,3,121,null,"24 Volt DC 1A Power Supply (PM861)","H3"]
[5,3,121,17,"Supply","No",12,null,{"$f":"G1195*H1195","v":0}]
[5,3,121,18,"Install","No",12,null,{"$f":"G1196*H1196","v":0}]
[5,3,121,null,"SHUT DOWN RELAYS","H2"]
[5,3,121,null,"Supply and install Addressable Relay to interface with A/C Plant, Lifts and Ventilation  supplied and installed by others to shut down on fire condition.","H2"]
[5,3,121,null,"ZITON  ZP 99102 Addressable Line Relay Unit complete with enclosure (SMB-DIN1)or equal in quality and performance.","H3"]
[5,3,121,19,"Supply","No",14,null,{"$f":"G1200*H1200","v":0}]
[5,3,121,20,"Install","No",14,null,{"$f":"G1201*H1201","v":0}]
[5,3,121,null,"FIRE RETARDANT CABLING","H2"]
[5,3,121,null,"Supply and install Fire retardant braided screened 1.5mm² stranded PH red cable including terminations.","H2"]
[5,3,121,null,"1.5mm² x 2 Core Copper PH120 (WFA30210) Fire Resistant Cable (Link back to global Fire Panel)","H3"]
[5,3,121,21,"Supply","No",3000,null,{"$f":"G1205*H1205","v":0}]
[5,3,121,22,"Install","No",3000,null,{"$f":"G1206*H1206","v":0}]
[5,3,122,null,"1.5mm² x 2 Core Copper PH120 (WFA30210) Fire Resistant Cable","H3"]
[5,3,122,23,"Supply","No",42483,null,{"$f":"G1208*H1208","v":0}]
[5,3,122,24,"Install","No",42483,null,{"$f":"G1209*H1209","v":0}]
[5,4,123,null,"SECTION NO. 5","H1"]
[5,4,123,null,"BILL NO.4","H1"]
[5,4,123,null,"CONDUIT, SPRAG CONDUIT BOXES AND INSTALLATION (PROVISIONAL)","H1"]
[5,4,123,null,"(CPAP WORK GROUP NO.160 UNLESS OTHERWISE STATED)","H1"]
[5,4,123,null,"The Tenderer is referred to the relevant Clauses in the separate document General Preambles for Trades (2017 Edition)"]
[5,4,123,null,"Installation of rigid PVC Conduits including fixings, couplings, bends, draw boxes, waste, etc. Installed on surface of wall, on ceiling void, in chase, or cast into concrete. Must be installed with Metal Saddles.","H2"]
[5,4,123,null,"25 mm PVC Conduits","H3"]
[5,4,123,1,"Supply","No",40000,null,{"$f":"G1217*H1217","v":0}]
[5,4,123,2,"Install","No",40000,null,{"$f":"G1218*H1218","v":0}]
[5,4,123,null,"Galvanised Conduits","H2"]
[5,4,123,null,"Installation of rigid press fit galvanised \"Bosal\" conduit including fixings, couplings, bends, draw boxes, waste, etc. Installed on surface of wall, on ceiling void, in chase, or cast into concrete (excluding chasing).","H2"]
[5,4,123,null,"25 mm Bosal Conduits","H3"]
[5,4,123,3,"Supply","No",775,null,{"$f":"G1222*H1222","v":0}]
[5,4,123,4,"Install","No",775,null,{"$f":"G1223*H1223","v":0}]
[5,4,124,null,"PVC & GALVANIZED BOXES","H2"]
[5,4,124,null,"Supply and Install outlet boxes without covers installed on surface, in ceiling void or cast in concrete complete with conduit terminations.","H2"]
[5,4,124,null,"25mm PVC round shallow or deep 1 to 4 way","H3"]
[5,4,124,5,"Supply","No",100,null,{"$f":"G1227*H1227","v":0}]
[5,4,124,6,"Install","No",100,null,{"$f":"G1228*H1228","v":0}]
[5,4,124,null,"25mm PVC round cover plate","H3"]
[5,4,124,7,"Supply","No",100,null,{"$f":"G1230*H1230","v":0}]
[5,4,124,8,"Install","No",100,null,{"$f":"G1231*H1231","v":0}]
[5,4,124,null,"25mm Bosal round shallow or deep 1 to 4 way","H3"]
[5,4,124,9,"Supply","No",50,null,{"$f":"G1233*H1233","v":0}]
[5,4,124,10,"Install","No",50,null,{"$f":"G1234*H1234","v":0}]
[5,4,124,null,"25mm Bosal round cover plate","H3"]
[5,4,124,11,"Supply","No",50,null,{"$f":"G1236*H1236","v":0}]
[5,4,124,12,"Install","No",50,null,{"$f":"G1237*H1237","v":0}]
[5,5,125,null,"SECTION NO. 5","H1"]
[5,5,125,null,"BILL NO.5","H1"]
[5,5,125,null,"GENERAL ","H1"]
[5,5,125,null,"(CPAP WORK GROUP NO.160 UNLESS OTHERWISE STATED)","H1"]
[5,5,125,null,"The Tenderer is referred to the relevant Clauses in the separate document General Preambles for Trades (2017 Edition)"]
[5,5,125,null,"GENERAL","H2"]
[5,5,125,1,"Supply and Install a Log Book Holder","No",1,null,{"$f":"G1244*H1244","v":0}]
[5,5,125,2,"Provide Compliance Certification documentation on completion.","Item",1,null,{"$f":"G1245*H1245","v":0}]
[5,5,125,3,"Full testing and commissioning in accordance with  SANS 10139, Section B and the detailed specifications attached to this document. ","Item",1,null,{"$f":"G1246*H1246","v":0}]
[5,5,125,4,"Operation and Maintenance Manuals","No",3,null,{"$f":"G1247*H1247","v":0}]
[5,6,126,1,"Fire Detection Panels - Section 1","Page",116,null,{"$f":"SUM(I1127:I1140)","v":0}]
[5,6,126,2,"Fire Detection Junction Distribution Boards","Page",117,null,{"$f":"SUM(I1146:I1150)","v":0}]
[5,6,126,3,"Addressable Smoke Detectors","Page",122,null,{"$f":"SUM(I1157:I1209)","v":0}]
[5,6,126,4,"Conduit, Sprag Conduit Boxes And Installation","Page",124,null,{"$f":"SUM(I1216:I1237)","v":0}]
[5,6,126,5,"General","Page",125,null,{"$f":"SUM(I1243:I1247)","v":0}]
[6,1,127,null,"SECTION NO. 6","H1"]
[6,1,127,null,"BILL NO.1","H1"]
[6,1,127,null,"VOICE EVACUATION (PROVISIONAL)","H1"]
[6,1,127,null,"(CPAP WORK GROUP NO.160 UNLESS OTHERWISE STATED","H1"]
[6,1,127,null,"AMPLIFIER & ANCILLARY EQUIPMENT","H1"]
[6,1,127,null,"The Tenderer is referred to the relevant Clauses in the separate document General Preambles for Trades (2017 Edition)"]
[6,1,127,null,"Supply and install a suitably rated Integrated Voice Evacuation System complete with Remote Microphone input, self diagnosing capability and background music / Public Address capability. The system must have scope for expansion in future. The unit shall conform to EN60849 standard, SANS 7240 Part 4 & 6 EN 54 Part 4, 16 and 24","H2"]
[6,1,127,null,"TOA VM-3240VA System Management Amplifier or equal in quality and performance.(240W)","H3"]
[6,1,127,1,"Supply","No",1,null,{"$f":"G1261*H1261","v":0}]
[6,1,127,2,"Install","No",1,null,{"$f":"G1262*H1262","v":0}]
[6,1,127,null,"TOA VP-2241 - Standby Amplifier or equal in quality and performance.(240W)","H3"]
[6,1,127,3,"Supply","No",1,null,{"$f":"G1264*H1264","v":0}]
[6,1,127,4,"Install","No",1,null,{"$f":"G1265*H1265","v":0}]
[6,1,127,null,"TOA RM-200M - AL - Desk top microphone with zone select or equal in quality and performance. (Must include all Zones)","H3"]
[6,1,127,5,"Supply","No",1,null,{"$f":"G1267*H1267","v":0}]
[6,1,128,6,"Install","No",1,null,{"$f":"G1268*H1268","v":0}]
[6,1,128,null,"19 Inch Rack to house equipment (PA)","H3"]
[6,1,128,7,"Supply","No",1,null,{"$f":"G1270*H1270","v":0}]
[6,1,128,8,"Install","No",1,null,{"$f":"G1271*H1271","v":0}]
[6,1,128,null,"TOA VX200DS - Power Management (Standard Power Supply) 230 Volt  Power Supply","H3"]
[6,1,128,9,"Supply","No",1,null,{"$f":"G1273*H1273","v":0}]
[6,1,128,10,"Install","No",1,null,{"$f":"G1274*H1274","v":0}]
[6,1,128,null,"Battery 12 Volt x 4 (65Ah)","H3"]
[6,1,128,11,"Supply","No",4,null,{"$f":"G1276*H1276","v":0}]
[6,1,128,12,"Install","No",4,null,{"$f":"G1277*H1277","v":0}]
[6,1,128,null,"Laminated Zone Diagrams framed and installed at the","H3"]
[6,1,128,13,"Main Microphone position.","Item",1,null,{"$f":"G1279*H1279","v":0}]
[6,1,128,14,"Demonstration of Voice Evacuation System to Client","Item",1,null,{"$f":"G1280*H1280","v":0}]
[6,2,129,null,"SECTION NO.6","H1"]
[6,2,129,null,"BILL NO.2","H1"]
[6,2,129,null,"VOICE EVACUATION (PROVISIONAL)","H1"]
[6,2,129,null,"(CPAP WORK GROUP NO.160 UNLESS OTHERWISE STATED","H1"]
[6,2,129,null,"VOICE EVACUATION INSTALLATION LOUDSPEAKERS","H1"]
[6,2,129,null,"The Tenderer is referred to the relevant Clauses in the separate document General Preambles for Trades (2017 Edition)"]
[6,2,129,null,"TOA SC-64BS surface mounted Horn speakers complete as specified or equal in quality and performance (6W).","H3"]
[6,2,129,1,"Supply","No",17,null,{"$f":"G1288*H1288","v":0}]
[6,2,129,2,"Install","No",17,null,{"$f":"G1289*H1289","v":0}]
[6,2,129,null,"TOA PC-1869EN Ceiling mounted Fire Dome Speaker or equal in quality and performance(6W).","H3"]
[6,2,129,3,"Supply","No",233,null,{"$f":"G1291*H1291","v":0}]
[6,2,129,4,"Install","No",233,null,{"$f":"G1292*H1292","v":0}]
[6,2,130,null,"FIRE RETARDANT CABLING ","H2"]
[6,2,130,null,"Supply and install Fire retardant/resistant speaker cabling  drawn in conduit, fixed in wireway or surface mounted. Conduits and wireways provided by others (Including all terminations,etc)","H2"]
[6,2,130,null,"Fire Resistant Cable 1.5mm² x 2 Core Copper PH120 (WFA30210) ","H3"]
[6,2,130,5,"Supply","m",14014,null,{"$f":"G1296*H1296","v":0}]
[6,2,130,6,"Install","m",14014,null,{"$f":"G1297*H1297","v":0}]
[6,2,130,null,"GENERAL","H2"]
[6,2,130,7,"Full Testing and Commissioning in accordance with SANS, ISO 7240, Section B and the detailed specification attached to this document.","Item",1,null,{"$f":"G1299*H1299","v":0}]
[6,2,130,8,"Operation and Maintenance Manuals - As Built drawings ","No",3,null,{"$f":"G1300*H1300","v":0}]
[6,3,131,null,"SECTION NO.6","H1"]
[6,3,131,null,"BILL NO.3","H1"]
[6,3,131,null,"VOICE EVACUATION (PROVISIONAL)","H1"]
[6,3,131,null,"(CPAP WORK GROUP NO.160 UNLESS OTHERWISE STATED","H1"]
[6,3,131,null,"STROBE","H1"]
[6,3,131,null,"The Tenderer is referred to the relevant Clauses in the separate document General Preambles for Trades (2017 Edition)"]
[6,3,131,null,"Supply, Install, terminate and connect a suitably rated surface mounted strobe light ZITON (ZP755V-P) complete with base ZITON (ZP7-SB1-P) and Protective Metal Grid ZITON (SG-9) and complying with the requirements of BS5839 Part 8 and as per Clause E12.","H2"]
[6,3,131,1,"ZITON (2P755V-P) STROBE Light complete with base ZITON (ZAP-B1-P) ","No",152,null,{"$f":"G1308*H1308","v":0}]
[6,3,131,null,"CONDUIT, SPRAG CONDUIT BOXES AND INSTALLATION OF PVC CONDUITS","H2"]
[6,3,131,null,"Installation of rigid PVC Conduits including fixings, couplings, bends, draw boxes, waste, etc. Installed on surface of wall, on ceiling void, in chase, or cast into concrete. Must be installed with Metal Saddles","H2"]
[6,3,131,null,"25 mm PVC Conduits","H3"]
[6,3,131,2,"Supply","No",8000,null,{"$f":"G1312*H1312","v":0}]
[6,3,131,3,"Install","No",8000,null,{"$f":"G1313*H1313","v":0}]
[6,3,132,null,"25mm PVC Sprag","H3"]
[6,3,132,4,"Supply","No",1000,null,{"$f":"G1315*H1315","v":0}]
[6,3,132,5,"Install","No",1000,null,{"$f":"G1316*H1316","v":0}]
[6,4,133,1,"Amplifier & Ancillary Equipment","Page",128,null,{"$f":"SUM(I1260:I1280)","v":0}]
[6,4,133,2,"Voice Evacuation Installation ","Page",130,null,{"$f":"SUM(I1287:I1300)","v":0}]
[6,4,133,3,"Strobe","Page",132,null,{"$f":"SUM(I1307:I1316)","v":0}]
[7,1,134,null,"SECTION NO. 7","H1"]
[7,1,134,null,"BILL NO.1","H1"]
[7,1,134,null,"ACCESS CONTROL (PROVISIONAL)","H1"]
[7,1,134,null,"(CPAP WORK GROUP NO.160 UNLESS OTHERWISE STATED","H1"]
[7,1,134,null,"ACCESS CONTROL: IMPRO ACCESS CONTROL  INSTALLATION:","H1"]
[7,1,134,null,"The Tenderer is referred to the relevant Clauses in the separate document General Preambles for Trades (2017 Edition)"]
[7,1,134,null,"Pricing must include labour and material. Take delivery, install in position, mounting and commissioning of each device. All wall mounted devices shall be mounted on 4 x 2 white PVC blank cover plates (included).","H2"]
[7,1,134,null,"CONTROL EQUIPMENT","H2"]
[7,1,134,1,"Access Portal Pro Scalability: Operates up to 25 sites, 100 APB doors and 5,000 tag holders per site. Located in Server Room. ","No",1,null,{"$f":"G1328*H1328","v":0}]
[7,1,134,2,"Desk mounted tag registration reader for use with Access Portal, USB, 125kHz or 13.56MHz","No",2,null,0]
[7,1,134,3,"Battery - 12V 7AH ","No",2,null,0]
[7,1,134,4,"4 Pair Mylar Cable  ","m",1500,null,0]
[7,1,134,5,"Cat 6 Orange ","m",1500,null,0]
[7,1,135,6,"Allowance must be made for training users on their operator profiles  ","Hrs",12,null,0]
[7,1,135,7,"Allowance must be made for training IT department  ","Hrs",12,null,0]
[7,1,135,8,"Work Station Appliance designed for Access Control - PC including Monitor(54.6cm/21.5\"), Keyboard and Mouse - Minimum PC specification, must be of an i5 operating system, 8GB Ram and 250GB solid state drive.  ","No",1,null,0]
[7,2,136,null,"SECTION NO. 7","H1"]
[7,2,136,null,"BILL NO.2","H1"]
[7,2,136,null,"ACCESS CONTROL (PROVISIONAL)","H1"]
[7,2,136,null,"(CPAP WORK GROUP NO.160 UNLESS OTHERWISE STATED","H1"]
[7,2,136,null,"ACCESS CONTROL: LOWER GROUND FLOOR","H1"]
[7,2,136,null,"The Tenderer is referred to the relevant Clauses in the separate document General Preambles for Trades (2017 Edition)"]
[7,2,136,null,"Supply and install Access Control: Must be complete. ","H2"]
[7,2,136,null,"Pricing must include labour and material. Take delivery, install in position, mounting and commissioning of each device. All wall mounted devices shall be mounted on 4 x 2 white PVC blank cover plates(to be included). ","H2"]
[7,2,136,1,"IPS boxed solution with no LCD cluster controller, with one Weigand (protocol) (supports 2 readers) ","No",10,null,{"$f":"G1344*H1344","v":0}]
[7,2,136,2,"MMA: Antenna non-keypad micro mullion reader (MMA) with no buzzer, ABS enclosure and bi-coloured LED. Mounted on 4 x 2 PVC Cover. ","No",10,null,0]
[7,2,136,3,"Exit Sensor - No Touch. Mounted on 4 x 2 PVC Cover. ","No",10,null,0]
[7,2,136,4,"Maglock - 600LED Mag Lock 300kg ","No",10,null,0]
[7,2,136,5,"ZL600 Bracket 300kg ","No",10,null,0]
[7,2,137,6,"Mag Contact - Flush Mount N/C ","No",10,null,0]
[7,2,137,7,"Power Supply Unit Battery - 12V 7AH ","No",10,null,0]
[7,2,137,8,"Emergency break glass green - Resettable ","No",10,null,0]
[7,2,137,9,"Golmar 1 -1way Audio Intercom complete with mounting Bracket. ","No",null,null,"Rate only"]
[7,2,137,10,"Power Supply Unit Battery - 12V 7AH Complete in box ","No",10,null,{"$f":"G1353*H1353","v":0}]
[7,2,137,11,"Over-ride Key Switch with key number 3025 mounted on PVC 4 x 2 Cover. ","No",10,null,0]
[7,2,137,12,"4 X 2 PVC Box mounted ","No",40,null,0]
[7,2,137,13,"4 x 2 PVC Blank Plates ","No",40,null,0]
[7,2,137,14,"Yt 2 16X25 Trunking PVC 3 Mt Len ","No",6,null,0]
[7,2,137,15,"Yt 1 16X16 Trunking PVC 3 Mt Len ","No",6,null,0]
[7,3,138,null,"SECTION NO. 7","H1"]
[7,3,138,null,"BILL NO.3","H1"]
[7,3,138,null,"ACCESS CONTROL (PROVISIONAL)","H1"]
[7,3,138,null,"(CPAP WORK GROUP NO.160 UNLESS OTHERWISE STATED","H1"]
[7,3,138,null,"CONDUIT & CONDUIT BOXES","H1"]
[7,3,138,null,"The Tenderer is referred to the relevant Clauses in the separate document General Preambles for Trades (2017 Edition)"]
[7,3,138,null,"Installation of rigid PVC/Bosal conduits including fixings, couplings, bends, glands, draw boxes, waste, etc.  ","H2"]
[7,3,138,1,"20 mm PVC conduits ","m",500,null,{"$f":"G1366*H1366","v":0}]
[7,3,138,2,"20 mm Bosal conduits","m",100,null,0]
[7,3,138,3,"20 mm PVC Round Box  (1 way, 2 way, 3 way) Including Cover","No",30,null,0]
[7,3,138,4,"20 mm Bosal Round Box(1 way, 2 way, 3 way) Including Cover","No",30,null,0]
[7,3,138,5,"100mm X 100mm PVC Box-Surface","No",20,null,0]
[7,3,138,6,"50mm X 100mm Galvanised surface box","No",40,null,0]
[7,3,138,7,"PVC Saddle clips ","No",80,null,0]
[7,3,139,null,"WIRE BASKET COMPLETE WITH ALL JOINING BRACKETS AND TRAY SUPPORTED BY MEANS OF 2 OPEN HANGER TRIANGULAR BRACKETS, SUITABLE FOR SINGLE POINT SUSPENSION RODS. ","H2"]
[7,3,139,null," Supply, Deliver and install complete with all fixing brackets, hangers and accessories. Hot dip galvanized wire baskets as per manufacturer. ","H2"]
[7,3,139,8,"100mm wire basket","m",300,null,{"$f":"G1375*H1375","v":0}]
[7,3,139,9,"100mm Tee-pieces","No",10,null,{"$f":"G1376*H1376","v":0}]
[7,3,139,10,"100mm 90º external/internal/ bend","No",10,null,{"$f":"G1377*H1377","v":0}]
[7,3,139,11,"100mm 90° horizontal bend","No",4,null,{"$f":"G1378*H1378","v":0}]
[7,3,139,null,"UPS FOR EMERGENCY LIGHTING","H2"]
[7,3,139,12,"Provisional sum for the supply and installation of 2.5KVA single phase UPS with 20 minutes back-up, online MSI sound wave. ","Item",1,null,{"$f":"G1380*H1380","v":0}]
[7,3,139,13,"Profit required on the purchase of the UPS unit, if required ……………….. %","%",{"$f":"H1380","v":0},{"v":0,"d":"0%"},{"$f":"G1381*H1381","v":0}]
[7,4,140,1,"Impro Access Control Installation","Page",135,null,{"$f":"SUM(I1327:I1335)","v":0}]
[7,4,140,2,"Lower Ground Floor","Page",137,null,{"$f":"SUM(I1343:I1358)","v":0}]
[7,4,140,3,"Conduit & Conduit Boxes","Page",139,null,{"$f":"SUM(I1365:I1381)","v":0}]
[8,1,141,null,"SECTION NO. 8","H1"]
[8,1,141,null,"BILL NO.1","H1"]
[8,1,141,null,"ELECTRICAL INSTALLATION PROVISIONAL)","H1"]
[8,1,141,null,"(CPAP WORK GROUP NO.160 UNLESS OTHERWISE STATED","H1"]
[8,1,141,null,"SUPPLY OF EMERGENCY ESCAPE LIGHTING ","H1"]
[8,1,141,null,"The Tenderer is referred to the relevant Clauses in the separate document General Preambles for Trades (2017 Edition)"]
[8,1,141,null,"Purchase/take delivery/store & protect luminaires","H3"]
[8,1,141,1,"5-way Emergency Strip Light 200 mm including Battery back-up. 12V 4W LED strip 6000k (200 mm long). With mounting bracket. & 5A Plug Top.","No",10,null,{"$f":"G1392*H1392","v":0}]
[8,1,141,2,"Profit on the purchase of luminaires, if required …..........%","SUM",1,null,0]
[8,1,141,3,"12V 4W LED strip 6000k (200 mm long). With mounting bracket. & 5A Plug Top.","No",115,null,0]
[8,1,141,4,"Profit on the purchase of luminaires, if required …..........%","SUM",1,null,0]
[8,1,141,5,"Vapour Proof, IP65 rated. IPD-57W-2R15 SRD 2-DUNA 1500mm, 57w LED 8440 lumens. Complete with 5 Amp plug top.","No",150,null,0]
[8,1,141,6,"Profit on the purchase of luminaires, if required …..........%","SUM",1,null,0]
[8,1,141,7,"600mm x 600mm 39w 4000K  Recessed luminaire including 3m cordset and 5A plug top.","No",50,null,0]
[8,1,142,8,"Profit on the purchase of luminaires, if required …..........%","SUM",1,null,0]
[8,1,142,null,"INSTALLATION OF LUMINAIRES","H2"]
[8,1,142,9,"5-way Emergency Strip Light 200 mm including Battery back-up. 12V 4W LED strip 6000k (200 mm long). With mounting bracket. & 5A Plug Top.","No",10,null,{"$f":"G1401*H1401","v":0}]
[8,1,142,10,"12V 4W LED strip 6000k (200 mm long). With mounting bracket. & 5A Plug Top.","No",115,null,{"$f":"G1402*H1402","v":0}]
[8,1,142,11,"Vapour Proof, IP65 rated. IPD-57W-2R15 SRD 2-DUNA 1500mm, 57w LED 8440 lumens. Complete with 5 Amp plug top.","No",150,null,{"$f":"G1403*H1403","v":0}]
[8,1,142,12,"600mm x 600mm 39w 4000K.  Recessed luminaires including 3m cordset and 5A plug top.","No",50,null,{"$f":"G1404*H1404","v":0}]
[8,1,142,null,"UNSWITCHED SOCKET OUTLETS","H2"]
[8,1,142,null,"To fit 50 mm 5A socket outlets in round box complete with cover","H3"]
[8,1,142,13,"5A, 3pin socket outlet complete with cover plate to fix  onto round boxes, trunking, galvanised boxes.","No",325,null,{"$f":"G1407*H1407","v":0}]
[8,1,142,null,"CONDUCTORS","H2"]
[8,1,142,null,"PVC Insulated copper conductors drawn into conduit, wiring trunking or power skirting.","H3"]
[8,1,142,14,"2.5mm² 1 phase neutral and E/W","m",28470,null,{"$f":"G1410*H1410","v":0}]
[8,1,142,15,"2.5mm² 1 phase neutral and E/W Silicone wire","m",4875,null,{"$f":"G1411*H1411","v":0}]
[8,1,143,null,"CIRCUIT TERMINATIONS","H2"]
[8,1,143,null,"Termination of circuit into distribution boards including lugs, cable straps, etc (Cable terminations measured elsewhere)","H3"]
[8,1,143,16,"2.5mm² 1 phase neutral and E/W","No",120,null,{"$f":"G1414*H1414","v":0}]
[8,1,143,17,"2.5mm² 1 phase neutral and E/W Silicone wire","No",40,null,{"$f":"G1415*H1415","v":0}]
[8,2,144,null,"SECTION NO. 8","H1"]
[8,2,144,null,"BILL NO.2","H1"]
[8,2,144,null,"ELECTRICAL INSTALLATION PROVISIONAL)","H1"]
[8,2,144,null,"(CPAP WORK GROUP NO.160 UNLESS OTHERWISE STATED","H1"]
[8,2,144,null,"DISTRIBUTION BOARDS","H1"]
[8,2,144,null,"The Tenderer is referred to the relevant Clauses in the separate document General Preambles for Trades (2017 Edition)"]
[8,2,144,null,"Remedial works on the existing DB boards, which includes additional supply & install MCB's for the required circuits feeding emergency lighting. ","H3"]
[8,2,144,1,"15A SP MCB - type CBI samite/Clip tray","No",150,null,{"$f":"G1423*H1423","v":0}]
[8,2,144,2,"20A SP MCB - type CBI samite/Clip tray","No",15,null,0]
[8,2,144,3,"63A TP D-curve MCB ","No",2,null,0]
[8,2,144,4,"80A TP D-curve MCB ","No",2,null,0]
[8,2,144,5,"125A TP D-curve MCB ","No",2,null,0]
[8,2,144,6,"Cradle to house 3 phase breakers","No",6,null,0]
[8,2,144,7,"Clip tray to accommodate new MCB's Din Rail","No",150,null,0]
[8,2,144,8,"Neutral Bar with insulators and links-6 Way","No",50,null,0]
[8,2,144,9,"Earth Bar - With mounting bushing-6 way","No",50,null,0]
[8,2,144,10,"Bridging Bars- 1 metre","No",6,null,0]
[8,2,144,11,"10mm PVC house Wire -Black ","m",30,null,0]
[8,2,144,12,"10mm PVC house Wire -Red","m",30,null,0]
[8,2,145,13,"10mm PVC house Wire -White","m",30,null,0]
[8,2,145,14,"10mm PVC house Wire -Blue","m",30,null,0]
[8,2,145,15,"10mm PVC Earth Wire -Green/Yellow","m",30,null,0]
[8,2,145,16,"25mm PVC house Wire -Black ","m",20,null,0]
[8,2,145,17,"25mm PVC house Wire -Red","m",20,null,0]
[8,2,145,18,"25mm PVC house Wire -White","m",20,null,0]
[8,2,145,19,"25mm PVC house Wire -Blue","m",20,null,0]
[8,2,145,20,"25mm PVC Earth Wire -Green/Yellow","m",20,null,0]
[8,2,145,21,"35mm PVC house Wire -Black","m",20,null,0]
[8,2,145,22,"35mm PVC house Wire -Red","m",20,null,0]
[8,2,145,23,"35mm PVC house Wire -White","m",20,null,0]
[8,2,145,24,"35mm PVC house Wire -Blue","m",20,null,0]
[8,2,145,25,"25mm PVC Earth Wire -Green/Yellow","m",20,null,0]
[8,2,145,26,"Sundries:Ferrels / Lugs / labels / Etc","Item",1,null,0]
[8,2,145,27,"PVC Blanks","No",50,null,0]
[8,2,145,28,"63A Earth leakage - Type CBI","No",20,null,0]
[8,2,145,29,"63A MCB for Earth leakage Protection - Type CBI","No",20,null,0]
[8,2,145,30,"18-way Surface distribution board galvanised complete with 60A main switch, 60A earth leakage and 6 x 20A SP MCCB ","No",4,null,0]
[8,2,146,null,"ISOLATORS","H2"]
[8,2,146,null,"Surface mounted isolator complete with enclosure","H2"]
[8,2,146,31,"63A TP Isolator","No",2,null,{"$f":"G1455*H1455","v":0}]
[8,2,146,32,"80A TP Isolator","No",2,null,{"$f":"G1456*H1456","v":0}]
[8,2,146,33,"125A TP Isolator ","No",2,null,{"$f":"G1457*H1457","v":0}]
[8,3,147,null,"SECTION NO. 8","H1"]
[8,3,147,null,"BILL NO.3","H1"]
[8,3,147,null,"ELECTRICAL INSTALLATION PROVISIONAL)","H1"]
[8,3,147,null,"(CPAP WORK GROUP NO.160 UNLESS OTHERWISE STATED","H1"]
[8,3,147,null,"CONDUIT & CONDUIT BOXES","H1"]
[8,3,147,null,"The Tenderer is referred to the relevant Clauses in the separate document General Preambles for Trades (2017 Edition)"]
[8,3,147,null,"Tenderers are to note that the sum included in the amount column for this section of the Bill of Quantities, should be the total of all priced items in the Electrical Installation Bill of Quantities No.1 as attached."]
[8,3,147,null,"Installation of rigid PVC/Bosal conduits including fixings, couplings, bends, glands, draw boxes, waste, etc. ","H3"]
[8,3,147,1,"20 mm PVC","m",26000,null,{"$f":"G1466*H1466","v":0}]
[8,3,147,2,"20 mm Bosal","m",4500,null,0]
[8,3,147,3,"20 mm PVC Round Box  (1 way, 2 way, 3 way) Including Cover","No",1000,null,0]
[8,3,147,4,"20 mm Bosal Round Box(1 way, 2 way, 3 way) Including Cover","No",700,null,0]
[8,3,147,5,"100mm X 100mm PVC Box-Surface","No",10,null,0]
[8,3,147,6,"50mm X 100mm Galvanised surface box","No",50,null,0]
[8,3,147,7,"PVC Saddle clips ","No",13400,null,0]
[8,3,147,null,"SOCKET OUTLETS - EURO (Sans 164-1 & 1642)","H2"]
[8,3,148,null,"Supply, delivery and installation of  16A, 3pin RSA switched socket outlet with earth pin & 1 x 3 pin Euro switch outlet ( Sans 164-1 & 164-2 ) complete with white cover plate.","H3"]
[8,3,148,8,"16A COMBO Normal surface mounted in  box 4 x 4 (box measured elsewhere) - switched socket outlet, 1 x 3pin RSA & 1 x 3 pin Euro ( Sans 164-1 & 164-2 )","No",10,null,{"$f":"G1475*H1475","v":0}]
[8,3,148,null,"LOW VOLTAGE CABLE & INSTALLATION","H2"]
[8,3,148,null,"Supply, delivery and installation of 600/1100V PVC/SWA/ECC/PVC Copper cables. Installed on surface, on rack, cable sleeve or trench.","H3"]
[8,3,148,9,"10mm² x  4 core","m",60,null,{"$f":"G1478*H1478","v":0}]
[8,3,148,10,"25mm² x  4 core","m",220,null,{"$f":"G1479*H1479","v":0}]
[8,3,148,11,"35mm² x  4 core","m",70,null,{"$f":"G1480*H1480","v":0}]
[8,3,148,null,"LOW VOLTAGE CABLE TERMINATIONS","H2"]
[8,3,148,null,"Terminations of low voltage PVC/SWA/ECC PVC cable complete with glands, shrouds, lugs, connection and Fire rated glands and shrouds, where required.","H3"]
[8,3,148,12,"10mm² x  4 core","No",4,null,{"$f":"G1483*H1483","v":0}]
[8,3,148,13,"25mm² x  4 core","No",4,null,{"$f":"G1484*H1484","v":0}]
[8,3,148,14,"35mm² x  4 core","No",4,null,{"$f":"G1485*H1485","v":0}]
[8,3,149,null,"SCHEDULE OF DAYWORK RATES","H2"]
[8,3,149,null,"Work that in the opinion of the Engineer cannot be priced at Contract rates or rates analogous thereto shall be paid for as a day work rate.","H3"]
[8,3,149,null,"The Tenderer is to price hereunder all categories of labour details herein and their respective rates. All hand tools, portable electric tools, construction equipment, site supervision, all allowances, preliminaries etc. shall be included in the rates  submitted. A flat rate per hour is to be tendered for each category.","H3"]
[8,3,149,null,"Day work executed on Monday to Friday, outside the hours of 07h00 to 17h00","H3"]
[8,3,149,15,"Artisan","Hrs",80,null,{"$f":"G1490*H1490","v":0}]
[8,3,149,16,"Labourer","Hrs",80,null,{"$f":"G1491*H1491","v":0}]
[8,3,149,17,"Apprentice","Hrs",80,null,{"$f":"G1492*H1492","v":0}]
[8,3,149,18,"Single Phase Tester","Hrs",80,null,{"$f":"G1493*H1493","v":0}]
[8,3,149,19,"Three Phase Tester","Hrs",80,null,{"$f":"G1494*H1494","v":0}]
[8,4,150,null,"SECTION NO. 8","H1"]
[8,4,150,null,"BILL NO.4","H1"]
[8,4,150,null,"ELECTRICAL INSTALLATION PROVISIONAL)","H1"]
[8,4,150,null,"(CPAP WORK GROUP NO.160 UNLESS OTHERWISE STATED","H1"]
[8,4,150,null,"CABLE TRAYS","H1"]
[8,4,150,null,"The Tenderer is referred to the relevant Clauses in the separate document General Preambles for Trades (2017 Edition)"]
[8,4,150,null,"Supply, deliver and install complete with all fixing brackets, hangers and accessories. Hot dip galvanized wire baskets as per manufacturer. Cable ladder/tray as per manufacturer.","H3"]
[8,4,150,null,"Heavy Duty Cable Trays","H3"]
[8,4,150,1,"200mm wide cable ladder","m",400,null,{"$f":"G1503*H1503","v":0}]
[8,4,150,2,"200mm T-pieces","No",15,null,{"$f":"G1504*H1504","v":0}]
[8,4,150,3,"200mm internal/external bends","No",20,null,{"$f":"G1505*H1505","v":0}]
[8,5,151,1,"Supply Of Emergency Escape Lighting","Page",143,null,{"$f":"SUM(I1391:I1415)","v":0}]
[8,5,151,2,"Distribution Boards","Page",146,null,{"$f":"SUM(I1422:I1457)","v":0}]
[8,5,151,3,"Conduit & Conduit Boxes","Page",149,null,{"$f":"SUM(I1465:I1494)","v":0}]
[8,5,151,4,"Cable Trays","Page",150,null,{"$f":"SUM(I1502:I1505)","v":0}]
[]
[9,1,152,1,"PRELIMINARIES","Page",33,null,{"$f":"SUM(I19:I169)","v":0}]
[9,1,152,2,"BUILDERS WORK (PROVISIONAL)","Page",85,null,{"$f":"SUM(I729:I741)","v":0}]
[9,1,152,3,"EXTERNAL WORKS (PROVISIONAL)","Page",89,null,{"$f":"SUM(I750:I788)","v":0}]
[9,1,152,4,"FIRE SERVICES INSTALLATION (PROVISIONAL)","Page",114,null,{"$f":"SUM(I1109:I1121)","v":{"v":2933800,"d":"R2,933,800.00"}}]
[9,1,152,5,"FIRE DETECTION","Page",126,null,{"$f":"SUM(I1248:I1252)","v":0}]
[9,1,152,6,"VOICE EVACUATION","Page",133,null,{"$f":"SUM(I1317:I1319)","v":0}]
[9,1,152,7,"ACCESS CONTROL","Page",140,null,{"$f":"SUM(I1382:I1384)","v":0}]
[9,1,152,8,"ELECTRICAL INSTALLATION (PROVISIONAL)","Page",151,null,{"$f":"SUM(I1506:I1509)","v":0}]
[9,1,152,null,"SUB-TOTAL","ST",null,null,{"$f":"SUM(I1511:I1518)","v":{"v":2933800,"d":"R2,933,800.00"}}]
[9,1,152,null,"ADD: VALUE ADDED TAX @ 15%","TAX",{"v":0.15,"d":"15%"},null,{"$f":"ROUND(I1519*15%,2)","v":{"v":440070,"d":"R440,070.00"}}]
[9,1,152,null,"TOTAL CARRIED FORWARD TO FORM OF OFFER (T2.21)","ST",null,null,{"$f":"SUM(I1519:I1520)","v":{"v":3373870,"d":"R3,373,870.00"}}]